Workbook

Sheet SolCotizacion
B1: Solicitud de Cotización Software Microsoft Enterprise Agreement y Licenciamiento Eduactivo
B3: Versión: | C3: 2020-06-02
B4: Información de la Entidad Compradora
B6: Nombre de la Entidad | E6: Universidad Distrital Francisco José de Caldas | K6: NIT | M6: 899.999.230-7
B8: Dirección de la Entidad | E8: Carrera 7 No. 40 B 53 | K8: Correo de contacto | M8: vicerrecadmin@udistrital.edu.co
B10: Municipio | E10: Bogotá D.C. | K10: Teléfono de contacto | M10: 323 93 00 EXT: 1816-1804
B12: Nombre funcionario Comprador | E12: Eduard Arnulfo Pinilla Rivera
B16: Solicitud de Cotización
B18: Categoría | E18: ACADÉMICO | I18: Valor TRM | J18: 3758.15 | M18: Fecha de lanzamiento del evento de cotización | N18: 2020-06-16
I19: Escribir hasta dos cifras decimales. Tenga en cuenta que el simulador aproxima al entero más cercano.
B20: Productos
A22: *Libros, revistas, cartillas y/o catálogo Segmento 1. | B22: =E18 -> ACADÉMICO
B24: Cantidad de filas:
B25: 1
B27: Item | C27: Código Catálogo | E27: Descripción del Producto | I27: Tipo | J27: Unidad | K27: Zona | L27: Asistencia | M27: Perfil | N27: Número de parte | O27: Forma de Pago | P27: cantidad
A28: =E28&L28 -> Microsoft®WinRmtDsktpSvcsCAL AllLng License/SoftwareAssurancePack MVL 1License DvcCAL_Additional ProductN/A | B28: 1 | C28: 6VC-01251AP | E28: =IFERROR(VLOOKUP($C28&$E$18,Consolidado!$B:$U,9,0),VLOOKUP($C28&"Canal",Consolidado!$B:$U,9,0)) -> Microsoft®WinRmtDsktpSvcsCAL AllLng License/SoftwareAssurancePack MVL 1License DvcCAL_Additional Product | I28: =IFERROR(VLOOKUP($C28&$E$18,Consolidado!$B:$U,12,0),VLOOKUP($C28&"Canal",Consolidado!$B:$U,12,0)) -> Producto | J28: =IFERROR(VLOOKUP($C28&$E$18,Consolidado!$B:$U,10,0),VLOOKUP($C28&"Canal",Consolidado!$B:$U,10,0)) -> Unidad | K28: =IFERROR(VLOOKUP($C28&$E$18,Consolidado!$B:$U,13,0),VLOOKUP($C28&"Canal",Consolidado!$B:$U,13,0)) -> NA | L28: =IFERROR(VLOOKUP($C28&$E$18,Consolidado!$B:$U,14,0),VLOOKUP($C28&"Canal",Consolidado!$B:$U,14,0)) -> N/A | M28: =IFERROR(VLOOKUP($C28&$E$18,Consolidado!$B:$U,15,0),VLOOKUP($C28&"Canal",Consolidado!$B:$U,15,0)) -> N/A | N28: =IFERROR(VLOOKUP($C28&$E$18,Consolidado!$B:$U,16,0),VLOOKUP($C28&"Canal",Consolidado!$B:$U,16,0)) -> 6VC-01251AP | O28: =IFERROR(VLOOKUP($C28&$E$18,Consolidado!$B:$U,17,0),VLOOKUP($C28&"Canal",Consolidado!$B:$U,17,0)) -> Suscripción Anual | P28: 300 | Q28: =IFERROR(VLOOKUP($C28&$E$18,Consolidado!$B:$U,5,0),VLOOKUP($C28&"Canal",Consolidado!$B:$U,5,0)) -> ACADÉMICO
A29: Microsoft® M365 EDU A3 Unified Shared ALNG MonthlySub MVL Per User for CoreCAL_FacultyLevelAN/A | B29: 2 | C29: AAD-38392FACA | E29: =IFERROR(VLOOKUP($C29&$E$18,Consolidado!$B:$U,9,0),VLOOKUP($C29&"Canal",Consolidado!$B:$U,9,0)) -> Microsoft® M365 EDU A3 Unified Shared ALNG MonthlySub MVL Per User for CoreCAL_FacultyLevelA | I29: =IFERROR(VLOOKUP($C29&$E$18,Consolidado!$B:$U,12,0),VLOOKUP($C29&"Canal",Consolidado!$B:$U,12,0)) -> Producto | J29: =IFERROR(VLOOKUP($C29&$E$18,Consolidado!$B:$U,10,0),VLOOKUP($C29&"Canal",Consolidado!$B:$U,10,0)) -> Unidad | K29: =IFERROR(VLOOKUP($C29&$E$18,Consolidado!$B:$U,13,0),VLOOKUP($C29&"Canal",Consolidado!$B:$U,13,0)) -> NA | L29: =IFERROR(VLOOKUP($C29&$E$18,Consolidado!$B:$U,14,0),VLOOKUP($C29&"Canal",Consolidado!$B:$U,14,0)) -> N/A | M29: =IFERROR(VLOOKUP($C29&$E$18,Consolidado!$B:$U,15,0),VLOOKUP($C29&"Canal",Consolidado!$B:$U,15,0)) -> N/A | N29: =IFERROR(VLOOKUP($C29&$E$18,Consolidado!$B:$U,16,0),VLOOKUP($C29&"Canal",Consolidado!$B:$U,16,0)) -> AAD-38392FACA | O29: =IFERROR(VLOOKUP($C29&$E$18,Consolidado!$B:$U,17,0),VLOOKUP($C29&"Canal",Consolidado!$B:$U,17,0)) -> Suscripción mensual con pago anual | P29: 12000 | Q29: =IFERROR(VLOOKUP($C29&$E$18,Consolidado!$B:$U,5,0),VLOOKUP($C29&"Canal",Consolidado!$B:$U,5,0)) -> ACADÉMICO
A30: Microsoft®VisioPlan2forEDU ShrdSvr AllLng MonthlySubscriptions-VolumeLicense MVL 1License PerUsr_Additional ProductN/A | B30: 3 | C30: P4U-00001AP | E30: =IFERROR(VLOOKUP($C30&$E$18,Consolidado!$B:$U,9,0),VLOOKUP($C30&"Canal",Consolidado!$B:$U,9,0)) -> Microsoft®VisioPlan2forEDU ShrdSvr AllLng MonthlySubscriptions-VolumeLicense MVL 1License PerUsr_Additional Product | I30: =IFERROR(VLOOKUP($C30&$E$18,Consolidado!$B:$U,12,0),VLOOKUP($C30&"Canal",Consolidado!$B:$U,12,0)) -> Producto | J30: =IFERROR(VLOOKUP($C30&$E$18,Consolidado!$B:$U,10,0),VLOOKUP($C30&"Canal",Consolidado!$B:$U,10,0)) -> Unidad | K30: =IFERROR(VLOOKUP($C30&$E$18,Consolidado!$B:$U,13,0),VLOOKUP($C30&"Canal",Consolidado!$B:$U,13,0)) -> NA | L30: =IFERROR(VLOOKUP($C30&$E$18,Consolidado!$B:$U,14,0),VLOOKUP($C30&"Canal",Consolidado!$B:$U,14,0)) -> N/A | M30: =IFERROR(VLOOKUP($C30&$E$18,Consolidado!$B:$U,15,0),VLOOKUP($C30&"Canal",Consolidado!$B:$U,15,0)) -> N/A | N30: =IFERROR(VLOOKUP($C30&$E$18,Consolidado!$B:$U,16,0),VLOOKUP($C30&"Canal",Consolidado!$B:$U,16,0)) -> P4U-00001AP | O30: =IFERROR(VLOOKUP($C30&$E$18,Consolidado!$B:$U,17,0),VLOOKUP($C30&"Canal",Consolidado!$B:$U,17,0)) -> Suscripción mensual con pago anual | P30: 720 | Q30: =IFERROR(VLOOKUP($C30&$E$18,Consolidado!$B:$U,5,0),VLOOKUP($C30&"Canal",Consolidado!$B:$U,5,0)) -> ACADÉMICO
A31: Microsoft®ProjectPlan3EDU ShrdSvr AllLng MonthlySubscriptions-VolumeLicense MVL 1License PerUsr_Additional ProductN/A | B31: 4 | C31: 7MA-00001AP | E31: =IFERROR(VLOOKUP($C31&$E$18,Consolidado!$B:$U,9,0),VLOOKUP($C31&"Canal",Consolidado!$B:$U,9,0)) -> Microsoft®ProjectPlan3EDU ShrdSvr AllLng MonthlySubscriptions-VolumeLicense MVL 1License PerUsr_Additional Product | I31: =IFERROR(VLOOKUP($C31&$E$18,Consolidado!$B:$U,12,0),VLOOKUP($C31&"Canal",Consolidado!$B:$U,12,0)) -> Producto | J31: =IFERROR(VLOOKUP($C31&$E$18,Consolidado!$B:$U,10,0),VLOOKUP($C31&"Canal",Consolidado!$B:$U,10,0)) -> Unidad | K31: =IFERROR(VLOOKUP($C31&$E$18,Consolidado!$B:$U,13,0),VLOOKUP($C31&"Canal",Consolidado!$B:$U,13,0)) -> NA | L31: =IFERROR(VLOOKUP($C31&$E$18,Consolidado!$B:$U,14,0),VLOOKUP($C31&"Canal",Consolidado!$B:$U,14,0)) -> N/A | M31: =IFERROR(VLOOKUP($C31&$E$18,Consolidado!$B:$U,15,0),VLOOKUP($C31&"Canal",Consolidado!$B:$U,15,0)) -> N/A | N31: =IFERROR(VLOOKUP($C31&$E$18,Consolidado!$B:$U,16,0),VLOOKUP($C31&"Canal",Consolidado!$B:$U,16,0)) -> 7MA-00001AP | O31: =IFERROR(VLOOKUP($C31&$E$18,Consolidado!$B:$U,17,0),VLOOKUP($C31&"Canal",Consolidado!$B:$U,17,0)) -> Suscripción mensual con pago anual | P31: 720 | Q31: =IFERROR(VLOOKUP($C31&$E$18,Consolidado!$B:$U,5,0),VLOOKUP($C31&"Canal",Consolidado!$B:$U,5,0)) -> ACADÉMICO
A32: Microsoft®ProjectProfessional AllLng License/SoftwareAssurancePack MVL 1License w/1ProjectSvrCAL_Additional ProductN/A | B32: 5 | C32: H30-00237AP | E32: =IFERROR(VLOOKUP($C32&$E$18,Consolidado!$B:$U,9,0),VLOOKUP($C32&"Canal",Consolidado!$B:$U,9,0)) -> Microsoft®ProjectProfessional AllLng License/SoftwareAssurancePack MVL 1License w/1ProjectSvrCAL_Additional Product | I32: =IFERROR(VLOOKUP($C32&$E$18,Consolidado!$B:$U,12,0),VLOOKUP($C32&"Canal",Consolidado!$B:$U,12,0)) -> Producto | J32: =IFERROR(VLOOKUP($C32&$E$18,Consolidado!$B:$U,10,0),VLOOKUP($C32&"Canal",Consolidado!$B:$U,10,0)) -> Unidad | K32: =IFERROR(VLOOKUP($C32&$E$18,Consolidado!$B:$U,13,0),VLOOKUP($C32&"Canal",Consolidado!$B:$U,13,0)) -> NA | L32: =IFERROR(VLOOKUP($C32&$E$18,Consolidado!$B:$U,14,0),VLOOKUP($C32&"Canal",Consolidado!$B:$U,14,0)) -> N/A | M32: =IFERROR(VLOOKUP($C32&$E$18,Consolidado!$B:$U,15,0),VLOOKUP($C32&"Canal",Consolidado!$B:$U,15,0)) -> N/A | N32: =IFERROR(VLOOKUP($C32&$E$18,Consolidado!$B:$U,16,0),VLOOKUP($C32&"Canal",Consolidado!$B:$U,16,0)) -> H30-00237AP | O32: =IFERROR(VLOOKUP($C32&$E$18,Consolidado!$B:$U,17,0),VLOOKUP($C32&"Canal",Consolidado!$B:$U,17,0)) -> Suscripción Anual | P32: 10 | Q32: =IFERROR(VLOOKUP($C32&$E$18,Consolidado!$B:$U,5,0),VLOOKUP($C32&"Canal",Consolidado!$B:$U,5,0)) -> ACADÉMICO
A33: Microsoft®SQLSvrEnterpriseCore AllLng License/SoftwareAssurancePack MVL 2Licenses CoreLic_Additional ProductN/A | B33: 6 | C33: 7JQ-00341AP | E33: =IFERROR(VLOOKUP($C33&$E$18,Consolidado!$B:$U,9,0),VLOOKUP($C33&"Canal",Consolidado!$B:$U,9,0)) -> Microsoft®SQLSvrEnterpriseCore AllLng License/SoftwareAssurancePack MVL 2Licenses CoreLic_Additional Product | I33: =IFERROR(VLOOKUP($C33&$E$18,Consolidado!$B:$U,12,0),VLOOKUP($C33&"Canal",Consolidado!$B:$U,12,0)) -> Producto | J33: =IFERROR(VLOOKUP($C33&$E$18,Consolidado!$B:$U,10,0),VLOOKUP($C33&"Canal",Consolidado!$B:$U,10,0)) -> Unidad | K33: =IFERROR(VLOOKUP($C33&$E$18,Consolidado!$B:$U,13,0),VLOOKUP($C33&"Canal",Consolidado!$B:$U,13,0)) -> NA | L33: =IFERROR(VLOOKUP($C33&$E$18,Consolidado!$B:$U,14,0),VLOOKUP($C33&"Canal",Consolidado!$B:$U,14,0)) -> N/A | M33: =IFERROR(VLOOKUP($C33&$E$18,Consolidado!$B:$U,15,0),VLOOKUP($C33&"Canal",Consolidado!$B:$U,15,0)) -> N/A | N33: =IFERROR(VLOOKUP($C33&$E$18,Consolidado!$B:$U,16,0),VLOOKUP($C33&"Canal",Consolidado!$B:$U,16,0)) -> 7JQ-00341AP | O33: =IFERROR(VLOOKUP($C33&$E$18,Consolidado!$B:$U,17,0),VLOOKUP($C33&"Canal",Consolidado!$B:$U,17,0)) -> Suscripción Anual | P33: 2 | Q33: =IFERROR(VLOOKUP($C33&$E$18,Consolidado!$B:$U,5,0),VLOOKUP($C33&"Canal",Consolidado!$B:$U,5,0)) -> ACADÉMICO
A34: Microsoft®WindowsServerSTDCORE AllLng License/SoftwareAssurancePack MVL 2Licenses CoreLic_Additional ProductN/A | B34: 7 | C34: 9EM-00562AP | E34: =IFERROR(VLOOKUP($C34&$E$18,Consolidado!$B:$U,9,0),VLOOKUP($C34&"Canal",Consolidado!$B:$U,9,0)) -> Microsoft®WindowsServerSTDCORE AllLng License/SoftwareAssurancePack MVL 2Licenses CoreLic_Additional Product | I34: =IFERROR(VLOOKUP($C34&$E$18,Consolidado!$B:$U,12,0),VLOOKUP($C34&"Canal",Consolidado!$B:$U,12,0)) -> Producto | J34: =IFERROR(VLOOKUP($C34&$E$18,Consolidado!$B:$U,10,0),VLOOKUP($C34&"Canal",Consolidado!$B:$U,10,0)) -> Unidad | K34: =IFERROR(VLOOKUP($C34&$E$18,Consolidado!$B:$U,13,0),VLOOKUP($C34&"Canal",Consolidado!$B:$U,13,0)) -> NA | L34: =IFERROR(VLOOKUP($C34&$E$18,Consolidado!$B:$U,14,0),VLOOKUP($C34&"Canal",Consolidado!$B:$U,14,0)) -> N/A | M34: =IFERROR(VLOOKUP($C34&$E$18,Consolidado!$B:$U,15,0),VLOOKUP($C34&"Canal",Consolidado!$B:$U,15,0)) -> N/A | N34: =IFERROR(VLOOKUP($C34&$E$18,Consolidado!$B:$U,16,0),VLOOKUP($C34&"Canal",Consolidado!$B:$U,16,0)) -> 9EM-00562AP | O34: =IFERROR(VLOOKUP($C34&$E$18,Consolidado!$B:$U,17,0),VLOOKUP($C34&"Canal",Consolidado!$B:$U,17,0)) -> Suscripción Anual | P34: 200 | Q34: =IFERROR(VLOOKUP($C34&$E$18,Consolidado!$B:$U,5,0),VLOOKUP($C34&"Canal",Consolidado!$B:$U,5,0)) -> ACADÉMICO
A35: =E35&L35 -> Microsoft® M365 EDU A3 Unified Shared ALNG MonthlySub MVL Per User STUUseBnftN/A | B35: 8 | C35: AAD-38397SUB | E35: =IFERROR(VLOOKUP($C35&$E$18,Consolidado!$B:$U,9,0),VLOOKUP($C35&"Canal",Consolidado!$B:$U,9,0)) -> Microsoft® M365 EDU A3 Unified Shared ALNG MonthlySub MVL Per User STUUseBnft | I35: =IFERROR(VLOOKUP($C35&$E$18,Consolidado!$B:$U,12,0),VLOOKUP($C35&"Canal",Consolidado!$B:$U,12,0)) -> Producto | J35: =IFERROR(VLOOKUP($C35&$E$18,Consolidado!$B:$U,10,0),VLOOKUP($C35&"Canal",Consolidado!$B:$U,10,0)) -> Unidad | K35: =IFERROR(VLOOKUP($C35&$E$18,Consolidado!$B:$U,13,0),VLOOKUP($C35&"Canal",Consolidado!$B:$U,13,0)) -> NA | L35: =IFERROR(VLOOKUP($C35&$E$18,Consolidado!$B:$U,14,0),VLOOKUP($C35&"Canal",Consolidado!$B:$U,14,0)) -> N/A | M35: =IFERROR(VLOOKUP($C35&$E$18,Consolidado!$B:$U,15,0),VLOOKUP($C35&"Canal",Consolidado!$B:$U,15,0)) -> N/A | N35: =IFERROR(VLOOKUP($C35&$E$18,Consolidado!$B:$U,16,0),VLOOKUP($C35&"Canal",Consolidado!$B:$U,16,0)) -> AAD-38397SUB | O35: =IFERROR(VLOOKUP($C35&$E$18,Consolidado!$B:$U,17,0),VLOOKUP($C35&"Canal",Consolidado!$B:$U,17,0)) -> Suscripción mensual con pago anual | P35: 480000 | Q35: =IFERROR(VLOOKUP($C35&$E$18,Consolidado!$B:$U,5,0),VLOOKUP($C35&"Canal",Consolidado!$B:$U,5,0)) -> ACADÉMICO
B36: 1. Si requiere agregue o elimine fila
B39: Gravámenes adicionales*
B40: Si los hay, indique los gravámenes adicionales a los que está sujeta la Orden de Compra. Son gravámenes adicionales por ejemplo; estampillas y demás impuestos territoriales. Los impuestos como ICA y retención en la fuente NO son gravámenes adicionales.
B41: Gravámenes adicionales (estampillas)
B42: No | C42: Descripción | H42: Porcentaje
B43: 1 | C43: Estampilla Universidad Distrital Francisco Jose de Caldas 50 años | H43: 0.011
B44: 2 | C44: Estampilla Pro-cultura | H44: 0.005
B45: 3 | C45: Estampilla Adulto Mayor | H45: 0.02
F46: Total porcentaje: | H46: =SUM(H43:H45) -> 0.036
D47: Filas a agregar o eliminar Gravámenes:
D48: 1

Sheet Anexo
B1: Con el objetivo de complementar el entendimiento sobre la solicitud de Productos y Servicios Microsoft , por favor diligencie la totalidad de la información que se pide a continuación.
B3: Tenga en cuenta que esta información es de utilidad para que el Proveedor pueda cotizar de la manera más precisa posible los Productos y Servicios Microsoft solicitados, por lo cual la exactitud y completitud es muy importante.
A4: No | B4: Requerimiento adicional | C4: Descripción | D4: INFORMACION SUMINISTRADA POR LA ENTIDAD COMPRADORA
B5: Nombre y Nit de la Entidad Estatal a la cual se le entregará la titularidad de las licencias adquiridas. | D5: UNIVERSIDAD DISTRITAL FRANCISCO JOSE DE CALDAS NIT: 899.999.230-7
A6: 1 | B6: Lugar de entrega de los Productos y Servicios Microsoft. (Especificar dirección y ciudad de entrega). | D6: CARRERA 7 No. 40 B 53 Bogotá D.C.
A7: 2 | B7: Datos Contacto de entrega (Especificar nombre, teléfono y correo electrónico). | D7: Martha Cecilia Valdes Cruz-323 9300 Ext: 1301-udnet@udistrital.edu.co
A8: 3 | B8: Funciones a realizar el soporte en sitio. | D8: N/A
A9: 4 | B9: Área de conocimiento de las personas que prestan el servicio de soporte técnico proactivo. | D9: N/A
A10: 5 | B10: Área de conocimiento de las personas que prestan el servicio de soporte técnico reactivo. | D10: N/A
A11: 6 | B11: Mecanismo de solicitud del soporte reactivo. | D11: N/A
A12: 7 | B12: Especificar que información o que bases de datos se van a migrar. Aplica en el caso que la Entidad Compradora solicite el servicio de migración de información o de bases de datos. | D12: N/A
A13: 8 | B13: Actividades del gerente de cuenta. | D13: N/A
A14: 9 | B14: Indique número de personas que requieren de capacitación. En caso que la Entidad Compradora solicite el servicio de capacitación usuario final o usuario técnico. | D14: N/A
A15: 10 | B15: Especificar características de configuración y descripción de las tareas a realizar. En caso que la Entidad Compradora solicite el servicio de configuración y parametrización. | D15: N/A
A16: 12 | B16: Establecer las políticas de respaldo de información. | D16: N/A

Sheet ResumenCotizacion
B1: Solicitud de Cotización Software Microsoft Enterprise Agreement y Licenciamiento Eduactivo
B3: =SolCotizacion!B3 -> Versión:
B4: Información de la Entidad Compradora
B6: Nombre de la Entidad | E6: Universidad Distrital Francisco José de Caldas | K6: NIT | M6: 899.999.230-7
B8: Dirección de la Entidad | E8: Carrera 7 No. 40 B 53 | K8: Correo de contacto | M8: vicerrecadmin@udistrital.edu.co
B10: Municipio | E10: Bogotá D.C. | K10: Teléfono de contacto | M10: 323 93 00 EXT: 1816-1804
B12: Nombre funcionario Comprador | E12: Eduard Arnulfo Pinilla Rivera
B16: Solicitud de Cotización
B18: Categoría | E18: ACADÉMICO | I18: Valor TRM | J18: =SolCotizacion!J18 -> 3758.15 | M18: Fecha | N18: =SolCotizacion!N18 -> 2020-06-16
B20: Productos
A22: *Libros, revistas, cartillas y/o catálogo Segmento 1. | B22: =SolCotizacion!B22 -> ACADÉMICO
B24: Cantidad de filas:
B25: 1
B27: Item | C27: Código Catálogo | E27: Descripción del Producto | I27: Tipo | J27: Unidad | K27: Zona | L27: Asistencia | M27: Perfil | N27: Número de parte | O27: Forma de Pago | P27: cantidad | Q27: Precio Unitario | R27: Precio Unitario + Gravamen | S27: Subtotal | T27: IVA | U27: Precio Total
A28: Microsoft®WinRmtDsktpSvcsCAL AllLng License/SoftwareAssurancePack MVL 1License DvcCAL_Additional ProductN/A | B28: 1 | C28: 6VC-01251AP | E28: Microsoft®WinRmtDsktpSvcsCAL AllLng License/SoftwareAssurancePack MVL 1License DvcCAL_Additional Product | I28: Producto | J28: Unidad | K28: NA | L28: N/A | M28: N/A | N28: 6VC-01251AP | O28: Suscripción Anual | P28: 300 | Q28: =IFERROR(VLOOKUP("UT DELL EMC"&$V28&$C28,temp!$A:$Y,19,0)*$J$18,VLOOKUP("Catalogo principal"&$V28&$C28,temp!$A:$Y,19,0)*$J$18) -> 41339.65 | R28: =ROUND(Q28/(1-(VLOOKUP("Total porcentaje:",$F:$H,3))),2) -> 42883.45 | S28: =ROUND(P28*R28,2) -> 12865035 | T28: =IFERROR(ROUND(S28*IF(VLOOKUP("UT DELL EMC"&$V28&$C28,Consolidado!$A:$U,21,0)=1,19%,0),2),ROUND(S28*IF(VLOOKUP("Catalogo principal"&$V28&$C28,Consolidado!$A:$U,21,0)=1,19%,0),2)) -> 2444356.65 | U28: =S28+T28 -> 15309391.65 | V28: =IFERROR(VLOOKUP($C28&$E$18,Consolidado!$B:$U,5,0),VLOOKUP($C28&"Canal",Consolidado!$B:$U,5,0)) -> ACADÉMICO
A29: Microsoft® M365 EDU A3 Unified Shared ALNG MonthlySub MVL Per User for CoreCAL_FacultyLevelAN/A | B29: 2 | C29: AAD-38392FACA | E29: Microsoft® M365 EDU A3 Unified Shared ALNG MonthlySub MVL Per User for CoreCAL_FacultyLevelA | I29: Producto | J29: Unidad | K29: NA | L29: N/A | M29: N/A | N29: AAD-38392FACA | O29: Suscripción mensual con pago anual | P29: 12000 | Q29: =IFERROR(VLOOKUP("UT DELL EMC"&$V29&$C29,temp!$A:$Y,19,0)*$J$18,VLOOKUP("Catalogo principal"&$V29&$C29,temp!$A:$Y,19,0)*$J$18) -> 18490.098 | R29: 19180.6 | S29: 230167200 | T29: =IFERROR(ROUND(S29*IF(VLOOKUP("UT DELL EMC"&$V29&$C29,Consolidado!$A:$U,21,0)=1,19%,0),2),ROUND(S29*IF(VLOOKUP("Catalogo principal"&$V29&$C29,Consolidado!$A:$U,21,0)=1,19%,0),2)) -> 43731768 | U29: 273898968 | V29: =IFERROR(VLOOKUP($C29&$E$18,Consolidado!$B:$U,5,0),VLOOKUP($C29&"Canal",Consolidado!$B:$U,5,0)) -> ACADÉMICO
A30: Microsoft®VisioPlan2forEDU ShrdSvr AllLng MonthlySubscriptions-VolumeLicense MVL 1License PerUsr_Additional ProductN/A | B30: 3 | C30: P4U-00001AP | E30: Microsoft®VisioPlan2forEDU ShrdSvr AllLng MonthlySubscriptions-VolumeLicense MVL 1License PerUsr_Additional Product | I30: Producto | J30: Unidad | K30: NA | L30: N/A | M30: N/A | N30: P4U-00001AP | O30: Suscripción mensual con pago anual | P30: 720 | Q30: =IFERROR(VLOOKUP("UT DELL EMC"&$V30&$C30,temp!$A:$Y,19,0)*$J$18,VLOOKUP("Catalogo principal"&$V30&$C30,temp!$A:$Y,19,0)*$J$18) -> 8267.93 | R30: 8576.69 | S30: 6175216.8 | T30: =IFERROR(ROUND(S30*IF(VLOOKUP("UT DELL EMC"&$V30&$C30,Consolidado!$A:$U,21,0)=1,19%,0),2),ROUND(S30*IF(VLOOKUP("Catalogo principal"&$V30&$C30,Consolidado!$A:$U,21,0)=1,19%,0),2)) -> 1173291.19 | U30: 7348507.99 | V30: =IFERROR(VLOOKUP($C30&$E$18,Consolidado!$B:$U,5,0),VLOOKUP($C30&"Canal",Consolidado!$B:$U,5,0)) -> ACADÉMICO
A31: Microsoft®ProjectPlan3EDU ShrdSvr AllLng MonthlySubscriptions-VolumeLicense MVL 1License PerUsr_Additional ProductN/A | B31: 4 | C31: 7MA-00001AP | E31: Microsoft®ProjectPlan3EDU ShrdSvr AllLng MonthlySubscriptions-VolumeLicense MVL 1License PerUsr_Additional Product | I31: Producto | J31: Unidad | K31: NA | L31: N/A | M31: N/A | N31: 7MA-00001AP | O31: Suscripción mensual con pago anual | P31: 720 | Q31: =IFERROR(VLOOKUP("UT DELL EMC"&$V31&$C31,temp!$A:$Y,19,0)*$J$18,VLOOKUP("Catalogo principal"&$V31&$C31,temp!$A:$Y,19,0)*$J$18) -> 22548.9 | R31: 23390.98 | S31: 16841505.6 | T31: =IFERROR(ROUND(S31*IF(VLOOKUP("UT DELL EMC"&$V31&$C31,Consolidado!$A:$U,21,0)=1,19%,0),2),ROUND(S31*IF(VLOOKUP("Catalogo principal"&$V31&$C31,Consolidado!$A:$U,21,0)=1,19%,0),2)) -> 3199886.06 | U31: 20041391.66 | V31: =IFERROR(VLOOKUP($C31&$E$18,Consolidado!$B:$U,5,0),VLOOKUP($C31&"Canal",Consolidado!$B:$U,5,0)) -> ACADÉMICO
A32: Microsoft®ProjectProfessional AllLng License/SoftwareAssurancePack MVL 1License w/1ProjectSvrCAL_Additional ProductN/A | B32: 5 | C32: H30-00237AP | E32: Microsoft®ProjectProfessional AllLng License/SoftwareAssurancePack MVL 1License w/1ProjectSvrCAL_Additional Product | I32: Producto | J32: Unidad | K32: NA | L32: N/A | M32: N/A | N32: H30-00237AP | O32: Suscripción Anual | P32: 10 | Q32: =IFERROR(VLOOKUP("UT DELL EMC"&$V32&$C32,temp!$A:$Y,19,0)*$J$18,VLOOKUP("Catalogo principal"&$V32&$C32,temp!$A:$Y,19,0)*$J$18) -> 259312.35 | R32: 268996.21 | S32: 2689962.1 | T32: =IFERROR(ROUND(S32*IF(VLOOKUP("UT DELL EMC"&$V32&$C32,Consolidado!$A:$U,21,0)=1,19%,0),2),ROUND(S32*IF(VLOOKUP("Catalogo principal"&$V32&$C32,Consolidado!$A:$U,21,0)=1,19%,0),2)) -> 511092.8 | U32: 3201054.9 | V32: =IFERROR(VLOOKUP($C32&$E$18,Consolidado!$B:$U,5,0),VLOOKUP($C32&"Canal",Consolidado!$B:$U,5,0)) -> ACADÉMICO
A33: Microsoft®SQLSvrEnterpriseCore AllLng License/SoftwareAssurancePack MVL 2Licenses CoreLic_Additional ProductN/A | B33: 6 | C33: 7JQ-00341AP | E33: Microsoft®SQLSvrEnterpriseCore AllLng License/SoftwareAssurancePack MVL 2Licenses CoreLic_Additional Product | I33: Producto | J33: Unidad | K33: NA | L33: N/A | M33: N/A | N33: 7JQ-00341AP | O33: Suscripción Anual | P33: 2 | Q33: =IFERROR(VLOOKUP("UT DELL EMC"&$V33&$C33,temp!$A:$Y,19,0)*$J$18,VLOOKUP("Catalogo principal"&$V33&$C33,temp!$A:$Y,19,0)*$J$18) -> 5434284.9 | R33: 5637225 | S33: 11274450 | T33: =IFERROR(ROUND(S33*IF(VLOOKUP("UT DELL EMC"&$V33&$C33,Consolidado!$A:$U,21,0)=1,19%,0),2),ROUND(S33*IF(VLOOKUP("Catalogo principal"&$V33&$C33,Consolidado!$A:$U,21,0)=1,19%,0),2)) -> 2142145.5 | U33: 13416595.5 | V33: =IFERROR(VLOOKUP($C33&$E$18,Consolidado!$B:$U,5,0),VLOOKUP($C33&"Canal",Consolidado!$B:$U,5,0)) -> ACADÉMICO
A34: Microsoft®WindowsServerSTDCORE AllLng License/SoftwareAssurancePack MVL 2Licenses CoreLic_Additional ProductN/A | B34: 7 | C34: 9EM-00562AP | E34: Microsoft®WindowsServerSTDCORE AllLng License/SoftwareAssurancePack MVL 2Licenses CoreLic_Additional Product | I34: Producto | J34: Unidad | K34: NA | L34: N/A | M34: N/A | N34: 9EM-00562AP | O34: Suscripción Anual | P34: 200 | Q34: =IFERROR(VLOOKUP("UT DELL EMC"&$V34&$C34,temp!$A:$Y,19,0)*$J$18,VLOOKUP("Catalogo principal"&$V34&$C34,temp!$A:$Y,19,0)*$J$18) -> 30065.2 | R34: 31187.97 | S34: 6237594 | T34: =IFERROR(ROUND(S34*IF(VLOOKUP("UT DELL EMC"&$V34&$C34,Consolidado!$A:$U,21,0)=1,19%,0),2),ROUND(S34*IF(VLOOKUP("Catalogo principal"&$V34&$C34,Consolidado!$A:$U,21,0)=1,19%,0),2)) -> 1185142.86 | U34: 7422736.86 | V34: =IFERROR(VLOOKUP($C34&$E$18,Consolidado!$B:$U,5,0),VLOOKUP($C34&"Canal",Consolidado!$B:$U,5,0)) -> ACADÉMICO
A35: Microsoft® M365 EDU A3 Unified Shared ALNG MonthlySub MVL Per User STUUseBnftN/A | B35: 8 | C35: AAD-38397SUB | E35: Microsoft® M365 EDU A3 Unified Shared ALNG MonthlySub MVL Per User STUUseBnft | I35: Producto | J35: Unidad | K35: NA | L35: N/A | M35: N/A | N35: AAD-38397SUB | O35: Suscripción mensual con pago anual | P35: 480000 | Q35: =IFERROR(VLOOKUP("UT DELL EMC"&$V35&$C35,temp!$A:$Y,19,0)*$J$18,VLOOKUP("Catalogo principal"&$V35&$C35,temp!$A:$Y,19,0)*$J$18) -> 0 | R35: 0 | S35: 0 | T35: =IFERROR(ROUND(S35*IF(VLOOKUP("UT DELL EMC"&$V35&$C35,Consolidado!$A:$U,21,0)=1,19%,0),2),ROUND(S35*IF(VLOOKUP("Catalogo principal"&$V35&$C35,Consolidado!$A:$U,21,0)=1,19%,0),2)) -> 0 | U35: 0 | V35: =IFERROR(VLOOKUP($C35&$E$18,Consolidado!$B:$U,5,0),VLOOKUP($C35&"Canal",Consolidado!$B:$U,5,0)) -> ACADÉMICO
B36: 1. Si requiere agregue o elimine fila | T36: Valor Total | U36: =ROUND(SUM($U$28:$U$35),2) -> 340638646.6
B39: Gravámenes adicionales*
B40: Si los hay, indique los gravámenes adicionales a los que está sujeta la Orden de Compra. Son gravámenes adicionales por ejemplo; estampillas y demás impuestos territoriales. Los impuestos como ICA y retención en la fuente NO son gravámenes adicionales.
B41: Gravámenes adicionales (estampillas)
B42: No | C42: Descripción | H42: Porcentaje
B43: 1 | C43: Estampilla Universidad Distrital Francisco Jose de Caldas 50 años | H43: 0.011
B44: 2 | C44: Estampilla Pro-cultura | H44: 0.005
B45: 3 | C45: Estampilla Adulto Mayor | H45: 0.02
F46: Total porcentaje: | H46: =SUM(H43:H45) -> 0.036
D47: Filas a agregar o eliminar Gravámenes:
D48: 1
... 1 more rows

Sheet Cotizacion
B1: Solicitud de Cotización Software Microsoft Enterprise Agreement y Licenciamiento Eduactivo
B3: =SolCotizacion!B3 -> Versión: | C3: =SolCotizacion!C3 -> 2020-06-02
B4: Información de la Entidad Compradora
B6: Nombre de la Entidad | E6: Universidad Distrital Francisco José de Caldas | K6: NIT | M6: 899.999.230-7
B8: Dirección de la Entidad | E8: Carrera 7 No. 40 B 53 | K8: Correo de contacto | M8: vicerrecadmin@udistrital.edu.co
B10: Municipio | E10: Bogotá D.C. | K10: Teléfono de contacto | M10: 323 93 00 EXT: 1816-1804
B12: Nombre funcionario Comprador | E12: Eduard Arnulfo Pinilla Rivera
B16: Solicitud de Cotización
B18: Categoría | E18: ACADÉMICO | I18: Valor TRM | J18: =SolCotizacion!J18 -> 3758.15 | M18: Fecha | N18: =SolCotizacion!N18 -> 2020-06-16
B20: Productos
A22: *Libros, revistas, cartillas y/o catálogo Segmento 1. | B22: =SolCotizacion!B22 -> ACADÉMICO
B24: Cantidad de filas:
B25: 1 | L25: Proveedor | N25: UT Soft-IG
B27: Item | C27: Código Catálogo | E27: Descripción del Producto | I27: Tipo | J27: Unidad | K27: Zona | L27: Asistencia | M27: Perfil | N27: Número de parte | O27: Forma de Pago | P27: cantidad | Q27: Precio Unitario | R27: Precio Unitario + Gravamen | S27: Descuento adicional | T27: Precio con Descuento | U27: Subtotal | V27: IVA | W27: Vr IVA | X27: Precio Total
A28: Microsoft®WinRmtDsktpSvcsCAL AllLng License/SoftwareAssurancePack MVL 1License DvcCAL_Additional ProductN/A | B28: 1 | C28: 6VC-01251AP | E28: Microsoft®WinRmtDsktpSvcsCAL AllLng License/SoftwareAssurancePack MVL 1License DvcCAL_Additional Product | I28: Producto | J28: Unidad | K28: NA | L28: N/A | M28: N/A | N28: 6VC-01251AP | O28: Suscripción Anual | P28: 300 | Q28: =IFERROR(VLOOKUP($N$25&$Y28&$C28,temp!$A:$Y,19,0)*$J$18,VLOOKUP("Catalogo principal"&$Y28&$C28,temp!$A:$Y,19,0)*$J$18) -> 41339.65 | R28: =ROUND(Q28/(1-(VLOOKUP("Total porcentaje:",$F:$H,3))),2) -> 42883.45 | S28: 0.204 | T28: =ROUND(R28*(1-S28),2) -> 34135.23 | U28: =ROUND(P28*T28,2) -> 10240569 | V28: Si | W28: =IF(V28="Si",U28*19%,0) -> 1945708.11 | X28: =U28+W28 -> 12186277.11 | Y28: =IFERROR(VLOOKUP($C28&$E$18,Consolidado!$B:$U,5,0),VLOOKUP($C28&"Canal",Consolidado!$B:$U,5,0)) -> ACADÉMICO
A29: Microsoft® M365 EDU A3 Unified Shared ALNG MonthlySub MVL Per User for CoreCAL_FacultyLevelAN/A | B29: 2 | C29: AAD-38392FACA | E29: Microsoft® M365 EDU A3 Unified Shared ALNG MonthlySub MVL Per User for CoreCAL_FacultyLevelA | I29: Producto | J29: Unidad | K29: NA | L29: N/A | M29: N/A | N29: AAD-38392FACA | O29: Suscripción mensual con pago anual | P29: 12000 | Q29: =IFERROR(VLOOKUP($N$25&$Y29&$C29,temp!$A:$Y,19,0)*$J$18,VLOOKUP("Catalogo principal"&$Y29&$C29,temp!$A:$Y,19,0)*$J$18) -> 18490.098 | R29: 19180.6 | S29: 0.204 | T29: 15267.76 | U29: 183213120 | W29: 0 | X29: 183213120 | Y29: =IFERROR(VLOOKUP($C29&$E$18,Consolidado!$B:$U,5,0),VLOOKUP($C29&"Canal",Consolidado!$B:$U,5,0)) -> ACADÉMICO
A30: Microsoft®VisioPlan2forEDU ShrdSvr AllLng MonthlySubscriptions-VolumeLicense MVL 1License PerUsr_Additional ProductN/A | B30: 3 | C30: P4U-00001AP | E30: Microsoft®VisioPlan2forEDU ShrdSvr AllLng MonthlySubscriptions-VolumeLicense MVL 1License PerUsr_Additional Product | I30: Producto | J30: Unidad | K30: NA | L30: N/A | M30: N/A | N30: P4U-00001AP | O30: Suscripción mensual con pago anual | P30: 720 | Q30: =IFERROR(VLOOKUP($N$25&$Y30&$C30,temp!$A:$Y,19,0)*$J$18,VLOOKUP("Catalogo principal"&$Y30&$C30,temp!$A:$Y,19,0)*$J$18) -> 8267.93 | R30: 8576.69 | S30: 0.204 | T30: 6827.05 | U30: 4915476 | W30: 0 | X30: 4915476 | Y30: =IFERROR(VLOOKUP($C30&$E$18,Consolidado!$B:$U,5,0),VLOOKUP($C30&"Canal",Consolidado!$B:$U,5,0)) -> ACADÉMICO
A31: Microsoft®ProjectPlan3EDU ShrdSvr AllLng MonthlySubscriptions-VolumeLicense MVL 1License PerUsr_Additional ProductN/A | B31: 4 | C31: 7MA-00001AP | E31: Microsoft®ProjectPlan3EDU ShrdSvr AllLng MonthlySubscriptions-VolumeLicense MVL 1License PerUsr_Additional Product | I31: Producto | J31: Unidad | K31: NA | L31: N/A | M31: N/A | N31: 7MA-00001AP | O31: Suscripción mensual con pago anual | P31: 720 | Q31: =IFERROR(VLOOKUP($N$25&$Y31&$C31,temp!$A:$Y,19,0)*$J$18,VLOOKUP("Catalogo principal"&$Y31&$C31,temp!$A:$Y,19,0)*$J$18) -> 22548.9 | R31: 23390.98 | S31: 0.204 | T31: 18619.22 | U31: 13405838.4 | W31: 0 | X31: 13405838.4 | Y31: =IFERROR(VLOOKUP($C31&$E$18,Consolidado!$B:$U,5,0),VLOOKUP($C31&"Canal",Consolidado!$B:$U,5,0)) -> ACADÉMICO
A32: Microsoft®ProjectProfessional AllLng License/SoftwareAssurancePack MVL 1License w/1ProjectSvrCAL_Additional ProductN/A | B32: 5 | C32: H30-00237AP | E32: Microsoft®ProjectProfessional AllLng License/SoftwareAssurancePack MVL 1License w/1ProjectSvrCAL_Additional Product | I32: Producto | J32: Unidad | K32: NA | L32: N/A | M32: N/A | N32: H30-00237AP | O32: Suscripción Anual | P32: 10 | Q32: =IFERROR(VLOOKUP($N$25&$Y32&$C32,temp!$A:$Y,19,0)*$J$18,VLOOKUP("Catalogo principal"&$Y32&$C32,temp!$A:$Y,19,0)*$J$18) -> 259312.35 | R32: 268996.21 | S32: 0.204 | T32: 214120.98 | U32: 2141209.8 | V32: Si | W32: 406829.862 | X32: 2548039.662 | Y32: =IFERROR(VLOOKUP($C32&$E$18,Consolidado!$B:$U,5,0),VLOOKUP($C32&"Canal",Consolidado!$B:$U,5,0)) -> ACADÉMICO
A33: Microsoft®SQLSvrEnterpriseCore AllLng License/SoftwareAssurancePack MVL 2Licenses CoreLic_Additional ProductN/A | B33: 6 | C33: 7JQ-00341AP | E33: Microsoft®SQLSvrEnterpriseCore AllLng License/SoftwareAssurancePack MVL 2Licenses CoreLic_Additional Product | I33: Producto | J33: Unidad | K33: NA | L33: N/A | M33: N/A | N33: 7JQ-00341AP | O33: Suscripción Anual | P33: 2 | Q33: =IFERROR(VLOOKUP($N$25&$Y33&$C33,temp!$A:$Y,19,0)*$J$18,VLOOKUP("Catalogo principal"&$Y33&$C33,temp!$A:$Y,19,0)*$J$18) -> 5434284.9 | R33: 5637225 | S33: 0.204 | T33: 4487231.1 | U33: 8974462.2 | V33: Si | W33: 1705147.818 | X33: 10679610.02 | Y33: =IFERROR(VLOOKUP($C33&$E$18,Consolidado!$B:$U,5,0),VLOOKUP($C33&"Canal",Consolidado!$B:$U,5,0)) -> ACADÉMICO
A34: Microsoft®WindowsServerSTDCORE AllLng License/SoftwareAssurancePack MVL 2Licenses CoreLic_Additional ProductN/A | B34: 7 | C34: 9EM-00562AP | E34: Microsoft®WindowsServerSTDCORE AllLng License/SoftwareAssurancePack MVL 2Licenses CoreLic_Additional Product | I34: Producto | J34: Unidad | K34: NA | L34: N/A | M34: N/A | N34: 9EM-00562AP | O34: Suscripción Anual | P34: 200 | Q34: =IFERROR(VLOOKUP($N$25&$Y34&$C34,temp!$A:$Y,19,0)*$J$18,VLOOKUP("Catalogo principal"&$Y34&$C34,temp!$A:$Y,19,0)*$J$18) -> 30065.2 | R34: 31187.97 | S34: 0.204 | T34: 24825.62 | U34: 4965124 | V34: Si | W34: 943373.56 | X34: 5908497.56 | Y34: =IFERROR(VLOOKUP($C34&$E$18,Consolidado!$B:$U,5,0),VLOOKUP($C34&"Canal",Consolidado!$B:$U,5,0)) -> ACADÉMICO
A35: Microsoft® M365 EDU A3 Unified Shared ALNG MonthlySub MVL Per User STUUseBnftN/A | B35: 8 | C35: AAD-38397SUB | E35: Microsoft® M365 EDU A3 Unified Shared ALNG MonthlySub MVL Per User STUUseBnft | I35: Producto | J35: Unidad | K35: NA | L35: N/A | M35: N/A | N35: AAD-38397SUB | O35: Suscripción mensual con pago anual | P35: 480000 | Q35: =IFERROR(VLOOKUP($N$25&$Y35&$C35,temp!$A:$Y,19,0)*$J$18,VLOOKUP("Catalogo principal"&$Y35&$C35,temp!$A:$Y,19,0)*$J$18) -> 0 | R35: 0 | T35: 0 | U35: 0 | W35: 0 | X35: 0 | Y35: =IFERROR(VLOOKUP($C35&$E$18,Consolidado!$B:$U,5,0),VLOOKUP($C35&"Canal",Consolidado!$B:$U,5,0)) -> ACADÉMICO
B36: 1. Si requiere agregue o elimine fila | W36: Valor Total | X36: =ROUND(SUM($X$28:$X$35),2) -> 232856858.8
B39: Gravámenes adicionales*
B40: Si los hay, indique los gravámenes adicionales a los que está sujeta la Orden de Compra. Son gravámenes adicionales por ejemplo; estampillas y demás impuestos territoriales. Los impuestos como ICA y retención en la fuente NO son gravámenes adicionales.
B41: Gravámenes adicionales (estampillas)
B42: No | C42: Descripción | H42: Porcentaje
B43: 1 | C43: Estampilla Universidad Distrital Francisco Jose de Caldas 50 años | H43: 0.011
B44: 2 | C44: Estampilla Pro-cultura | H44: 0.005
B45: 3 | C45: Estampilla Adulto Mayor | H45: 0.02
F46: Total porcentaje: | H46: =SUM(H43:H45) -> 0.036
D47: Filas a agregar o eliminar Gravámenes:
D48: 1

Sheet CSV (hidden)
A1: Tipo | B1: Cantidad | C1: CÃ³digo de unidad de medida* | D1: PosiciÃ³n | E1: Precio base | F1: Divisa | G1: DescripciÃ³n | H1: MercancÃ­a
A2: item | B2: 300 | C2: Und | E2: "42883,45" | F2: COP | G2: wms01--6VC-01251AP Microsoft®WinRmtDsktpSvcsCAL AllLng License/SoftwareAssurancePack MVL 1License DvcCAL_Additional Product
A3: item | B3: 12000 | C3: Und | E3: "19180,6" | F3: COP | G3: wms01--AAD-38392FACA Microsoft® M365 EDU A3 Unified Shared ALNG MonthlySub MVL Per User for CoreCAL_FacultyLevelA
A4: item | B4: 720 | C4: Und | E4: "8576,69" | F4: COP | G4: wms01--P4U-00001AP Microsoft®VisioPlan2forEDU ShrdSvr AllLng MonthlySubscriptions-VolumeLicense MVL 1License PerUsr_Additional Product
A5: item | B5: 720 | C5: Und | E5: "23390,98" | F5: COP | G5: wms01--7MA-00001AP Microsoft®ProjectPlan3EDU ShrdSvr AllLng MonthlySubscriptions-VolumeLicense MVL 1License PerUsr_Additional Product
A6: item | B6: 10 | C6: Und | E6: "268996,21" | F6: COP | G6: wms01--H30-00237AP Microsoft®ProjectProfessional AllLng License/SoftwareAssurancePack MVL 1License w/1ProjectSvrCAL_Additional Product
A7: item | B7: 2 | C7: Und | E7: "5637225" | F7: COP | G7: wms01--7JQ-00341AP Microsoft®SQLSvrEnterpriseCore AllLng License/SoftwareAssurancePack MVL 2Licenses CoreLic_Additional Product
A8: item | B8: 200 | C8: Und | E8: "31187,97" | F8: COP | G8: wms01--9EM-00562AP Microsoft®WindowsServerSTDCORE AllLng License/SoftwareAssurancePack MVL 2Licenses CoreLic_Additional Product
A9: item | B9: 480000 | C9: Und | E9: "0" | F9: COP | G9: wms01--AAD-38397SUB Microsoft® M365 EDU A3 Unified Shared ALNG MonthlySub MVL Per User STUUseBnft
A10: item | B10: 1 | C10: Und | E10: "54387683,06" | F10: COP | G10: wms01--IVA

Sheet Categorias (hidden)
A1: Categoría 1 | B1: Sistema Operativo, Plataforma, Nube e Infraestructura y Desarrollo Aplicaciones (Open – CSP)
A2: Categoría 2 | B2: Productividad Administración y análisis de datos (Open - CSP)
A3: Categoría 3 | B3: Movilidad (Open - CSP)
A4: Categoría 4 | B4: Aplicaciones empresariales (Open - CSP)
A5: Categoría 5 | B5: Campus (Educativo)
A6: Categoría 6 | B6: OVS (Educativo)
A7: Categoría 7 | B7: Open - CSP (Educativo)

Sheet Consolidado (hidden)
A1: LLAVE | B1: TEMP1 | C1: TEMP2 | D1: PROVEEDOR | E1: Código matriz Colombia Compra Eficiente | F1: categoria | G1: PROVEEDOR2 | H1: Moneda | I1: Parametrización de los Servicios | J1: Nombre Producto | K1: Unidad de Medida | L1: Unidad TVEC | M1: Tipo | N1: Zona | O1: Asistencia | P1: Perfil | Q1: Número de parte | R1: Forma de Pago | S1: Precio | T1: Activo | U1: IVA | V1: Moneda | X1: Familia
A2: =D2&F2&E2 -> Catalogo principalACADÉMICO125-00110AP | B2: =E2&F2 -> 125-00110APACADÉMICO | D2: Catalogo principal | E2: 125-00110AP | F2: ACADÉMICO | G2: =D2 -> Catalogo principal | H2: USD | I2: N/A | J2: Microsoft®AzureDevOpsServer AllLng License/SoftwareAssurancePack MVL 1License_Additional Product | K2: Unidad | L2: Und | M2: Producto | N2: NA | O2: N/A | P2: N/A | Q2: 125-00110AP | R2: Suscripción Anual | S2: 41 | T2: 1 | U2: 1 | V2: =H2 -> USD | W2: =IF(U2="NO",0,IF(U2="SI",1)) -> FALSE | X2: Azure DevOps Server
A3: =D3&F3&E3 -> Catalogo principalACADÉMICO126-00156AP | B3: =E3&F3 -> 126-00156APACADÉMICO | D3: Catalogo principal | E3: 126-00156AP | F3: ACADÉMICO | G3: =D3 -> Catalogo principal | H3: USD | I3: N/A | J3: Microsoft®AzureDevOpsServerCAL AllLng License/SoftwareAssurancePack MVL 1License DvcCAL_Additional Product | K3: Unidad | L3: Und | M3: Producto | N3: NA | O3: N/A | P3: N/A | Q3: 126-00156AP | R3: Suscripción Anual | S3: 41 | T3: 1 | U3: 1 | V3: =H3 -> USD | W3: =IF(U3="NO",0,IF(U3="SI",1)) -> FALSE | X3: Azure DevOps Server CAL
A4: Catalogo principalACADÉMICO228-04437AP | B4: 228-04437APACADÉMICO | D4: Catalogo principal | E4: 228-04437AP | F4: ACADÉMICO | G4: Catalogo principal | H4: USD | I4: N/A | J4: Microsoft®SQLServerStandardEdition AllLng License/SoftwareAssurancePack MVL 1License_Additional Product | K4: Unidad | L4: Und | M4: Producto | N4: NA | O4: N/A | P4: N/A | Q4: 228-04437AP | R4: Suscripción Anual | S4: 95 | T4: 1 | U4: 1 | V4: USD | W4: FALSE | X4: SQL Server Standard Edition
A5: Catalogo principalACADÉMICO2ER-00003AP | B5: 2ER-00003APACADÉMICO | D5: Catalogo principal | E5: 2ER-00003AP | F5: ACADÉMICO | G5: Catalogo principal | H5: USD | I5: N/A | J5: Microsoft®CloudAppSecurity ShrdSvr AllLng MonthlySubscriptions-VolumeLicense MVL 1License PerUsr Education_Additional Product | K5: Unidad | L5: Und | M5: Producto | N5: NA | O5: N/A | P5: N/A | Q5: 2ER-00003AP | R5: Suscripción mensual con pago anual | S5: 0.9 | T5: 1 | U5: 1 | V5: USD | W5: FALSE | X5: Cloud App Security
A6: Catalogo principalACADÉMICO2ER-00003STU | B6: 2ER-00003STUACADÉMICO | D6: Catalogo principal | E6: 2ER-00003STU | F6: ACADÉMICO | G6: Catalogo principal | H6: USD | I6: N/A | J6: Microsoft®CloudAppSecurity ShrdSvr AllLng MonthlySubscriptions-VolumeLicense MVL 1License PerUsr Education_Student | K6: Unidad | L6: Und | M6: Producto | N6: NA | O6: N/A | P6: N/A | Q6: 2ER-00003STU | R6: Suscripción mensual con pago anual | S6: 0.5 | T6: 1 | U6: 1 | V6: USD | W6: FALSE | X6: Cloud App Security
A7: Catalogo principalACADÉMICO2FJ-00001FACA | B7: 2FJ-00001FACAACADÉMICO | D7: Catalogo principal | E7: 2FJ-00001FACA | F7: ACADÉMICO | G7: Catalogo principal | H7: USD | I7: N/A | J7: Microsoft®OfficeProPlusEducation AllLng License/SoftwareAssurancePack MVL 1License Pre2017EES_FacultyLevelA | K7: Unidad | L7: Und | M7: Producto | N7: NA | O7: N/A | P7: N/A | Q7: 2FJ-00001FACA | R7: Suscripción Anual | S7: 30 | T7: 1 | U7: 1 | V7: USD | W7: FALSE | X7: Office Pro Plus Education
A8: Catalogo principalACADÉMICO2FJ-00001FACB | B8: 2FJ-00001FACBACADÉMICO | D8: Catalogo principal | E8: 2FJ-00001FACB | F8: ACADÉMICO | G8: Catalogo principal | H8: USD | I8: N/A | J8: Microsoft®OfficeProPlusEducation AllLng License/SoftwareAssurancePack MVL 1License Pre2017EES_FacultyLevelB | K8: Unidad | L8: Und | M8: Producto | N8: NA | O8: N/A | P8: N/A | Q8: 2FJ-00001FACB | R8: Suscripción Anual | S8: 27 | T8: 1 | U8: 1 | V8: USD | W8: FALSE | X8: Office Pro Plus Education
A9: Catalogo principalACADÉMICO2FJ-00001FACC | B9: 2FJ-00001FACCACADÉMICO | D9: Catalogo principal | E9: 2FJ-00001FACC | F9: ACADÉMICO | G9: Catalogo principal | H9: USD | I9: N/A | J9: Microsoft®OfficeProPlusEducation AllLng License/SoftwareAssurancePack MVL 1License Pre2017EES_FacultyLevelC | K9: Unidad | L9: Und | M9: Producto | N9: NA | O9: N/A | P9: N/A | Q9: 2FJ-00001FACC | R9: Suscripción Anual | S9: 25 | T9: 1 | U9: 1 | V9: USD | W9: FALSE | X9: Office Pro Plus Education
A10: Catalogo principalACADÉMICO2FJ-00001FACD | B10: 2FJ-00001FACDACADÉMICO | D10: Catalogo principal | E10: 2FJ-00001FACD | F10: ACADÉMICO | G10: Catalogo principal | H10: USD | I10: N/A | J10: Microsoft®OfficeProPlusEducation AllLng License/SoftwareAssurancePack MVL 1License Pre2017EES_FacultyLevelD | K10: Unidad | L10: Und | M10: Producto | N10: NA | O10: N/A | P10: N/A | Q10: 2FJ-00001FACD | R10: Suscripción Anual | S10: 24 | T10: 1 | U10: 1 | V10: USD | W10: FALSE | X10: Office Pro Plus Education
A11: Catalogo principalACADÉMICO2FJ-00001STUA | B11: 2FJ-00001STUAACADÉMICO | D11: Catalogo principal | E11: 2FJ-00001STUA | F11: ACADÉMICO | G11: Catalogo principal | H11: USD | I11: N/A | J11: Microsoft®OfficeProPlusEducation AllLng License/SoftwareAssurancePack MVL 1License Pre2017EES_StudentLevelA | K11: Unidad | L11: Und | M11: Producto | N11: NA | O11: N/A | P11: N/A | Q11: 2FJ-00001STUA | R11: Suscripción Anual | S11: 19 | T11: 1 | U11: 1 | V11: USD | W11: FALSE | X11: Office Pro Plus Education
A12: Catalogo principalACADÉMICO2FJ-00001STUB | B12: 2FJ-00001STUBACADÉMICO | D12: Catalogo principal | E12: 2FJ-00001STUB | F12: ACADÉMICO | G12: Catalogo principal | H12: USD | I12: N/A | J12: Microsoft®OfficeProPlusEducation AllLng License/SoftwareAssurancePack MVL 1License Pre2017EES_StudentLevelB | K12: Unidad | L12: Und | M12: Producto | N12: NA | O12: N/A | P12: N/A | Q12: 2FJ-00001STUB | R12: Suscripción Anual | S12: 18 | T12: 1 | U12: 1 | V12: USD | W12: FALSE | X12: Office Pro Plus Education
A13: Catalogo principalACADÉMICO2FJ-00001STUC | B13: 2FJ-00001STUCACADÉMICO | D13: Catalogo principal | E13: 2FJ-00001STUC | F13: ACADÉMICO | G13: Catalogo principal | H13: USD | I13: N/A | J13: Microsoft®OfficeProPlusEducation AllLng License/SoftwareAssurancePack MVL 1License Pre2017EES_StudentLevelC | K13: Unidad | L13: Und | M13: Producto | N13: NA | O13: N/A | P13: N/A | Q13: 2FJ-00001STUC | R13: Suscripción Anual | S13: 17 | T13: 1 | U13: 1 | V13: USD | W13: FALSE | X13: Office Pro Plus Education
A14: Catalogo principalACADÉMICO2FJ-00001STUD | B14: 2FJ-00001STUDACADÉMICO | D14: Catalogo principal | E14: 2FJ-00001STUD | F14: ACADÉMICO | G14: Catalogo principal | H14: USD | I14: N/A | J14: Microsoft®OfficeProPlusEducation AllLng License/SoftwareAssurancePack MVL 1License Pre2017EES_StudentLevelD | K14: Unidad | L14: Und | M14: Producto | N14: NA | O14: N/A | P14: N/A | Q14: 2FJ-00001STUD | R14: Suscripción Anual | S14: 16 | T14: 1 | U14: 1 | V14: USD | W14: FALSE | X14: Office Pro Plus Education
A15: Catalogo principalACADÉMICO2UJ-00001FACA | B15: 2UJ-00001FACAACADÉMICO | D15: Catalogo principal | E15: 2UJ-00001FACA | F15: ACADÉMICO | G15: Catalogo principal | H15: USD | I15: N/A | J15: Microsoft®DesktopEducation AllLng License/SoftwareAssurancePack MVL 1License Pre2017EES_FacultyLevelA | K15: Unidad | L15: Und | M15: Producto | N15: NA | O15: N/A | P15: N/A | Q15: 2UJ-00001FACA | R15: Suscripción Anual | S15: 62 | T15: 1 | U15: 1 | V15: USD | W15: FALSE | X15: Desktop Education
A16: Catalogo principalACADÉMICO2UJ-00001FACB | B16: 2UJ-00001FACBACADÉMICO | D16: Catalogo principal | E16: 2UJ-00001FACB | F16: ACADÉMICO | G16: Catalogo principal | H16: USD | I16: N/A | J16: Microsoft®DesktopEducation AllLng License/SoftwareAssurancePack MVL 1License Pre2017EES_FacultyLevelB | K16: Unidad | L16: Und | M16: Producto | N16: NA | O16: N/A | P16: N/A | Q16: 2UJ-00001FACB | R16: Suscripción Anual | S16: 57 | T16: 1 | U16: 1 | V16: USD | W16: FALSE | X16: Desktop Education
A17: Catalogo principalACADÉMICO2UJ-00001FACC | B17: 2UJ-00001FACCACADÉMICO | D17: Catalogo principal | E17: 2UJ-00001FACC | F17: ACADÉMICO | G17: Catalogo principal | H17: USD | I17: N/A | J17: Microsoft®DesktopEducation AllLng License/SoftwareAssurancePack MVL 1License Pre2017EES_FacultyLevelC | K17: Unidad | L17: Und | M17: Producto | N17: NA | O17: N/A | P17: N/A | Q17: 2UJ-00001FACC | R17: Suscripción Anual | S17: 53 | T17: 1 | U17: 1 | V17: USD | W17: FALSE | X17: Desktop Education
A18: Catalogo principalACADÉMICO2UJ-00001FACD | B18: 2UJ-00001FACDACADÉMICO | D18: Catalogo principal | E18: 2UJ-00001FACD | F18: ACADÉMICO | G18: Catalogo principal | H18: USD | I18: N/A | J18: Microsoft®DesktopEducation AllLng License/SoftwareAssurancePack MVL 1License Pre2017EES_FacultyLevelD | K18: Unidad | L18: Und | M18: Producto | N18: NA | O18: N/A | P18: N/A | Q18: 2UJ-00001FACD | R18: Suscripción Anual | S18: 51 | T18: 1 | U18: 1 | V18: USD | W18: FALSE | X18: Desktop Education
A19: Catalogo principalACADÉMICO2UJ-00001STUA | B19: 2UJ-00001STUAACADÉMICO | D19: Catalogo principal | E19: 2UJ-00001STUA | F19: ACADÉMICO | G19: Catalogo principal | H19: USD | I19: N/A | J19: Microsoft®DesktopEducation AllLng License/SoftwareAssurancePack MVL 1License Pre2017EES_StudentLevelA | K19: Unidad | L19: Und | M19: Producto | N19: NA | O19: N/A | P19: N/A | Q19: 2UJ-00001STUA | R19: Suscripción Anual | S19: 23 | T19: 1 | U19: 1 | V19: USD | W19: FALSE | X19: Desktop Education
A20: Catalogo principalACADÉMICO2UJ-00001STUB | B20: 2UJ-00001STUBACADÉMICO | D20: Catalogo principal | E20: 2UJ-00001STUB | F20: ACADÉMICO | G20: Catalogo principal | H20: USD | I20: N/A | J20: Microsoft®DesktopEducation AllLng License/SoftwareAssurancePack MVL 1License Pre2017EES_StudentLevelB | K20: Unidad | L20: Und | M20: Producto | N20: NA | O20: N/A | P20: N/A | Q20: 2UJ-00001STUB | R20: Suscripción Anual | S20: 22 | T20: 1 | U20: 1 | V20: USD | W20: FALSE | X20: Desktop Education
A21: Catalogo principalACADÉMICO2UJ-00001STUC | B21: 2UJ-00001STUCACADÉMICO | D21: Catalogo principal | E21: 2UJ-00001STUC | F21: ACADÉMICO | G21: Catalogo principal | H21: USD | I21: N/A | J21: Microsoft®DesktopEducation AllLng License/SoftwareAssurancePack MVL 1License Pre2017EES_StudentLevelC | K21: Unidad | L21: Und | M21: Producto | N21: NA | O21: N/A | P21: N/A | Q21: 2UJ-00001STUC | R21: Suscripción Anual | S21: 20 | T21: 1 | U21: 1 | V21: USD | W21: FALSE | X21: Desktop Education
A22: Catalogo principalACADÉMICO2UJ-00001STUD | B22: 2UJ-00001STUDACADÉMICO | D22: Catalogo principal | E22: 2UJ-00001STUD | F22: ACADÉMICO | G22: Catalogo principal | H22: USD | I22: N/A | J22: Microsoft®DesktopEducation AllLng License/SoftwareAssurancePack MVL 1License Pre2017EES_StudentLevelD | K22: Unidad | L22: Und | M22: Producto | N22: NA | O22: N/A | P22: N/A | Q22: 2UJ-00001STUD | R22: Suscripción Anual | S22: 19 | T22: 1 | U22: 1 | V22: USD | W22: FALSE | X22: Desktop Education
A23: Catalogo principalACADÉMICO2UJ-00003FACA | B23: 2UJ-00003FACAACADÉMICO | D23: Catalogo principal | E23: 2UJ-00003FACA | F23: ACADÉMICO | G23: Catalogo principal | H23: USD | I23: N/A | J23: Microsoft®DesktopEducation AllLng License/SoftwareAssurancePack MVL 1License Pre2017EES ECAL_FacultyLevelA | K23: Unidad | L23: Und | M23: Producto | N23: NA | O23: N/A | P23: N/A | Q23: 2UJ-00003FACA | R23: Suscripción Anual | S23: 72 | T23: 1 | U23: 1 | V23: USD | W23: FALSE | X23: Desktop Education
A24: Catalogo principalACADÉMICO2UJ-00003FACB | B24: 2UJ-00003FACBACADÉMICO | D24: Catalogo principal | E24: 2UJ-00003FACB | F24: ACADÉMICO | G24: Catalogo principal | H24: USD | I24: N/A | J24: Microsoft®DesktopEducation AllLng License/SoftwareAssurancePack MVL 1License Pre2017EES ECAL_FacultyLevelB | K24: Unidad | L24: Und | M24: Producto | N24: NA | O24: N/A | P24: N/A | Q24: 2UJ-00003FACB | R24: Suscripción Anual | S24: 67 | T24: 1 | U24: 1 | V24: USD | W24: FALSE | X24: Desktop Education
A25: Catalogo principalACADÉMICO2UJ-00003FACC | B25: 2UJ-00003FACCACADÉMICO | D25: Catalogo principal | E25: 2UJ-00003FACC | F25: ACADÉMICO | G25: Catalogo principal | H25: USD | I25: N/A | J25: Microsoft®DesktopEducation AllLng License/SoftwareAssurancePack MVL 1License Pre2017EES ECAL_FacultyLevelC | K25: Unidad | L25: Und | M25: Producto | N25: NA | O25: N/A | P25: N/A | Q25: 2UJ-00003FACC | R25: Suscripción Anual | S25: 62 | T25: 1 | U25: 1 | V25: USD | W25: FALSE | X25: Desktop Education
A26: Catalogo principalACADÉMICO2UJ-00003FACD | B26: 2UJ-00003FACDACADÉMICO | D26: Catalogo principal | E26: 2UJ-00003FACD | F26: ACADÉMICO | G26: Catalogo principal | H26: USD | I26: N/A | J26: Microsoft®DesktopEducation AllLng License/SoftwareAssurancePack MVL 1License Pre2017EES ECAL_FacultyLevelD | K26: Unidad | L26: Und | M26: Producto | N26: NA | O26: N/A | P26: N/A | Q26: 2UJ-00003FACD | R26: Suscripción Anual | S26: 59 | T26: 1 | U26: 1 | V26: USD | W26: FALSE | X26: Desktop Education
A27: Catalogo principalACADÉMICO2UJ-00003STUA | B27: 2UJ-00003STUAACADÉMICO | D27: Catalogo principal | E27: 2UJ-00003STUA | F27: ACADÉMICO | G27: Catalogo principal | H27: USD | I27: N/A | J27: Microsoft®DesktopEducation AllLng License/SoftwareAssurancePack MVL 1License Pre2017EES ECAL_StudentLevelA | K27: Unidad | L27: Und | M27: Producto | N27: NA | O27: N/A | P27: N/A | Q27: 2UJ-00003STUA | R27: Suscripción Anual | S27: 35 | T27: 1 | U27: 1 | V27: USD | W27: FALSE | X27: Desktop Education
A28: Catalogo principalACADÉMICO2UJ-00003STUB | B28: 2UJ-00003STUBACADÉMICO | D28: Catalogo principal | E28: 2UJ-00003STUB | F28: ACADÉMICO | G28: Catalogo principal | H28: USD | I28: N/A | J28: Microsoft®DesktopEducation AllLng License/SoftwareAssurancePack MVL 1License Pre2017EES ECAL_StudentLevelB | K28: Unidad | L28: Und | M28: Producto | N28: NA | O28: N/A | P28: N/A | Q28: 2UJ-00003STUB | R28: Suscripción Anual | S28: 33 | T28: 1 | U28: 1 | V28: USD | W28: FALSE | X28: Desktop Education
A29: Catalogo principalACADÉMICO2UJ-00003STUC | B29: 2UJ-00003STUCACADÉMICO | D29: Catalogo principal | E29: 2UJ-00003STUC | F29: ACADÉMICO | G29: Catalogo principal | H29: USD | I29: N/A | J29: Microsoft®DesktopEducation AllLng License/SoftwareAssurancePack MVL 1License Pre2017EES ECAL_StudentLevelC | K29: Unidad | L29: Und | M29: Producto | N29: NA | O29: N/A | P29: N/A | Q29: 2UJ-00003STUC | R29: Suscripción Anual | S29: 30 | T29: 1 | U29: 1 | V29: USD | W29: FALSE | X29: Desktop Education
A30: Catalogo principalACADÉMICO2UJ-00003STUD | B30: 2UJ-00003STUDACADÉMICO | D30: Catalogo principal | E30: 2UJ-00003STUD | F30: ACADÉMICO | G30: Catalogo principal | H30: USD | I30: N/A | J30: Microsoft®DesktopEducation AllLng License/SoftwareAssurancePack MVL 1License Pre2017EES ECAL_StudentLevelD | K30: Unidad | L30: Und | M30: Producto | N30: NA | O30: N/A | P30: N/A | Q30: 2UJ-00003STUD | R30: Suscripción Anual | S30: 29 | T30: 1 | U30: 1 | V30: USD | W30: FALSE | X30: Desktop Education
A31: Catalogo principalACADÉMICO2UJ-00004FACA | B31: 2UJ-00004FACAACADÉMICO | D31: Catalogo principal | E31: 2UJ-00004FACA | F31: ACADÉMICO | G31: Catalogo principal | H31: USD | I31: N/A | J31: Microsoft®DesktopEducation AllLng SAStepUp MVL 1License Pre2017EES ECAL_FacultyLevelA | K31: Unidad | L31: Und | M31: Producto | N31: NA | O31: N/A | P31: N/A | Q31: 2UJ-00004FACA | R31: Suscripción Anual | S31: 11 | T31: 1 | U31: 1 | V31: USD | W31: FALSE | X31: Desktop Education
A32: Catalogo principalACADÉMICO2UJ-00004FACB | B32: 2UJ-00004FACBACADÉMICO | D32: Catalogo principal | E32: 2UJ-00004FACB | F32: ACADÉMICO | G32: Catalogo principal | H32: USD | I32: N/A | J32: Microsoft®DesktopEducation AllLng SAStepUp MVL 1License Pre2017EES ECAL_FacultyLevelB | K32: Unidad | L32: Und | M32: Producto | N32: NA | O32: N/A | P32: N/A | Q32: 2UJ-00004FACB | R32: Suscripción Anual | S32: 10 | T32: 1 | U32: 1 | V32: USD | W32: FALSE | X32: Desktop Education
A33: Catalogo principalACADÉMICO2UJ-00004FACC | B33: 2UJ-00004FACCACADÉMICO | D33: Catalogo principal | E33: 2UJ-00004FACC | F33: ACADÉMICO | G33: Catalogo principal | H33: USD | I33: N/A | J33: Microsoft®DesktopEducation AllLng SAStepUp MVL 1License Pre2017EES ECAL_FacultyLevelC | K33: Unidad | L33: Und | M33: Producto | N33: NA | O33: N/A | P33: N/A | Q33: 2UJ-00004FACC | R33: Suscripción Anual | S33: 9 | T33: 1 | U33: 1 | V33: USD | W33: FALSE | X33: Desktop Education
A34: Catalogo principalACADÉMICO2UJ-00004FACD | B34: 2UJ-00004FACDACADÉMICO | D34: Catalogo principal | E34: 2UJ-00004FACD | F34: ACADÉMICO | G34: Catalogo principal | H34: USD | I34: N/A | J34: Microsoft®DesktopEducation AllLng SAStepUp MVL 1License Pre2017EES ECAL_FacultyLevelD | K34: Unidad | L34: Und | M34: Producto | N34: NA | O34: N/A | P34: N/A | Q34: 2UJ-00004FACD | R34: Suscripción Anual | S34: 8 | T34: 1 | U34: 1 | V34: USD | W34: FALSE | X34: Desktop Education
A35: Catalogo principalACADÉMICO2UJ-00004STUA | B35: 2UJ-00004STUAACADÉMICO | D35: Catalogo principal | E35: 2UJ-00004STUA | F35: ACADÉMICO | G35: Catalogo principal | H35: USD | I35: N/A | J35: Microsoft®DesktopEducation AllLng SAStepUp MVL 1License Pre2017EES ECAL_StudentLevelA | K35: Unidad | L35: Und | M35: Producto | N35: NA | O35: N/A | P35: N/A | Q35: 2UJ-00004STUA | R35: Suscripción Anual | S35: 12 | T35: 1 | U35: 1 | V35: USD | W35: FALSE | X35: Desktop Education
A36: Catalogo principalACADÉMICO2UJ-00004STUB | B36: 2UJ-00004STUBACADÉMICO | D36: Catalogo principal | E36: 2UJ-00004STUB | F36: ACADÉMICO | G36: Catalogo principal | H36: USD | I36: N/A | J36: Microsoft®DesktopEducation AllLng SAStepUp MVL 1License Pre2017EES ECAL_StudentLevelB | K36: Unidad | L36: Und | M36: Producto | N36: NA | O36: N/A | P36: N/A | Q36: 2UJ-00004STUB | R36: Suscripción Anual | S36: 11 | T36: 1 | U36: 1 | V36: USD | W36: FALSE | X36: Desktop Education
A37: Catalogo principalACADÉMICO2UJ-00004STUC | B37: 2UJ-00004STUCACADÉMICO | D37: Catalogo principal | E37: 2UJ-00004STUC | F37: ACADÉMICO | G37: Catalogo principal | H37: USD | I37: N/A | J37: Microsoft®DesktopEducation AllLng SAStepUp MVL 1License Pre2017EES ECAL_StudentLevelC | K37: Unidad | L37: Und | M37: Producto | N37: NA | O37: N/A | P37: N/A | Q37: 2UJ-00004STUC | R37: Suscripción Anual | S37: 11 | T37: 1 | U37: 1 | V37: USD | W37: FALSE | X37: Desktop Education
A38: Catalogo principalACADÉMICO2UJ-00004STUD | B38: 2UJ-00004STUDACADÉMICO | D38: Catalogo principal | E38: 2UJ-00004STUD | F38: ACADÉMICO | G38: Catalogo principal | H38: USD | I38: N/A | J38: Microsoft®DesktopEducation AllLng SAStepUp MVL 1License Pre2017EES ECAL_StudentLevelD | K38: Unidad | L38: Und | M38: Producto | N38: NA | O38: N/A | P38: N/A | Q38: 2UJ-00004STUD | R38: Suscripción Anual | S38: 10 | T38: 1 | U38: 1 | V38: USD | W38: FALSE | X38: Desktop Education
A39: Catalogo principalACADÉMICO2ZA-00001SUB | B39: 2ZA-00001SUBACADÉMICO | D39: Catalogo principal | E39: 2ZA-00001SUB | F39: ACADÉMICO | G39: Catalogo principal | H39: USD | I39: N/A | J39: Microsoft®MinecraftEducation AllLng MonthlySubscriptions-VolumeLicense MVL 1License PerUsr STUUseBnft | K39: Unidad | L39: Und | M39: Producto | N39: NA | O39: N/A | P39: N/A | Q39: 2ZA-00001SUB | R39: Suscripción mensual con pago anual | S39: 0 | T39: 1 | U39: 1 | V39: USD | W39: FALSE | X39: Minecraft Education
A40: Catalogo principalACADÉMICO2ZA-00002AP | B40: 2ZA-00002APACADÉMICO | D40: Catalogo principal | E40: 2ZA-00002AP | F40: ACADÉMICO | G40: Catalogo principal | H40: USD | I40: N/A | J40: Microsoft®MinecraftEducation AllLng MonthlySubscriptions-VolumeLicense MVL 1License PerUsr_Additional Product | K40: Unidad | L40: Und | M40: Producto | N40: NA | O40: N/A | P40: N/A | Q40: 2ZA-00002AP | R40: Suscripción mensual con pago anual | S40: 0.42 | T40: 1 | U40: 1 | V40: USD | W40: FALSE | X40: Minecraft Education
A41: Catalogo principalACADÉMICO2ZA-00002FAC | B41: 2ZA-00002FACACADÉMICO | D41: Catalogo principal | E41: 2ZA-00002FAC | F41: ACADÉMICO | G41: Catalogo principal | H41: USD | I41: N/A | J41: Microsoft®MinecraftEducation AllLng MonthlySubscriptions-VolumeLicense MVL 1License PerUsr_Faculty | K41: Unidad | L41: Und | M41: Producto | N41: NA | O41: N/A | P41: N/A | Q41: 2ZA-00002FAC | R41: Suscripción mensual con pago anual | S41: 1.1 | T41: 1 | U41: 1 | V41: USD | W41: FALSE | X41: Minecraft Education
A42: Catalogo principalACADÉMICO2ZA-00002STU | B42: 2ZA-00002STUACADÉMICO | D42: Catalogo principal | E42: 2ZA-00002STU | F42: ACADÉMICO | G42: Catalogo principal | H42: USD | I42: N/A | J42: Microsoft®MinecraftEducation AllLng MonthlySubscriptions-VolumeLicense MVL 1License PerUsr_Student | K42: Unidad | L42: Und | M42: Producto | N42: NA | O42: N/A | P42: N/A | Q42: 2ZA-00002STU | R42: Suscripción mensual con pago anual | S42: 0.42 | T42: 1 | U42: 1 | V42: USD | W42: FALSE | X42: Minecraft Education
A43: Catalogo principalACADÉMICO2ZR-00001AP | B43: 2ZR-00001APACADÉMICO | D43: Catalogo principal | E43: 2ZR-00001AP | F43: ACADÉMICO | G43: Catalogo principal | H43: USD | I43: N/A | J43: Microsoft®O365AdvancedComplianceEDU ShrdSvr AllLng MonthlySubscriptions-VolumeLicense MVL 1License PerUser_Additional Product | K43: Unidad | L43: Und | M43: Producto | N43: NA | O43: N/A | P43: N/A | Q43: 2ZR-00001AP | R43: Suscripción mensual con pago anual | S43: 2.5 | T43: 1 | U43: 1 | V43: USD | W43: FALSE | X43: Office 365 Advanced Compliance EDU
A44: Catalogo principalACADÉMICO2ZR-00001STU | B44: 2ZR-00001STUACADÉMICO | D44: Catalogo principal | E44: 2ZR-00001STU | F44: ACADÉMICO | G44: Catalogo principal | H44: USD | I44: N/A | J44: Microsoft®O365AdvancedComplianceEDU ShrdSvr AllLng MonthlySubscriptions-VolumeLicense MVL 1License PerUser_Student | K44: Unidad | L44: Und | M44: Producto | N44: NA | O44: N/A | P44: N/A | Q44: 2ZR-00001STU | R44: Suscripción mensual con pago anual | S44: 2.15 | T44: 1 | U44: 1 | V44: USD | W44: FALSE | X44: Office 365 Advanced Compliance EDU
A45: Catalogo principalACADÉMICO312-02177AP | B45: 312-02177APACADÉMICO | D45: Catalogo principal | E45: 312-02177AP | F45: ACADÉMICO | G45: Catalogo principal | H45: USD | I45: N/A | J45: Microsoft®ExchangeServerStandard AllLng License/SoftwareAssurancePack MVL 1License_Additional Product | K45: Unidad | L45: Und | M45: Producto | N45: NA | O45: N/A | P45: N/A | Q45: 312-02177AP | R45: Suscripción Anual | S45: 75 | T45: 1 | U45: 1 | V45: USD | W45: FALSE | X45: Exchange Server - Standard
A46: Catalogo principalACADÉMICO32M-00001AP | B46: 32M-00001APACADÉMICO | D46: Catalogo principal | E46: 32M-00001AP | F46: ACADÉMICO | G46: Catalogo principal | H46: USD | I46: N/A | J46: Microsoft®MSMyAnalyticsEDU ShrdSvr AllLng MonthlySubscriptions-VolumeLicense MVL 1License PerUsr PerUser_Additional Product | K46: Unidad | L46: Und | M46: Producto | N46: NA | O46: N/A | P46: N/A | Q46: 32M-00001AP | R46: Suscripción mensual con pago anual | S46: 1.5 | T46: 1 | U46: 1 | V46: USD | W46: FALSE | X46: MS MyAnalytics EDU
A47: Catalogo principalACADÉMICO32M-00001STU | B47: 32M-00001STUACADÉMICO | D47: Catalogo principal | E47: 32M-00001STU | F47: ACADÉMICO | G47: Catalogo principal | H47: USD | I47: N/A | J47: Microsoft®MSMyAnalyticsEDU ShrdSvr AllLng MonthlySubscriptions-VolumeLicense MVL 1License PerUsr PerUser_Student | K47: Unidad | L47: Und | M47: Producto | N47: NA | O47: N/A | P47: N/A | Q47: 32M-00001STU | R47: Suscripción mensual con pago anual | S47: 1.12 | T47: 1 | U47: 1 | V47: USD | W47: FALSE | X47: MS MyAnalytics EDU
A48: Catalogo principalACADÉMICO359-00765AP | B48: 359-00765APACADÉMICO | D48: Catalogo principal | E48: 359-00765AP | F48: ACADÉMICO | G48: Catalogo principal | H48: USD | I48: N/A | J48: Microsoft®SQLCAL AllLng License/SoftwareAssurancePack MVL 1License DvcCAL_Additional Product | K48: Unidad | L48: Und | M48: Producto | N48: NA | O48: N/A | P48: N/A | Q48: 359-00765AP | R48: Suscripción Anual | S48: 22 | T48: 1 | U48: 1 | V48: USD | W48: FALSE | X48: SQL CAL
A49: Catalogo principalACADÉMICO359-00765FAC | B49: 359-00765FACACADÉMICO | D49: Catalogo principal | E49: 359-00765FAC | F49: ACADÉMICO | G49: Catalogo principal | H49: USD | I49: N/A | J49: Microsoft®SQLCAL AllLng License/SoftwareAssurancePack MVL 1License DvcCAL_Faculty | K49: Unidad | L49: Und | M49: Producto | N49: NA | O49: N/A | P49: N/A | Q49: 359-00765FAC | R49: Suscripción Anual | S49: 8 | T49: 1 | U49: 1 | V49: USD | W49: FALSE | X49: SQL CAL
A50: Catalogo principalACADÉMICO359-00765STU | B50: 359-00765STUACADÉMICO | D50: Catalogo principal | E50: 359-00765STU | F50: ACADÉMICO | G50: Catalogo principal | H50: USD | I50: N/A | J50: Microsoft®SQLCAL AllLng License/SoftwareAssurancePack MVL 1License DvcCAL_Student | K50: Unidad | L50: Und | M50: Producto | N50: NA | O50: N/A | P50: N/A | Q50: 359-00765STU | R50: Suscripción Anual | S50: 8 | T50: 1 | U50: 1 | V50: USD | W50: FALSE | X50: SQL CAL
A51: Catalogo principalACADÉMICO381-01587FAC | B51: 381-01587FACACADÉMICO | D51: Catalogo principal | E51: 381-01587FAC | F51: ACADÉMICO | G51: Catalogo principal | H51: USD | I51: N/A | J51: Microsoft®ExchangeStandardCAL AllLng License/SoftwareAssurancePack MVL 1License DvcCAL_Faculty | K51: Unidad | L51: Und | M51: Producto | N51: NA | O51: N/A | P51: N/A | Q51: 381-01587FAC | R51: Suscripción Anual | S51: 2.96 | T51: 1 | U51: 1 | V51: USD | W51: FALSE | X51: Exchange Standard CAL
A52: Catalogo principalACADÉMICO381-01587STU | B52: 381-01587STUACADÉMICO | D52: Catalogo principal | E52: 381-01587STU | F52: ACADÉMICO | G52: Catalogo principal | H52: USD | I52: N/A | J52: Microsoft®ExchangeStandardCAL AllLng License/SoftwareAssurancePack MVL 1License DvcCAL_Student | K52: Unidad | L52: Und | M52: Producto | N52: NA | O52: N/A | P52: N/A | Q52: 381-01587STU | R52: Suscripción Anual | S52: 0.78 | T52: 1 | U52: 1 | V52: USD | W52: FALSE | X52: Exchange Standard CAL
A53: Catalogo principalACADÉMICO395-02412AP | B53: 395-02412APACADÉMICO | D53: Catalogo principal | E53: 395-02412AP | F53: ACADÉMICO | G53: Catalogo principal | H53: USD | I53: N/A | J53: Microsoft®ExchangeServerEnterprise AllLng License/SoftwareAssurancePack MVL 1License_Additional Product | K53: Unidad | L53: Und | M53: Producto | N53: NA | O53: N/A | P53: N/A | Q53: 395-02412AP | R53: Suscripción Anual | S53: 426 | T53: 1 | U53: 1 | V53: USD | W53: FALSE | X53: Exchange Server - Enterprise
A54: Catalogo principalACADÉMICO395-03039AP | B54: 395-03039APACADÉMICO | D54: Catalogo principal | E54: 395-03039AP | F54: ACADÉMICO | G54: Catalogo principal | H54: USD | I54: N/A | J54: Microsoft®ExchangeServerEnterprise AllLng SAStepUp MVL 1License ExchangeServer-Standard_Additional Product | K54: Unidad | L54: Und | M54: Producto | N54: NA | O54: N/A | P54: N/A | Q54: 395-03039AP | R54: Suscripción Anual | S54: 352 | T54: 1 | U54: 1 | V54: USD | W54: FALSE | X54: Exchange Server - Enterprise
A55: Catalogo principalACADÉMICO3ND-00524FAC | B55: 3ND-00524FACACADÉMICO | D55: Catalogo principal | E55: 3ND-00524FAC | F55: ACADÉMICO | G55: Catalogo principal | H55: USD | I55: N/A | J55: Microsoft®SysCtrServiceMgrCltMgmtLic AllLng License/SoftwareAssurancePack MVL 1License PerOSE_Faculty | K55: Unidad | L55: Und | M55: Producto | N55: NA | O55: N/A | P55: N/A | Q55: 3ND-00524FAC | R55: Suscripción Anual | S55: 1.25 | T55: 1 | U55: 1 | V55: USD | W55: FALSE | X55: Sys Ctr Service Mgr Clt Mgmt Lic
A56: Catalogo principalACADÉMICO3ND-00524STU | B56: 3ND-00524STUACADÉMICO | D56: Catalogo principal | E56: 3ND-00524STU | F56: ACADÉMICO | G56: Catalogo principal | H56: USD | I56: N/A | J56: Microsoft®SysCtrServiceMgrCltMgmtLic AllLng License/SoftwareAssurancePack MVL 1License PerOSE_Student | K56: Unidad | L56: Und | M56: Producto | N56: NA | O56: N/A | P56: N/A | Q56: 3ND-00524STU | R56: Suscripción Anual | S56: 0.94 | T56: 1 | U56: 1 | V56: USD | W56: FALSE | X56: Sys Ctr Service Mgr Clt Mgmt Lic
A57: Catalogo principalACADÉMICO3R3-00001AP | B57: 3R3-00001APACADÉMICO | D57: Catalogo principal | E57: 3R3-00001AP | F57: ACADÉMICO | G57: Catalogo principal | H57: USD | I57: N/A | J57: Microsoft®AzureActiveDirectoryPremP1A ShrdSvr AllLng MonthlySubscriptions-VolumeLicense MVL 1License PerUsr_Additional Product | K57: Unidad | L57: Und | M57: Producto | N57: NA | O57: N/A | P57: N/A | Q57: 3R3-00001AP | R57: Suscripción mensual con pago anual | S57: 0.55 | T57: 1 | U57: 1 | V57: USD | W57: FALSE | X57: Azure Active Directory Prem P1 A
A58: Catalogo principalACADÉMICO3R3-00001STU | B58: 3R3-00001STUACADÉMICO | D58: Catalogo principal | E58: 3R3-00001STU | F58: ACADÉMICO | G58: Catalogo principal | H58: USD | I58: N/A | J58: Microsoft®AzureActiveDirectoryPremP1A ShrdSvr AllLng MonthlySubscriptions-VolumeLicense MVL 1License PerUsr_Student | K58: Unidad | L58: Und | M58: Producto | N58: NA | O58: N/A | P58: N/A | Q58: 3R3-00001STU | R58: Suscripción mensual con pago anual | S58: 0.22 | T58: 1 | U58: 1 | V58: USD | W58: FALSE | X58: Azure Active Directory Prem P1 A
A59: Catalogo principalACADÉMICO3R3-00004SUB | B59: 3R3-00004SUBACADÉMICO | D59: Catalogo principal | E59: 3R3-00004SUB | F59: ACADÉMICO | G59: Catalogo principal | H59: USD | I59: N/A | J59: Microsoft®AzureActiveDirectoryPremP1A ShrdSvr AllLng MonthlySubscriptions-VolumeLicense MVL 1License PerUsr STUUseBenefit | K59: Unidad | L59: Und | M59: Producto | N59: NA | O59: N/A | P59: N/A | Q59: 3R3-00004SUB | R59: Suscripción mensual con pago anual | S59: 0 | T59: 1 | U59: 1 | V59: USD | W59: FALSE | X59: Azure Active Directory Prem P1 A
A60: Catalogo principalACADÉMICO3VU-00043AP | B60: 3VU-00043APACADÉMICO | D60: Catalogo principal | E60: 3VU-00043AP | F60: ACADÉMICO | G60: Catalogo principal | H60: USD | I60: N/A | J60: Microsoft®MSDNPlatforms AllLng License/SoftwareAssurancePack MVL 1License_Additional Product | K60: Unidad | L60: Und | M60: Producto | N60: NA | O60: N/A | P60: N/A | Q60: 3VU-00043AP | R60: Suscripción Anual | S60: 156 | T60: 1 | U60: 1 | V60: USD | W60: FALSE | X60: MSDN Platforms
A61: Catalogo principalACADÉMICO3ZK-00193FAC | B61: 3ZK-00193FACACADÉMICO | D61: Catalogo principal | E61: 3ZK-00193FAC | F61: ACADÉMICO | G61: Catalogo principal | H61: USD | I61: N/A | J61: Microsoft®SysCtrOrchestratorSvr AllLng License/SoftwareAssurancePack MVL 1License PerOSE_Faculty | K61: Unidad | L61: Und | M61: Producto | N61: NA | O61: N/A | P61: N/A | Q61: 3ZK-00193FAC | R61: Suscripción Anual | S61: 1.25 | T61: 1 | U61: 1 | V61: USD | W61: FALSE | X61: Sys Ctr Orchestrator Svr
A62: Catalogo principalACADÉMICO3ZK-00193STU | B62: 3ZK-00193STUACADÉMICO | D62: Catalogo principal | E62: 3ZK-00193STU | F62: ACADÉMICO | G62: Catalogo principal | H62: USD | I62: N/A | J62: Microsoft®SysCtrOrchestratorSvr AllLng License/SoftwareAssurancePack MVL 1License PerOSE_Student | K62: Unidad | L62: Und | M62: Producto | N62: NA | O62: N/A | P62: N/A | Q62: 3ZK-00193STU | R62: Suscripción Anual | S62: 0.94 | T62: 1 | U62: 1 | V62: USD | W62: FALSE | X62: Sys Ctr Orchestrator Svr
A63: Catalogo principalACADÉMICO4ZF-00019AP | B63: 4ZF-00019APACADÉMICO | D63: Catalogo principal | E63: 4ZF-00019AP | F63: ACADÉMICO | G63: Catalogo principal | H63: USD | I63: N/A | J63: Microsoft®WINVDAPerDevice AllLng MonthlySubscriptions-VolumeLicense MVL 1License PerDvc_Additional Product | K63: Unidad | L63: Und | M63: Producto | N63: NA | O63: N/A | P63: N/A | Q63: 4ZF-00019AP | R63: Suscripción mensual con pago anual | S63: 3.34 | T63: 1 | U63: 1 | V63: USD | W63: FALSE | X63: WIN VDA Per Device
A64: Catalogo principalACADÉMICO54R-00098AP | B64: 54R-00098APACADÉMICO | D64: Catalogo principal | E64: 54R-00098AP | F64: ACADÉMICO | G64: Catalogo principal | H64: USD | I64: N/A | J64: Microsoft®MSImagineAcademy AllLng MonthlySubscriptions-VolumeLicense MVL 1License Srvcs_Additional Product | K64: Unidad | L64: Und | M64: Producto | N64: NA | O64: N/A | P64: N/A | Q64: 54R-00098AP | R64: Suscripción mensual con pago anual | S64: 84 | T64: 1 | U64: 1 | V64: USD | W64: FALSE | X64: MS Imagine Academy
A65: Catalogo principalACADÉMICO5HU-00215AP | B65: 5HU-00215APACADÉMICO | D65: Catalogo principal | E65: 5HU-00215AP | F65: ACADÉMICO | G65: Catalogo principal | H65: USD | I65: N/A | J65: Microsoft®SfBServer AllLng License/SoftwareAssurancePack MVL 1License_Additional Product | K65: Unidad | L65: Und | M65: Producto | N65: NA | O65: N/A | P65: N/A | Q65: 5HU-00215AP | R65: Suscripción Anual | S65: 384 | T65: 1 | U65: 1 | V65: USD | W65: FALSE | X65: SfB Server
A66: Catalogo principalACADÉMICO5RS-00002AP | B66: 5RS-00002APACADÉMICO | D66: Catalogo principal | E66: 5RS-00002AP | F66: ACADÉMICO | G66: Catalogo principal | H66: USD | I66: N/A | J66: Microsoft®ExchangeOnlinePlan1forEDU ShrdSvr AllLng MonthlySubscriptions-VolumeLicense MVL 1License PerUsr Alumni_Additional Product | K66: Unidad | L66: Und | M66: Producto | N66: NA | O66: N/A | P66: N/A | Q66: 5RS-00002AP | R66: Suscripción mensual con pago anual | S66: 0 | T66: 1 | U66: 1 | V66: USD | W66: FALSE | X66: Exchange Online Plan1 forEDU
A67: =D67&F67&E67 -> Catalogo principalACADÉMICO5WS-00001AP | B67: =E67&F67 -> 5WS-00001APACADÉMICO | D67: Catalogo principal | E67: 5WS-00001AP | F67: ACADÉMICO | G67: =D67 -> Catalogo principal | H67: USD | I67: N/A | J67: Microsoft®ExchOnlineArchExchOnlineforEDU ShrdSvr AllLng MonthlySubscriptions-VolumeLicense MVL 1License PerUsr_Additional Product | K67: Unidad | L67: Und | M67: Producto | N67: NA | O67: N/A | P67: N/A | Q67: 5WS-00001AP | R67: Suscripción mensual con pago anual | S67: 1 | T67: 1 | U67: 1 | V67: =H67 -> USD | W67: =IF(U67="NO",0,IF(U67="SI",1)) -> FALSE | X67: Exch Online Arch Exch Online forEDU
A68: Catalogo principalACADÉMICO5WS-00001STU | B68: 5WS-00001STUACADÉMICO | D68: Catalogo principal | E68: 5WS-00001STU | F68: ACADÉMICO | G68: Catalogo principal | H68: USD | I68: N/A | J68: Microsoft®ExchOnlineArchExchOnlineforEDU ShrdSvr AllLng MonthlySubscriptions-VolumeLicense MVL 1License PerUsr_Student | K68: Unidad | L68: Und | M68: Producto | N68: NA | O68: N/A | P68: N/A | Q68: 5WS-00001STU | R68: Suscripción mensual con pago anual | S68: 1 | T68: 1 | U68: 1 | V68: USD | W68: FALSE | X68: Exch Online Arch Exch Online forEDU
A69: Catalogo principalACADÉMICO5XS-00001FACA | B69: 5XS-00001FACAACADÉMICO | D69: Catalogo principal | E69: 5XS-00001FACA | F69: ACADÉMICO | G69: Catalogo principal | H69: USD | I69: N/A | J69: Microsoft®O365ProPlusforEDU ShrdSvr AllLng MonthlySubscriptions-VolumeLicense MVL 1License PerUsr_FacultyLevelA | K69: Unidad | L69: Und | M69: Producto | N69: NA | O69: N/A | P69: N/A | Q69: 5XS-00001FACA | R69: Suscripción mensual con pago anual | S69: 2.25 | T69: 1 | U69: 1 | V69: USD | W69: FALSE | X69: O365 ProPlus forEDU
A70: Catalogo principalACADÉMICO5XS-00001FACB | B70: 5XS-00001FACBACADÉMICO | D70: Catalogo principal | E70: 5XS-00001FACB | F70: ACADÉMICO | G70: Catalogo principal | H70: USD | I70: N/A | J70: Microsoft®O365ProPlusforEDU ShrdSvr AllLng MonthlySubscriptions-VolumeLicense MVL 1License PerUsr_FacultyLevelB | K70: Unidad | L70: Und | M70: Producto | N70: NA | O70: N/A | P70: N/A | Q70: 5XS-00001FACB | R70: Suscripción mensual con pago anual | S70: 2.1 | T70: 1 | U70: 1 | V70: USD | W70: FALSE | X70: O365 ProPlus forEDU
A71: Catalogo principalACADÉMICO5XS-00001FACC | B71: 5XS-00001FACCACADÉMICO | D71: Catalogo principal | E71: 5XS-00001FACC | F71: ACADÉMICO | G71: Catalogo principal | H71: USD | I71: N/A | J71: Microsoft®O365ProPlusforEDU ShrdSvr AllLng MonthlySubscriptions-VolumeLicense MVL 1License PerUsr_FacultyLevelC | K71: Unidad | L71: Und | M71: Producto | N71: NA | O71: N/A | P71: N/A | Q71: 5XS-00001FACC | R71: Suscripción mensual con pago anual | S71: 1.94 | T71: 1 | U71: 1 | V71: USD | W71: FALSE | X71: O365 ProPlus forEDU
A72: Catalogo principalACADÉMICO5XS-00001FACD | B72: 5XS-00001FACDACADÉMICO | D72: Catalogo principal | E72: 5XS-00001FACD | F72: ACADÉMICO | G72: Catalogo principal | H72: USD | I72: N/A | J72: Microsoft®O365ProPlusforEDU ShrdSvr AllLng MonthlySubscriptions-VolumeLicense MVL 1License PerUsr_FacultyLevelD | K72: Unidad | L72: Und | M72: Producto | N72: NA | O72: N/A | P72: N/A | Q72: 5XS-00001FACD | R72: Suscripción mensual con pago anual | S72: 1.82 | T72: 1 | U72: 1 | V72: USD | W72: FALSE | X72: O365 ProPlus forEDU
A73: Catalogo principalACADÉMICO5XS-00001STUA | B73: 5XS-00001STUAACADÉMICO | D73: Catalogo principal | E73: 5XS-00001STUA | F73: ACADÉMICO | G73: Catalogo principal | H73: USD | I73: N/A | J73: Microsoft®O365ProPlusforEDU ShrdSvr AllLng MonthlySubscriptions-VolumeLicense MVL 1License PerUsr_StudentLevelA | K73: Unidad | L73: Und | M73: Producto | N73: NA | O73: N/A | P73: N/A | Q73: 5XS-00001STUA | R73: Suscripción mensual con pago anual | S73: 1.75 | T73: 1 | U73: 1 | V73: USD | W73: FALSE | X73: O365 ProPlus forEDU
A74: Catalogo principalACADÉMICO5XS-00001STUB | B74: 5XS-00001STUBACADÉMICO | D74: Catalogo principal | E74: 5XS-00001STUB | F74: ACADÉMICO | G74: Catalogo principal | H74: USD | I74: N/A | J74: Microsoft®O365ProPlusforEDU ShrdSvr AllLng MonthlySubscriptions-VolumeLicense MVL 1License PerUsr_StudentLevelB | K74: Unidad | L74: Und | M74: Producto | N74: NA | O74: N/A | P74: N/A | Q74: 5XS-00001STUB | R74: Suscripción mensual con pago anual | S74: 1.63 | T74: 1 | U74: 1 | V74: USD | W74: FALSE | X74: O365 ProPlus forEDU
A75: Catalogo principalACADÉMICO5XS-00001STUC | B75: 5XS-00001STUCACADÉMICO | D75: Catalogo principal | E75: 5XS-00001STUC | F75: ACADÉMICO | G75: Catalogo principal | H75: USD | I75: N/A | J75: Microsoft®O365ProPlusforEDU ShrdSvr AllLng MonthlySubscriptions-VolumeLicense MVL 1License PerUsr_StudentLevelC | K75: Unidad | L75: Und | M75: Producto | N75: NA | O75: N/A | P75: N/A | Q75: 5XS-00001STUC | R75: Suscripción mensual con pago anual | S75: 1.51 | T75: 1 | U75: 1 | V75: USD | W75: FALSE | X75: O365 ProPlus forEDU
A76: Catalogo principalACADÉMICO5XS-00001STUD | B76: 5XS-00001STUDACADÉMICO | D76: Catalogo principal | E76: 5XS-00001STUD | F76: ACADÉMICO | G76: Catalogo principal | H76: USD | I76: N/A | J76: Microsoft®O365ProPlusforEDU ShrdSvr AllLng MonthlySubscriptions-VolumeLicense MVL 1License PerUsr_StudentLevelD | K76: Unidad | L76: Und | M76: Producto | N76: NA | O76: N/A | P76: N/A | Q76: 5XS-00001STUD | R76: Suscripción mensual con pago anual | S76: 1.41 | T76: 1 | U76: 1 | V76: USD | W76: FALSE | X76: O365 ProPlus forEDU
A77: Catalogo principalACADÉMICO5XS-00002SUB | B77: 5XS-00002SUBACADÉMICO | D77: Catalogo principal | E77: 5XS-00002SUB | F77: ACADÉMICO | G77: Catalogo principal | H77: USD | I77: N/A | J77: Microsoft®O365ProPlusforEDU ShrdSvr AllLng MonthlySubscriptions-VolumeLicense MVL 1License PerUsr STUUseBnft | K77: Unidad | L77: Und | M77: Producto | N77: NA | O77: N/A | P77: N/A | Q77: 5XS-00002SUB | R77: Suscripción mensual con pago anual | S77: 0 | T77: 1 | U77: 1 | V77: USD | W77: FALSE | X77: O365 ProPlus forEDU
A78: Catalogo principalACADÉMICO5XS-00003AP | B78: 5XS-00003APACADÉMICO | D78: Catalogo principal | E78: 5XS-00003AP | F78: ACADÉMICO | G78: Catalogo principal | H78: USD | I78: N/A | J78: Microsoft®O365ProPlusforEDU AllLng MonthlySubscriptions-VolumeLicense MVL 1License AddOn toOPP_Additional Product | K78: Unidad | L78: Und | M78: Producto | N78: NA | O78: N/A | P78: N/A | Q78: 5XS-00003AP | R78: Suscripción mensual con pago anual | S78: 0 | T78: 1 | U78: 1 | V78: USD | W78: FALSE | X78: O365 ProPlus forEDU
A79: Catalogo principalACADÉMICO5XS-00003STU | B79: 5XS-00003STUACADÉMICO | D79: Catalogo principal | E79: 5XS-00003STU | F79: ACADÉMICO | G79: Catalogo principal | H79: USD | I79: N/A | J79: Microsoft®O365ProPlusforEDU AllLng MonthlySubscriptions-VolumeLicense MVL 1License AddOn toOPP_Student | K79: Unidad | L79: Und | M79: Producto | N79: NA | O79: N/A | P79: N/A | Q79: 5XS-00003STU | R79: Suscripción mensual con pago anual | S79: 0 | T79: 1 | U79: 1 | V79: USD | W79: FALSE | X79: O365 ProPlus forEDU
A80: Catalogo principalACADÉMICO6E9-00001AP | B80: 6E9-00001APACADÉMICO | D80: Catalogo principal | E80: 6E9-00001AP | F80: ACADÉMICO | G80: Catalogo principal | H80: USD | I80: N/A | J80: Microsoft®AzureActiveDirectoryPremP2A ShrdSvr AllLng MonthlySubscriptions-VolumeLicense MVL 1License PerUsr_Additional Product | K80: Unidad | L80: Und | M80: Producto | N80: NA | O80: N/A | P80: N/A | Q80: 6E9-00001AP | R80: Suscripción mensual con pago anual | S80: 1.1 | T80: 1 | U80: 1 | V80: USD | W80: FALSE | X80: Azure Active Directory Prem P2 A
A81: Catalogo principalACADÉMICO6E9-00001STU | B81: 6E9-00001STUACADÉMICO | D81: Catalogo principal | E81: 6E9-00001STU | F81: ACADÉMICO | G81: Catalogo principal | H81: USD | I81: N/A | J81: Microsoft®AzureActiveDirectoryPremP2A ShrdSvr AllLng MonthlySubscriptions-VolumeLicense MVL 1License PerUsr_Student | K81: Unidad | L81: Und | M81: Producto | N81: NA | O81: N/A | P81: N/A | Q81: 6E9-00001STU | R81: Suscripción mensual con pago anual | S81: 0.83 | T81: 1 | U81: 1 | V81: USD | W81: FALSE | X81: Azure Active Directory Prem P2 A
A82: Catalogo principalACADÉMICO6E9-00002AP | B82: 6E9-00002APACADÉMICO | D82: Catalogo principal | E82: 6E9-00002AP | F82: ACADÉMICO | G82: Catalogo principal | H82: USD | I82: N/A | J82: Microsoft®AzureActiveDirectoryPremP2A ShrdSvr AllLng StepUp MVL 1License AzureActiveDirectoryPremP1A PerUsr_Additional Product | K82: Unidad | L82: Und | M82: Producto | N82: NA | O82: N/A | P82: N/A | Q82: 6E9-00002AP | R82: Suscripción mensual con pago anual | S82: 0.55 | T82: 1 | U82: 1 | V82: USD | W82: FALSE | X82: Azure Active Directory Prem P2 A
A83: Catalogo principalACADÉMICO6E9-00002STU | B83: 6E9-00002STUACADÉMICO | D83: Catalogo principal | E83: 6E9-00002STU | F83: ACADÉMICO | G83: Catalogo principal | H83: USD | I83: N/A | J83: Microsoft®AzureActiveDirectoryPremP2A ShrdSvr AllLng StepUp MVL 1License AzureActiveDirectoryPremP1A PerUsr_Student | K83: Unidad | L83: Und | M83: Producto | N83: NA | O83: N/A | P83: N/A | Q83: 6E9-00002STU | R83: Suscripción mensual con pago anual | S83: 0.61 | T83: 1 | U83: 1 | V83: USD | W83: FALSE | X83: Azure Active Directory Prem P2 A
A84: Catalogo principalACADÉMICO6E9-00004SUB | B84: 6E9-00004SUBACADÉMICO | D84: Catalogo principal | E84: 6E9-00004SUB | F84: ACADÉMICO | G84: Catalogo principal | H84: USD | I84: N/A | J84: Microsoft®AzureActiveDirectoryPremP2A ShrdSvr AllLng MonthlySubscriptions-VolumeLicense MVL 1License PerUsr STUUseBenefit | K84: Unidad | L84: Und | M84: Producto | N84: NA | O84: N/A | P84: N/A | Q84: 6E9-00004SUB | R84: Suscripción mensual con pago anual | S84: 0 | T84: 1 | U84: 1 | V84: USD | W84: FALSE | X84: Azure Active Directory Prem P2 A
A85: Catalogo principalACADÉMICO6MV-00003AP | B85: 6MV-00003APACADÉMICO | D85: Catalogo principal | E85: 6MV-00003AP | F85: ACADÉMICO | G85: Catalogo principal | H85: USD | I85: N/A | J85: Microsoft®ExchangeEntCALSrvcsforEdu AllLng MonthlySubscriptions-VolumeLicense MVL 1License PerUsr_Additional Product | K85: Unidad | L85: Und | M85: Producto | N85: NA | O85: N/A | P85: N/A | Q85: 6MV-00003AP | R85: Suscripción mensual con pago anual | S85: 0 | T85: 1 | U85: 1 | V85: USD | W85: FALSE | X85: Exchange Ent CAL Srvcs for Edu
A86: Catalogo principalACADÉMICO6MV-00003STU | B86: 6MV-00003STUACADÉMICO | D86: Catalogo principal | E86: 6MV-00003STU | F86: ACADÉMICO | G86: Catalogo principal | H86: USD | I86: N/A | J86: Microsoft®ExchangeEntCALSrvcsforEdu AllLng MonthlySubscriptions-VolumeLicense MVL 1License PerUsr_Student | K86: Unidad | L86: Und | M86: Producto | N86: NA | O86: N/A | P86: N/A | Q86: 6MV-00003STU | R86: Suscripción mensual con pago anual | S86: 0 | T86: 1 | U86: 1 | V86: USD | W86: FALSE | X86: Exchange Ent CAL Srvcs for Edu
A87: Catalogo principalACADÉMICO6QV-00003AP | B87: 6QV-00003APACADÉMICO | D87: Catalogo principal | E87: 6QV-00003AP | F87: ACADÉMICO | G87: Catalogo principal | H87: USD | I87: N/A | J87: Microsoft®EnterpriseCALSrvcsforEdu AllLng MonthlySubscriptions-VolumeLicense MVL 1License PerUsr_Additional Product | K87: Unidad | L87: Und | M87: Producto | N87: NA | O87: N/A | P87: N/A | Q87: 6QV-00003AP | R87: Suscripción mensual con pago anual | S87: 0 | T87: 1 | U87: 1 | V87: USD | W87: FALSE | X87: Enterprise CAL Srvcs for Edu
A88: Catalogo principalACADÉMICO6QV-00003STU | B88: 6QV-00003STUACADÉMICO | D88: Catalogo principal | E88: 6QV-00003STU | F88: ACADÉMICO | G88: Catalogo principal | H88: USD | I88: N/A | J88: Microsoft®EnterpriseCALSrvcsforEdu AllLng MonthlySubscriptions-VolumeLicense MVL 1License PerUsr_Student | K88: Unidad | L88: Und | M88: Producto | N88: NA | O88: N/A | P88: N/A | Q88: 6QV-00003STU | R88: Suscripción mensual con pago anual | S88: 0 | T88: 1 | U88: 1 | V88: USD | W88: FALSE | X88: Enterprise CAL Srvcs for Edu
A89: Catalogo principalACADÉMICO6VC-01251AP | B89: 6VC-01251APACADÉMICO | D89: Catalogo principal | E89: 6VC-01251AP | F89: ACADÉMICO | G89: Catalogo principal | H89: USD | I89: N/A | J89: Microsoft®WinRmtDsktpSvcsCAL AllLng License/SoftwareAssurancePack MVL 1License DvcCAL_Additional Product | K89: Unidad | L89: Und | M89: Producto | N89: NA | O89: N/A | P89: N/A | Q89: 6VC-01251AP | R89: Suscripción Anual | S89: 11 | T89: 1 | U89: 1 | V89: USD | W89: FALSE | X89: Win Rmt Dsktp Svcs CAL
A90: Catalogo principalACADÉMICO6VC-01251FAC | B90: 6VC-01251FACACADÉMICO | D90: Catalogo principal | E90: 6VC-01251FAC | F90: ACADÉMICO | G90: Catalogo principal | H90: USD | I90: N/A | J90: Microsoft®WinRmtDsktpSvcsCAL AllLng License/SoftwareAssurancePack MVL 1License DvcCAL_Faculty | K90: Unidad | L90: Und | M90: Producto | N90: NA | O90: N/A | P90: N/A | Q90: 6VC-01251FAC | R90: Suscripción Anual | S90: 8 | T90: 1 | U90: 1 | V90: USD | W90: FALSE | X90: Win Rmt Dsktp Svcs CAL
A91: Catalogo principalACADÉMICO6VC-01251STU | B91: 6VC-01251STUACADÉMICO | D91: Catalogo principal | E91: 6VC-01251STU | F91: ACADÉMICO | G91: Catalogo principal | H91: USD | I91: N/A | J91: Microsoft®WinRmtDsktpSvcsCAL AllLng License/SoftwareAssurancePack MVL 1License DvcCAL_Student | K91: Unidad | L91: Und | M91: Producto | N91: NA | O91: N/A | P91: N/A | Q91: 6VC-01251STU | R91: Suscripción Anual | S91: 4.52 | T91: 1 | U91: 1 | V91: USD | W91: FALSE | X91: Win Rmt Dsktp Svcs CAL
A92: Catalogo principalACADÉMICO6XC-00298AP | B92: 6XC-00298APACADÉMICO | D92: Catalogo principal | E92: 6XC-00298AP | F92: ACADÉMICO | G92: Catalogo principal | H92: USD | I92: N/A | J92: Microsoft®WinRmtDsktpSvcsExtConn AllLng License/SoftwareAssurancePack MVL 1License_Additional Product | K92: Unidad | L92: Und | M92: Producto | N92: NA | O92: N/A | P92: N/A | Q92: 6XC-00298AP | R92: Suscripción Anual | S92: 1071 | T92: 1 | U92: 1 | V92: USD | W92: FALSE | X92: Win Rmt Dsktp Svcs Ext Conn
A93: Catalogo principalACADÉMICO6YH-00575AP | B93: 6YH-00575APACADÉMICO | D93: Catalogo principal | E93: 6YH-00575AP | F93: ACADÉMICO | G93: Catalogo principal | H93: USD | I93: N/A | J93: Microsoft®SkypeforBusiness AllLng License/SoftwareAssurancePack MVL 1License_Additional Product | K93: Unidad | L93: Und | M93: Producto | N93: NA | O93: N/A | P93: N/A | Q93: 6YH-00575AP | R93: Suscripción Anual | S93: 2.18 | T93: 1 | U93: 1 | V93: USD | W93: FALSE | X93: Skype for Business
A94: Catalogo principalACADÉMICO6YH-00575STU | B94: 6YH-00575STUACADÉMICO | D94: Catalogo principal | E94: 6YH-00575STU | F94: ACADÉMICO | G94: Catalogo principal | H94: USD | I94: N/A | J94: Microsoft®SkypeforBusiness AllLng License/SoftwareAssurancePack MVL 1License_Student | K94: Unidad | L94: Und | M94: Producto | N94: NA | O94: N/A | P94: N/A | Q94: 6YH-00575STU | R94: Suscripción Anual | S94: 1.4 | T94: 1 | U94: 1 | V94: USD | W94: FALSE | X94: Skype for Business
A95: Catalogo principalACADÉMICO6ZH-00395FAC | B95: 6ZH-00395FACACADÉMICO | D95: Catalogo principal | E95: 6ZH-00395FAC | F95: ACADÉMICO | G95: Catalogo principal | H95: USD | I95: N/A | J95: Microsoft®SfBServerStdCAL AllLng License/SoftwareAssurancePack MVL 1License DvcCAL_Faculty | K95: Unidad | L95: Und | M95: Producto | N95: NA | O95: N/A | P95: N/A | Q95: 6ZH-00395FAC | R95: Suscripción Anual | S95: 3.28 | T95: 1 | U95: 1 | V95: USD | W95: FALSE | X95: SfB Server Std CAL
A96: Catalogo principalACADÉMICO6ZH-00395STU | B96: 6ZH-00395STUACADÉMICO | D96: Catalogo principal | E96: 6ZH-00395STU | F96: ACADÉMICO | G96: Catalogo principal | H96: USD | I96: N/A | J96: Microsoft®SfBServerStdCAL AllLng License/SoftwareAssurancePack MVL 1License DvcCAL_Student | K96: Unidad | L96: Und | M96: Producto | N96: NA | O96: N/A | P96: N/A | Q96: 6ZH-00395STU | R96: Suscripción Anual | S96: 2.18 | T96: 1 | U96: 1 | V96: USD | W96: FALSE | X96: SfB Server Std CAL
A97: Catalogo principalACADÉMICO76A-00025FACA | B97: 76A-00025FACAACADÉMICO | D97: Catalogo principal | E97: 76A-00025FACA | F97: ACADÉMICO | G97: Catalogo principal | H97: USD | I97: N/A | J97: Microsoft®EnterpriseCAL AllLng License/SoftwareAssurancePack MVL 1License DvcCAL w/Services_FacultyLevelA | K97: Unidad | L97: Und | M97: Producto | N97: NA | O97: N/A | P97: N/A | Q97: 76A-00025FACA | R97: Suscripción Anual | S97: 26 | T97: 1 | U97: 1 | V97: USD | W97: FALSE | X97: Enterprise CAL
A98: Catalogo principalACADÉMICO76A-00025FACB | B98: 76A-00025FACBACADÉMICO | D98: Catalogo principal | E98: 76A-00025FACB | F98: ACADÉMICO | G98: Catalogo principal | H98: USD | I98: N/A | J98: Microsoft®EnterpriseCAL AllLng License/SoftwareAssurancePack MVL 1License DvcCAL w/Services_FacultyLevelB | K98: Unidad | L98: Und | M98: Producto | N98: NA | O98: N/A | P98: N/A | Q98: 76A-00025FACB | R98: Suscripción Anual | S98: 24 | T98: 1 | U98: 1 | V98: USD | W98: FALSE | X98: Enterprise CAL
A99: Catalogo principalACADÉMICO76A-00025FACC | B99: 76A-00025FACCACADÉMICO | D99: Catalogo principal | E99: 76A-00025FACC | F99: ACADÉMICO | G99: Catalogo principal | H99: USD | I99: N/A | J99: Microsoft®EnterpriseCAL AllLng License/SoftwareAssurancePack MVL 1License DvcCAL w/Services_FacultyLevelC | K99: Unidad | L99: Und | M99: Producto | N99: NA | O99: N/A | P99: N/A | Q99: 76A-00025FACC | R99: Suscripción Anual | S99: 22 | T99: 1 | U99: 1 | V99: USD | W99: FALSE | X99: Enterprise CAL
A100: Catalogo principalACADÉMICO76A-00025FACD | B100: 76A-00025FACDACADÉMICO | D100: Catalogo principal | E100: 76A-00025FACD | F100: ACADÉMICO | G100: Catalogo principal | H100: USD | I100: N/A | J100: Microsoft®EnterpriseCAL AllLng License/SoftwareAssurancePack MVL 1License DvcCAL w/Services_FacultyLevelD | K100: Unidad | L100: Und | M100: Producto | N100: NA | O100: N/A | P100: N/A | Q100: 76A-00025FACD | R100: Suscripción Anual | S100: 21 | T100: 1 | U100: 1 | V100: USD | W100: FALSE | X100: Enterprise CAL
A101: Catalogo principalACADÉMICO76A-00025STUA | B101: 76A-00025STUAACADÉMICO | D101: Catalogo principal | E101: 76A-00025STUA | F101: ACADÉMICO | G101: Catalogo principal | H101: USD | I101: N/A | J101: Microsoft®EnterpriseCAL AllLng License/SoftwareAssurancePack MVL 1License DvcCAL w/Services_StudentLevelA | K101: Unidad | L101: Und | M101: Producto | N101: NA | O101: N/A | P101: N/A | Q101: 76A-00025STUA | R101: Suscripción Anual | S101: 16 | T101: 1 | U101: 1 | V101: USD | W101: FALSE | X101: Enterprise CAL
A102: Catalogo principalACADÉMICO76A-00025STUB | B102: 76A-00025STUBACADÉMICO | D102: Catalogo principal | E102: 76A-00025STUB | F102: ACADÉMICO | G102: Catalogo principal | H102: USD | I102: N/A | J102: Microsoft®EnterpriseCAL AllLng License/SoftwareAssurancePack MVL 1License DvcCAL w/Services_StudentLevelB | K102: Unidad | L102: Und | M102: Producto | N102: NA | O102: N/A | P102: N/A | Q102: 76A-00025STUB | R102: Suscripción Anual | S102: 15 | T102: 1 | U102: 1 | V102: USD | W102: FALSE | X102: Enterprise CAL
A103: Catalogo principalACADÉMICO76A-00025STUC | B103: 76A-00025STUCACADÉMICO | D103: Catalogo principal | E103: 76A-00025STUC | F103: ACADÉMICO | G103: Catalogo principal | H103: USD | I103: N/A | J103: Microsoft®EnterpriseCAL AllLng License/SoftwareAssurancePack MVL 1License DvcCAL w/Services_StudentLevelC | K103: Unidad | L103: Und | M103: Producto | N103: NA | O103: N/A | P103: N/A | Q103: 76A-00025STUC | R103: Suscripción Anual | S103: 14 | T103: 1 | U103: 1 | V103: USD | W103: FALSE | X103: Enterprise CAL
A104: Catalogo principalACADÉMICO76A-00025STUD | B104: 76A-00025STUDACADÉMICO | D104: Catalogo principal | E104: 76A-00025STUD | F104: ACADÉMICO | G104: Catalogo principal | H104: USD | I104: N/A | J104: Microsoft®EnterpriseCAL AllLng License/SoftwareAssurancePack MVL 1License DvcCAL w/Services_StudentLevelD | K104: Unidad | L104: Und | M104: Producto | N104: NA | O104: N/A | P104: N/A | Q104: 76A-00025STUD | R104: Suscripción Anual | S104: 13 | T104: 1 | U104: 1 | V104: USD | W104: FALSE | X104: Enterprise CAL
A105: Catalogo principalACADÉMICO76A-00043FACA | B105: 76A-00043FACAACADÉMICO | D105: Catalogo principal | E105: 76A-00043FACA | F105: ACADÉMICO | G105: Catalogo principal | H105: USD | I105: N/A | J105: Microsoft®EnterpriseCAL AllLng SAStepUp MVL 1License fromCoreCAL DvcCAL w/Services_FacultyLevelA | K105: Unidad | L105: Und | M105: Producto | N105: NA | O105: N/A | P105: N/A | Q105: 76A-00043FACA | R105: Suscripción Anual | S105: 13 | T105: 1 | U105: 1 | V105: USD | W105: FALSE | X105: Enterprise CAL
A106: Catalogo principalACADÉMICO76A-00043FACB | B106: 76A-00043FACBACADÉMICO | D106: Catalogo principal | E106: 76A-00043FACB | F106: ACADÉMICO | G106: Catalogo principal | H106: USD | I106: N/A | J106: Microsoft®EnterpriseCAL AllLng SAStepUp MVL 1License fromCoreCAL DvcCAL w/Services_FacultyLevelB | K106: Unidad | L106: Und | M106: Producto | N106: NA | O106: N/A | P106: N/A | Q106: 76A-00043FACB | R106: Suscripción Anual | S106: 12 | T106: 1 | U106: 1 | V106: USD | W106: FALSE | X106: Enterprise CAL
A107: Catalogo principalACADÉMICO76A-00043FACC | B107: 76A-00043FACCACADÉMICO | D107: Catalogo principal | E107: 76A-00043FACC | F107: ACADÉMICO | G107: Catalogo principal | H107: USD | I107: N/A | J107: Microsoft®EnterpriseCAL AllLng SAStepUp MVL 1License fromCoreCAL DvcCAL w/Services_FacultyLevelC | K107: Unidad | L107: Und | M107: Producto | N107: NA | O107: N/A | P107: N/A | Q107: 76A-00043FACC | R107: Suscripción Anual | S107: 11 | T107: 1 | U107: 1 | V107: USD | W107: FALSE | X107: Enterprise CAL
A108: Catalogo principalACADÉMICO76A-00043FACD | B108: 76A-00043FACDACADÉMICO | D108: Catalogo principal | E108: 76A-00043FACD | F108: ACADÉMICO | G108: Catalogo principal | H108: USD | I108: N/A | J108: Microsoft®EnterpriseCAL AllLng SAStepUp MVL 1License fromCoreCAL DvcCAL w/Services_FacultyLevelD | K108: Unidad | L108: Und | M108: Producto | N108: NA | O108: N/A | P108: N/A | Q108: 76A-00043FACD | R108: Suscripción Anual | S108: 10 | T108: 1 | U108: 1 | V108: USD | W108: FALSE | X108: Enterprise CAL
A109: Catalogo principalACADÉMICO76A-00043STUA | B109: 76A-00043STUAACADÉMICO | D109: Catalogo principal | E109: 76A-00043STUA | F109: ACADÉMICO | G109: Catalogo principal | H109: USD | I109: N/A | J109: Microsoft®EnterpriseCAL AllLng SAStepUp MVL 1License fromCoreCAL DvcCAL w/Services_StudentLevelA | K109: Unidad | L109: Und | M109: Producto | N109: NA | O109: N/A | P109: N/A | Q109: 76A-00043STUA | R109: Suscripción Anual | S109: 13 | T109: 1 | U109: 1 | V109: USD | W109: FALSE | X109: Enterprise CAL
A110: Catalogo principalACADÉMICO76A-00043STUB | B110: 76A-00043STUBACADÉMICO | D110: Catalogo principal | E110: 76A-00043STUB | F110: ACADÉMICO | G110: Catalogo principal | H110: USD | I110: N/A | J110: Microsoft®EnterpriseCAL AllLng SAStepUp MVL 1License fromCoreCAL DvcCAL w/Services_StudentLevelB | K110: Unidad | L110: Und | M110: Producto | N110: NA | O110: N/A | P110: N/A | Q110: 76A-00043STUB | R110: Suscripción Anual | S110: 13 | T110: 1 | U110: 1 | V110: USD | W110: FALSE | X110: Enterprise CAL
A111: Catalogo principalACADÉMICO76A-00043STUC | B111: 76A-00043STUCACADÉMICO | D111: Catalogo principal | E111: 76A-00043STUC | F111: ACADÉMICO | G111: Catalogo principal | H111: USD | I111: N/A | J111: Microsoft®EnterpriseCAL AllLng SAStepUp MVL 1License fromCoreCAL DvcCAL w/Services_StudentLevelC | K111: Unidad | L111: Und | M111: Producto | N111: NA | O111: N/A | P111: N/A | Q111: 76A-00043STUC | R111: Suscripción Anual | S111: 12 | T111: 1 | U111: 1 | V111: USD | W111: FALSE | X111: Enterprise CAL
A112: Catalogo principalACADÉMICO76A-00043STUD | B112: 76A-00043STUDACADÉMICO | D112: Catalogo principal | E112: 76A-00043STUD | F112: ACADÉMICO | G112: Catalogo principal | H112: USD | I112: N/A | J112: Microsoft®EnterpriseCAL AllLng SAStepUp MVL 1License fromCoreCAL DvcCAL w/Services_StudentLevelD | K112: Unidad | L112: Und | M112: Producto | N112: NA | O112: N/A | P112: N/A | Q112: 76A-00043STUD | R112: Suscripción Anual | S112: 11 | T112: 1 | U112: 1 | V112: USD | W112: FALSE | X112: Enterprise CAL
A113: Catalogo principalACADÉMICO76N-02345FAC | B113: 76N-02345FACACADÉMICO | D113: Catalogo principal | E113: 76N-02345FAC | F113: ACADÉMICO | G113: Catalogo principal | H113: USD | I113: N/A | J113: Microsoft®SharePointEnterpriseCAL AllLng License/SoftwareAssurancePack MVL 1License DvcCAL_Faculty | K113: Unidad | L113: Und | M113: Producto | N113: NA | O113: N/A | P113: N/A | Q113: 76N-02345FAC | R113: Suscripción Anual | S113: 9 | T113: 1 | U113: 1 | V113: USD | W113: FALSE | X113: SharePoint Enterprise CAL
A114: Catalogo principalACADÉMICO76N-02345STU | B114: 76N-02345STUACADÉMICO | D114: Catalogo principal | E114: 76N-02345STU | F114: ACADÉMICO | G114: Catalogo principal | H114: USD | I114: N/A | J114: Microsoft®SharePointEnterpriseCAL AllLng License/SoftwareAssurancePack MVL 1License DvcCAL_Student | K114: Unidad | L114: Und | M114: Producto | N114: NA | O114: N/A | P114: N/A | Q114: 76N-02345STU | R114: Suscripción Anual | S114: 6 | T114: 1 | U114: 1 | V114: USD | W114: FALSE | X114: SharePoint Enterprise CAL
A115: Catalogo principalACADÉMICO77D-00110AP | B115: 77D-00110APACADÉMICO | D115: Catalogo principal | E115: 77D-00110AP | F115: ACADÉMICO | G115: Catalogo principal | H115: USD | I115: N/A | J115: Microsoft®VisualStudioProSubMSDN AllLng License/SoftwareAssurancePack MVL 1License_Additional Product | K115: Unidad | L115: Und | M115: Producto | N115: NA | O115: N/A | P115: N/A | Q115: 77D-00110AP | R115: Suscripción Anual | S115: 69 | T115: 1 | U115: 1 | V115: USD | W115: FALSE | X115: Visual Studio Pro Sub MSDN
A116: Catalogo principalACADÉMICO7AH-00281FAC | B116: 7AH-00281FACACADÉMICO | D116: Catalogo principal | E116: 7AH-00281FAC | F116: ACADÉMICO | G116: Catalogo principal | H116: USD | I116: N/A | J116: Microsoft®SfBServerEntCAL AllLng License/SoftwareAssurancePack MVL 1License DvcCAL_Faculty | K116: Unidad | L116: Und | M116: Producto | N116: NA | O116: N/A | P116: N/A | Q116: 7AH-00281FAC | R116: Suscripción Anual | S116: 12 | T116: 1 | U116: 1 | V116: USD | W116: FALSE | X116: SfB Server Ent CAL
A117: Catalogo principalACADÉMICO7AH-00281STU | B117: 7AH-00281STUACADÉMICO | D117: Catalogo principal | E117: 7AH-00281STU | F117: ACADÉMICO | G117: Catalogo principal | H117: USD | I117: N/A | J117: Microsoft®SfBServerEntCAL AllLng License/SoftwareAssurancePack MVL 1License DvcCAL_Student | K117: Unidad | L117: Und | M117: Producto | N117: NA | O117: N/A | P117: N/A | Q117: 7AH-00281STU | R117: Suscripción Anual | S117: 8 | T117: 1 | U117: 1 | V117: USD | W117: FALSE | X117: SfB Server Ent CAL
A118: Catalogo principalACADÉMICO7HS-00001AP | B118: 7HS-00001APACADÉMICO | D118: Catalogo principal | E118: 7HS-00001AP | F118: ACADÉMICO | G118: Catalogo principal | H118: USD | I118: N/A | J118: Microsoft®ProjOnlineEssentialsEDU ShrdSvr AllLng MonthlySubscriptions-VolumeLicense MVL 1License PerUsr_Additional Product | K118: Unidad | L118: Und | M118: Producto | N118: NA | O118: N/A | P118: N/A | Q118: 7HS-00001AP | R118: Suscripción mensual con pago anual | S118: 0 | T118: 1 | U118: 1 | V118: USD | W118: FALSE | X118: Proj Online Essentials EDU
A119: Catalogo principalACADÉMICO7HS-00001STU | B119: 7HS-00001STUACADÉMICO | D119: Catalogo principal | E119: 7HS-00001STU | F119: ACADÉMICO | G119: Catalogo principal | H119: USD | I119: N/A | J119: Microsoft®ProjOnlineEssentialsEDU ShrdSvr AllLng MonthlySubscriptions-VolumeLicense MVL 1License PerUsr_Student | K119: Unidad | L119: Und | M119: Producto | N119: NA | O119: N/A | P119: N/A | Q119: 7HS-00001STU | R119: Suscripción mensual con pago anual | S119: 0 | T119: 1 | U119: 1 | V119: USD | W119: FALSE | X119: Proj Online Essentials EDU
A120: Catalogo principalACADÉMICO7JQ-00341AP | B120: 7JQ-00341APACADÉMICO | D120: Catalogo principal | E120: 7JQ-00341AP | F120: ACADÉMICO | G120: Catalogo principal | H120: USD | I120: N/A | J120: Microsoft®SQLSvrEnterpriseCore AllLng License/SoftwareAssurancePack MVL 2Licenses CoreLic_Additional Product | K120: Unidad | L120: Und | M120: Producto | N120: NA | O120: N/A | P120: N/A | Q120: 7JQ-00341AP | R120: Suscripción Anual | S120: 1446 | T120: 1 | U120: 1 | V120: USD | W120: FALSE | X120: SQL Svr Enterprise Core
A121: Catalogo principalACADÉMICO7JQ-00448AP | B121: 7JQ-00448APACADÉMICO | D121: Catalogo principal | E121: 7JQ-00448AP | F121: ACADÉMICO | G121: Catalogo principal | H121: USD | I121: N/A | J121: Microsoft®SQLSvrEnterpriseCore AllLng SAStepUp MVL 2Licenses SQLSvrStandardCore CoreLic_Additional Product | K121: Unidad | L121: Und | M121: Producto | N121: NA | O121: N/A | P121: N/A | Q121: 7JQ-00448AP | R121: Suscripción Anual | S121: 1069 | T121: 1 | U121: 1 | V121: USD | W121: FALSE | X121: SQL Svr Enterprise Core
A122: Catalogo principalACADÉMICO7MA-00001AP | B122: 7MA-00001APACADÉMICO | D122: Catalogo principal | E122: 7MA-00001AP | F122: ACADÉMICO | G122: Catalogo principal | H122: USD | I122: N/A | J122: Microsoft®ProjectPlan3EDU ShrdSvr AllLng MonthlySubscriptions-VolumeLicense MVL 1License PerUsr_Additional Product | K122: Unidad | L122: Und | M122: Producto | N122: NA | O122: N/A | P122: N/A | Q122: 7MA-00001AP | R122: Suscripción mensual con pago anual | S122: 6 | T122: 1 | U122: 1 | V122: USD | W122: FALSE | X122: Project Plan 3 EDU
A123: Catalogo principalACADÉMICO7MA-00001STU | B123: 7MA-00001STUACADÉMICO | D123: Catalogo principal | E123: 7MA-00001STU | F123: ACADÉMICO | G123: Catalogo principal | H123: USD | I123: N/A | J123: Microsoft®ProjectPlan3EDU ShrdSvr AllLng MonthlySubscriptions-VolumeLicense MVL 1License PerUsr_Student | K123: Unidad | L123: Und | M123: Producto | N123: NA | O123: N/A | P123: N/A | Q123: 7MA-00001STU | R123: Suscripción mensual con pago anual | S123: 4.21 | T123: 1 | U123: 1 | V123: USD | W123: FALSE | X123: Project Plan 3 EDU
A124: Catalogo principalACADÉMICO7MA-00002AP | B124: 7MA-00002APACADÉMICO | D124: Catalogo principal | E124: 7MA-00002AP | F124: ACADÉMICO | G124: Catalogo principal | H124: USD | I124: N/A | J124: Microsoft®ProjectPlan3EDU ShrdSvr AllLng StepUp MVL 1License ProjectProForOffice365forEDU PerUsr_Additional Product | K124: Unidad | L124: Und | M124: Producto | N124: NA | O124: N/A | P124: N/A | Q124: 7MA-00002AP | R124: Suscripción mensual con pago anual | S124: 3.41 | T124: 1 | U124: 1 | V124: USD | W124: FALSE | X124: Project Plan 3 EDU
A125: Catalogo principalACADÉMICO7MA-00002STU | B125: 7MA-00002STUACADÉMICO | D125: Catalogo principal | E125: 7MA-00002STU | F125: ACADÉMICO | G125: Catalogo principal | H125: USD | I125: N/A | J125: Microsoft®ProjectPlan3EDU ShrdSvr AllLng StepUp MVL 1License ProjectProForOffice365forEDU PerUsr_Student | K125: Unidad | L125: Und | M125: Producto | N125: NA | O125: N/A | P125: N/A | Q125: 7MA-00002STU | R125: Suscripción mensual con pago anual | S125: 3.11 | T125: 1 | U125: 1 | V125: USD | W125: FALSE | X125: Project Plan 3 EDU
A126: Catalogo principalACADÉMICO7MA-00003AP | B126: 7MA-00003APACADÉMICO | D126: Catalogo principal | E126: 7MA-00003AP | F126: ACADÉMICO | G126: Catalogo principal | H126: USD | I126: N/A | J126: Microsoft®ProjectPlan3EDU ShrdSvr AllLng StepUp MVL 1License ProjOnlineEssentialsforEDU PerUsr_Additional Product | K126: Unidad | L126: Und | M126: Producto | N126: NA | O126: N/A | P126: N/A | Q126: 7MA-00003AP | R126: Suscripción mensual con pago anual | S126: 6 | T126: 1 | U126: 1 | V126: USD | W126: FALSE | X126: Project Plan 3 EDU
A127: Catalogo principalACADÉMICO7MA-00003STU | B127: 7MA-00003STUACADÉMICO | D127: Catalogo principal | E127: 7MA-00003STU | F127: ACADÉMICO | G127: Catalogo principal | H127: USD | I127: N/A | J127: Microsoft®ProjectPlan3EDU ShrdSvr AllLng StepUp MVL 1License ProjOnlineEssentialsforEDU PerUsr_Student | K127: Unidad | L127: Und | M127: Producto | N127: NA | O127: N/A | P127: N/A | Q127: 7MA-00003STU | R127: Suscripción mensual con pago anual | S127: 4.21 | T127: 1 | U127: 1 | V127: USD | W127: FALSE | X127: Project Plan 3 EDU
A128: Catalogo principalACADÉMICO7NQ-00302AP | B128: 7NQ-00302APACADÉMICO | D128: Catalogo principal | E128: 7NQ-00302AP | F128: ACADÉMICO | G128: Catalogo principal | H128: USD | I128: N/A | J128: Microsoft®SQLSvrStandardCore AllLng License/SoftwareAssurancePack MVL 2Licenses CoreLic_Additional Product | K128: Unidad | L128: Und | M128: Producto | N128: NA | O128: N/A | P128: N/A | Q128: 7NQ-00302AP | R128: Suscripción Anual | S128: 377 | T128: 1 | U128: 1 | V128: USD | W128: FALSE | X128: SQL Svr Standard Core
A129: Catalogo principalACADÉMICO7TR-00001AP | B129: 7TR-00001APACADÉMICO | D129: Catalogo principal | E129: 7TR-00001AP | F129: ACADÉMICO | G129: Catalogo principal | H129: USD | I129: N/A | J129: Microsoft®ProjectPlan5EDU ShrdSvr AllLng MonthlySubscriptions-VolumeLicense MVL 1License PerUsr_Additional Product | K129: Unidad | L129: Und | M129: Producto | N129: NA | O129: N/A | P129: N/A | Q129: 7TR-00001AP | R129: Suscripción mensual con pago anual | S129: 11 | T129: 1 | U129: 1 | V129: USD | W129: FALSE | X129: Project Plan 5 EDU
A130: Catalogo principalACADÉMICO7TR-00001STU | B130: 7TR-00001STUACADÉMICO | D130: Catalogo principal | E130: 7TR-00001STU | F130: ACADÉMICO | G130: Catalogo principal | H130: USD | I130: N/A | J130: Microsoft®ProjectPlan5EDU ShrdSvr AllLng MonthlySubscriptions-VolumeLicense MVL 1License PerUsr_Student | K130: Unidad | L130: Und | M130: Producto | N130: NA | O130: N/A | P130: N/A | Q130: 7TR-00001STU | R130: Suscripción mensual con pago anual | S130: 8 | T130: 1 | U130: 1 | V130: USD | W130: FALSE | X130: Project Plan 5 EDU
A131: =D131&F131&E131 -> Catalogo principalACADÉMICO7TR-00002AP | B131: =E131&F131 -> 7TR-00002APACADÉMICO | D131: Catalogo principal | E131: 7TR-00002AP | F131: ACADÉMICO | G131: =D131 -> Catalogo principal | H131: USD | I131: N/A | J131: Microsoft®ProjectPlan5EDU ShrdSvr AllLng StepUp MVL 1License ProjectOnlineforEDU PerUsr_Additional Product | K131: Unidad | L131: Und | M131: Producto | N131: NA | O131: N/A | P131: N/A | Q131: 7TR-00002AP | R131: Suscripción mensual con pago anual | S131: 11 | T131: 1 | U131: 1 | V131: =H131 -> USD | W131: =IF(U131="NO",0,IF(U131="SI",1)) -> FALSE | X131: Project Plan 5 EDU
A132: Catalogo principalACADÉMICO7TR-00002STU | B132: 7TR-00002STUACADÉMICO | D132: Catalogo principal | E132: 7TR-00002STU | F132: ACADÉMICO | G132: Catalogo principal | H132: USD | I132: N/A | J132: Microsoft®ProjectPlan5EDU ShrdSvr AllLng StepUp MVL 1License ProjectOnlineforEDU PerUsr_Student | K132: Unidad | L132: Und | M132: Producto | N132: NA | O132: N/A | P132: N/A | Q132: 7TR-00002STU | R132: Suscripción mensual con pago anual | S132: 8 | T132: 1 | U132: 1 | V132: USD | W132: FALSE | X132: Project Plan 5 EDU
A133: Catalogo principalACADÉMICO7TR-00003AP | B133: 7TR-00003APACADÉMICO | D133: Catalogo principal | E133: 7TR-00003AP | F133: ACADÉMICO | G133: Catalogo principal | H133: USD | I133: N/A | J133: Microsoft®ProjectPlan5EDU ShrdSvr AllLng StepUp MVL 1License ProjOnlineProfessionalforEDU PerUsr_Additional Product | K133: Unidad | L133: Und | M133: Producto | N133: NA | O133: N/A | P133: N/A | Q133: 7TR-00003AP | R133: Suscripción mensual con pago anual | S133: 4.68 | T133: 1 | U133: 1 | V133: USD | W133: FALSE | X133: Project Plan 5 EDU
A134: Catalogo principalACADÉMICO7TR-00003STU | B134: 7TR-00003STUACADÉMICO | D134: Catalogo principal | E134: 7TR-00003STU | F134: ACADÉMICO | G134: Catalogo principal | H134: USD | I134: N/A | J134: Microsoft®ProjectPlan5EDU ShrdSvr AllLng StepUp MVL 1License ProjOnlineProfessionalforEDU PerUsr_Student | K134: Unidad | L134: Und | M134: Producto | N134: NA | O134: N/A | P134: N/A | Q134: 7TR-00003STU | R134: Suscripción mensual con pago anual | S134: 3.74 | T134: 1 | U134: 1 | V134: USD | W134: FALSE | X134: Project Plan 5 EDU
A135: Catalogo principalACADÉMICO7UP-00001AP | B135: 7UP-00001APACADÉMICO | D135: Catalogo principal | E135: 7UP-00001AP | F135: ACADÉMICO | G135: Catalogo principal | H135: USD | I135: N/A | J135: Microsoft®DynamicsMktgEnhancedSuprtEDU ShrdSvr AllLng MonthlySubscriptions-VolumeLicense MVL 1License PerUsr_Additional Product | K135: Unidad | L135: Und | M135: Producto | N135: NA | O135: N/A | P135: N/A | Q135: 7UP-00001AP | R135: Suscripción mensual con pago anual | S135: 6 | T135: 1 | U135: 1 | V135: USD | W135: FALSE | X135: Dynamics Mktg Enhanced Suprt EDU
A136: Catalogo principalACADÉMICO7UP-00001STU | B136: 7UP-00001STUACADÉMICO | D136: Catalogo principal | E136: 7UP-00001STU | F136: ACADÉMICO | G136: Catalogo principal | H136: USD | I136: N/A | J136: Microsoft®DynamicsMktgEnhancedSuprtEDU ShrdSvr AllLng MonthlySubscriptions-VolumeLicense MVL 1License PerUsr_Student | K136: Unidad | L136: Und | M136: Producto | N136: NA | O136: N/A | P136: N/A | Q136: 7UP-00001STU | R136: Suscripción mensual con pago anual | S136: 6 | T136: 1 | U136: 1 | V136: USD | W136: FALSE | X136: Dynamics Mktg Enhanced Suprt EDU
A137: Catalogo principalACADÉMICO7V2-00001AP | B137: 7V2-00001APACADÉMICO | D137: Catalogo principal | E137: 7V2-00001AP | F137: ACADÉMICO | G137: Catalogo principal | H137: USD | I137: N/A | J137: Microsoft®DynamicsMktgProfDirSuprtEDU ShrdSvr AllLng MonthlySubscriptions-VolumeLicense MVL 1License PerUsr_Additional Product | K137: Unidad | L137: Und | M137: Producto | N137: NA | O137: N/A | P137: N/A | Q137: 7V2-00001AP | R137: Suscripción mensual con pago anual | S137: 10 | T137: 1 | U137: 1 | V137: USD | W137: FALSE | X137: Dynamics Mktg Prof Dir Suprt EDU
A138: Catalogo principalACADÉMICO7V2-00001STU | B138: 7V2-00001STUACADÉMICO | D138: Catalogo principal | E138: 7V2-00001STU | F138: ACADÉMICO | G138: Catalogo principal | H138: USD | I138: N/A | J138: Microsoft®DynamicsMktgProfDirSuprtEDU ShrdSvr AllLng MonthlySubscriptions-VolumeLicense MVL 1License PerUsr_Student | K138: Unidad | L138: Und | M138: Producto | N138: NA | O138: N/A | P138: N/A | Q138: 7V2-00001STU | R138: Suscripción mensual con pago anual | S138: 10 | T138: 1 | U138: 1 | V138: USD | W138: FALSE | X138: Dynamics Mktg Prof Dir Suprt EDU
A139: Catalogo principalACADÉMICO7V2-00002AP | B139: 7V2-00002APACADÉMICO | D139: Catalogo principal | E139: 7V2-00002AP | F139: ACADÉMICO | G139: Catalogo principal | H139: USD | I139: N/A | J139: Microsoft®DynamicsMktgProfDirSuprtEDU ShrdSvr AllLng StepUp MVL 1License DYNAMICSMKTGENHANCEDSUPRTEDU PerUsr_Additional Product | K139: Unidad | L139: Und | M139: Producto | N139: NA | O139: N/A | P139: N/A | Q139: 7V2-00002AP | R139: Suscripción mensual con pago anual | S139: 4.4 | T139: 1 | U139: 1 | V139: USD | W139: FALSE | X139: Dynamics Mktg Prof Dir Suprt EDU
A140: Catalogo principalACADÉMICO7V2-00002STU | B140: 7V2-00002STUACADÉMICO | D140: Catalogo principal | E140: 7V2-00002STU | F140: ACADÉMICO | G140: Catalogo principal | H140: USD | I140: N/A | J140: Microsoft®DynamicsMktgProfDirSuprtEDU ShrdSvr AllLng StepUp MVL 1License DYNAMICSMKTGENHANCEDSUPRTEDU PerUsr_Student | K140: Unidad | L140: Und | M140: Producto | N140: NA | O140: N/A | P140: N/A | Q140: 7V2-00002STU | R140: Suscripción mensual con pago anual | S140: 4.4 | T140: 1 | U140: 1 | V140: USD | W140: FALSE | X140: Dynamics Mktg Prof Dir Suprt EDU
A141: Catalogo principalACADÉMICO7VC-00137AP | B141: 7VC-00137APACADÉMICO | D141: Catalogo principal | E141: 7VC-00137AP | F141: ACADÉMICO | G141: Catalogo principal | H141: USD | I141: N/A | J141: Microsoft®FrfrntIdentityMgr AllLng License/SoftwareAssurancePack MVL 1License LiveEdition_Additional Product | K141: Unidad | L141: Und | M141: Producto | N141: NA | O141: N/A | P141: N/A | Q141: 7VC-00137AP | R141: Suscripción Anual | S141: 212 | T141: 1 | U141: 1 | V141: USD | W141: FALSE | X141: Frfrnt Identity Mgr
A142: Catalogo principalACADÉMICO965-00002AP | B142: 965-00002APACADÉMICO | D142: Catalogo principal | E142: 965-00002AP | F142: ACADÉMICO | G142: Catalogo principal | H142: USD | I142: N/A | J142: Microsoft®AzureActiveDirectoryBasic ShrdSvr AllLng MonthlySubscriptions-VolumeLicense MVL 1License PerUsr_Additional Product | K142: Unidad | L142: Und | M142: Producto | N142: NA | O142: N/A | P142: N/A | Q142: 965-00002AP | R142: Suscripción mensual con pago anual | S142: 0 | T142: 1 | U142: 1 | V142: USD | W142: FALSE | X142: Azure Active Directory Basic
A143: Catalogo principalACADÉMICO965-00002STU | B143: 965-00002STUACADÉMICO | D143: Catalogo principal | E143: 965-00002STU | F143: ACADÉMICO | G143: Catalogo principal | H143: USD | I143: N/A | J143: Microsoft®AzureActiveDirectoryBasic ShrdSvr AllLng MonthlySubscriptions-VolumeLicense MVL 1License PerUsr_Student | K143: Unidad | L143: Und | M143: Producto | N143: NA | O143: N/A | P143: N/A | Q143: 965-00002STU | R143: Suscripción mensual con pago anual | S143: 0 | T143: 1 | U143: 1 | V143: USD | W143: FALSE | X143: Azure Active Directory Basic
A144: Catalogo principalACADÉMICO9EA-00039AP | B144: 9EA-00039APACADÉMICO | D144: Catalogo principal | E144: 9EA-00039AP | F144: ACADÉMICO | G144: Catalogo principal | H144: USD | I144: N/A | J144: Microsoft®WindowsServerDCCore AllLng License/SoftwareAssurancePack MVL 2Licenses CoreLic_Additional Product | K144: Unidad | L144: Und | M144: Producto | N144: NA | O144: N/A | P144: N/A | Q144: 9EA-00039AP | R144: Suscripción Anual | S144: 49 | T144: 1 | U144: 1 | V144: USD | W144: FALSE | X144: Windows Server DC Core
A145: Catalogo principalACADÉMICO9EA-00271AP | B145: 9EA-00271APACADÉMICO | D145: Catalogo principal | E145: 9EA-00271AP | F145: ACADÉMICO | G145: Catalogo principal | H145: USD | I145: N/A | J145: Microsoft®WindowsServerDCCore AllLng License/SoftwareAssurancePack MVL 16Licenses CoreLic_Additional Product | K145: Unidad | L145: Und | M145: Producto | N145: NA | O145: N/A | P145: N/A | Q145: 9EA-00271AP | R145: Suscripción Anual | S145: 389 | T145: 1 | U145: 1 | V145: USD | W145: FALSE | X145: Windows Server DC Core
A146: Catalogo principalACADÉMICO9EA-00274AP | B146: 9EA-00274APACADÉMICO | D146: Catalogo principal | E146: 9EA-00274AP | F146: ACADÉMICO | G146: Catalogo principal | H146: USD | I146: N/A | J146: Microsoft®WindowsServerDCCore AllLng SAStepUp MVL 16Licenses WindowsServerStandardCore CoreLic_Additional Product | K146: Unidad | L146: Und | M146: Producto | N146: NA | O146: N/A | P146: N/A | Q146: 9EA-00274AP | R146: Suscripción Anual | S146: 333 | T146: 1 | U146: 1 | V146: USD | W146: FALSE | X146: Windows Server DC Core
A147: Catalogo principalACADÉMICO9EA-00279AP | B147: 9EA-00279APACADÉMICO | D147: Catalogo principal | E147: 9EA-00279AP | F147: ACADÉMICO | G147: Catalogo principal | H147: USD | I147: N/A | J147: Microsoft®WindowsServerDCCore AllLng SAStepUp MVL 2Licenses WindowsServerStandardCore CoreLic_Additional Product | K147: Unidad | L147: Und | M147: Producto | N147: NA | O147: N/A | P147: N/A | Q147: 9EA-00279AP | R147: Suscripción Anual | S147: 42 | T147: 1 | U147: 1 | V147: USD | W147: FALSE | X147: Windows Server DC Core
A148: Catalogo principalACADÉMICO9EM-00265AP | B148: 9EM-00265APACADÉMICO | D148: Catalogo principal | E148: 9EM-00265AP | F148: ACADÉMICO | G148: Catalogo principal | H148: USD | I148: N/A | J148: Microsoft®WindowsServerSTDCORE AllLng License/SoftwareAssurancePack MVL 16Licenses CoreLic_Additional Product | K148: Unidad | L148: Und | M148: Producto | N148: NA | O148: N/A | P148: N/A | Q148: 9EM-00265AP | R148: Suscripción Anual | S148: 56 | T148: 1 | U148: 1 | V148: USD | W148: FALSE | X148: Windows Server STD CORE
A149: Catalogo principalACADÉMICO9EM-00562AP | B149: 9EM-00562APACADÉMICO | D149: Catalogo principal | E149: 9EM-00562AP | F149: ACADÉMICO | G149: Catalogo principal | H149: USD | I149: N/A | J149: Microsoft®WindowsServerSTDCORE AllLng License/SoftwareAssurancePack MVL 2Licenses CoreLic_Additional Product | K149: Unidad | L149: Und | M149: Producto | N149: NA | O149: N/A | P149: N/A | Q149: 9EM-00562AP | R149: Suscripción Anual | S149: 8 | T149: 1 | U149: 1 | V149: USD | W149: FALSE | X149: Windows Server STD CORE
A150: Catalogo principalACADÉMICO9EN-00193AP | B150: 9EN-00193APACADÉMICO | D150: Catalogo principal | E150: 9EN-00193AP | F150: ACADÉMICO | G150: Catalogo principal | H150: USD | I150: N/A | J150: Microsoft®SysCtrStandardCore AllLng License/SoftwareAssurancePack MVL 16Licenses CoreLic_Additional Product | K150: Unidad | L150: Und | M150: Producto | N150: NA | O150: N/A | P150: N/A | Q150: 9EN-00193AP | R150: Suscripción Anual | S150: 93 | T150: 1 | U150: 1 | V150: USD | W150: FALSE | X150: Sys Ctr Standard Core
A151: Catalogo principalACADÉMICO9EN-00494AP | B151: 9EN-00494APACADÉMICO | D151: Catalogo principal | E151: 9EN-00494AP | F151: ACADÉMICO | G151: Catalogo principal | H151: USD | I151: N/A | J151: Microsoft®SysCtrStandardCore AllLng License/SoftwareAssurancePack MVL 2Licenses CoreLic_Additional Product | K151: Unidad | L151: Und | M151: Producto | N151: NA | O151: N/A | P151: N/A | Q151: 9EN-00494AP | R151: Suscripción Anual | S151: 12 | T151: 1 | U151: 1 | V151: USD | W151: FALSE | X151: Sys Ctr Standard Core
A152: Catalogo principalACADÉMICO9EP-00037AP | B152: 9EP-00037APACADÉMICO | D152: Catalogo principal | E152: 9EP-00037AP | F152: ACADÉMICO | G152: Catalogo principal | H152: USD | I152: N/A | J152: Microsoft®SysCtrDataCenterCore AllLng License/SoftwareAssurancePack MVL 2Licenses CoreLic_Additional Product | K152: Unidad | L152: Und | M152: Producto | N152: NA | O152: N/A | P152: N/A | Q152: 9EP-00037AP | R152: Suscripción Anual | S152: 32 | T152: 1 | U152: 1 | V152: USD | W152: FALSE | X152: Sys Ctr DataCenter Core
A153: Catalogo principalACADÉMICO9EP-00201AP | B153: 9EP-00201APACADÉMICO | D153: Catalogo principal | E153: 9EP-00201AP | F153: ACADÉMICO | G153: Catalogo principal | H153: USD | I153: N/A | J153: Microsoft®SysCtrDataCenterCore AllLng License/SoftwareAssurancePack MVL 16Licenses CoreLic_Additional Product | K153: Unidad | L153: Und | M153: Producto | N153: NA | O153: N/A | P153: N/A | Q153: 9EP-00201AP | R153: Suscripción Anual | S153: 253 | T153: 1 | U153: 1 | V153: USD | W153: FALSE | X153: Sys Ctr DataCenter Core
A154: Catalogo principalACADÉMICO9EP-00204AP | B154: 9EP-00204APACADÉMICO | D154: Catalogo principal | E154: 9EP-00204AP | F154: ACADÉMICO | G154: Catalogo principal | H154: USD | I154: N/A | J154: Microsoft®SysCtrDataCenterCore AllLng SAStepUp MVL 16Licenses SystemCenterServerStandardCore CoreLic_Additional Product | K154: Unidad | L154: Und | M154: Producto | N154: NA | O154: N/A | P154: N/A | Q154: 9EP-00204AP | R154: Suscripción Anual | S154: 161 | T154: 1 | U154: 1 | V154: USD | W154: FALSE | X154: Sys Ctr DataCenter Core
A155: Catalogo principalACADÉMICO9EP-00209AP | B155: 9EP-00209APACADÉMICO | D155: Catalogo principal | E155: 9EP-00209AP | F155: ACADÉMICO | G155: Catalogo principal | H155: USD | I155: N/A | J155: Microsoft®SysCtrDataCenterCore AllLng SAStepUp MVL 2Licenses SystemCenterServerStandardCore CoreLic_Additional Product | K155: Unidad | L155: Und | M155: Producto | N155: NA | O155: N/A | P155: N/A | Q155: 9EP-00209AP | R155: Suscripción Anual | S155: 21 | T155: 1 | U155: 1 | V155: USD | W155: FALSE | X155: Sys Ctr DataCenter Core
A156: Catalogo principalACADÉMICO9GA-00006AP | B156: 9GA-00006APACADÉMICO | D156: Catalogo principal | E156: 9GA-00006AP | F156: ACADÉMICO | G156: Catalogo principal | H156: USD | I156: N/A | J156: Microsoft®CoreInfraSvrSteStdCore AllLng License/SoftwareAssurancePack MVL 2Licenses CoreLic_Additional Product | K156: Unidad | L156: Und | M156: Producto | N156: NA | O156: N/A | P156: N/A | Q156: 9GA-00006AP | R156: Suscripción Anual | S156: 18 | T156: 1 | U156: 1 | V156: USD | W156: FALSE | X156: Core Infra Svr Ste Std Core
A157: Catalogo principalACADÉMICO9GA-00308AP | B157: 9GA-00308APACADÉMICO | D157: Catalogo principal | E157: 9GA-00308AP | F157: ACADÉMICO | G157: Catalogo principal | H157: USD | I157: N/A | J157: Microsoft®CoreInfraSvrSteStdCore AllLng License/SoftwareAssurancePack MVL 16Licenses CoreLic_Additional Product | K157: Unidad | L157: Und | M157: Producto | N157: NA | O157: N/A | P157: N/A | Q157: 9GA-00308AP | R157: Suscripción Anual | S157: 142 | T157: 1 | U157: 1 | V157: USD | W157: FALSE | X157: Core Infra Svr Ste Std Core
A158: Catalogo principalACADÉMICO9GS-00128AP | B158: 9GS-00128APACADÉMICO | D158: Catalogo principal | E158: 9GS-00128AP | F158: ACADÉMICO | G158: Catalogo principal | H158: USD | I158: N/A | J158: Microsoft®CoreInfrastructureSvrSteDCCore AllLng License/SoftwareAssurancePack MVL 16Licenses CoreLic_Additional Product | K158: Unidad | L158: Und | M158: Producto | N158: NA | O158: N/A | P158: N/A | Q158: 9GS-00128AP | R158: Suscripción Anual | S158: 610 | T158: 1 | U158: 1 | V158: USD | W158: FALSE | X158: Core Infrastructure Svr Ste DC Core
A159: Catalogo principalACADÉMICO9GS-00131AP | B159: 9GS-00131APACADÉMICO | D159: Catalogo principal | E159: 9GS-00131AP | F159: ACADÉMICO | G159: Catalogo principal | H159: USD | I159: N/A | J159: Microsoft®CoreInfrastructureSvrSteDCCore AllLng SAStepUp MVL 16Licenses CoreInfrastructureServerStdCore CoreLic_Additional Product | K159: Unidad | L159: Und | M159: Producto | N159: NA | O159: N/A | P159: N/A | Q159: 9GS-00131AP | R159: Suscripción Anual | S159: 468 | T159: 1 | U159: 1 | V159: USD | W159: FALSE | X159: Core Infrastructure Svr Ste DC Core
A160: Catalogo principalACADÉMICO9GS-00136AP | B160: 9GS-00136APACADÉMICO | D160: Catalogo principal | E160: 9GS-00136AP | F160: ACADÉMICO | G160: Catalogo principal | H160: USD | I160: N/A | J160: Microsoft®CoreInfrastructureSvrSteDCCore AllLng SAStepUp MVL 2Licenses CoreInfrastructureServerStdCore CoreLic_Additional Product | K160: Unidad | L160: Und | M160: Producto | N160: NA | O160: N/A | P160: N/A | Q160: 9GS-00136AP | R160: Suscripción Anual | S160: 59 | T160: 1 | U160: 1 | V160: USD | W160: FALSE | X160: Core Infrastructure Svr Ste DC Core
A161: Catalogo principalACADÉMICO9GS-00495AP | B161: 9GS-00495APACADÉMICO | D161: Catalogo principal | E161: 9GS-00495AP | F161: ACADÉMICO | G161: Catalogo principal | H161: USD | I161: N/A | J161: Microsoft®CoreInfrastructureSvrSteDCCore AllLng License/SoftwareAssurancePack MVL 2Licenses CoreLic_Additional Product | K161: Unidad | L161: Und | M161: Producto | N161: NA | O161: N/A | P161: N/A | Q161: 9GS-00495AP | R161: Suscripción Anual | S161: 77 | T161: 1 | U161: 1 | V161: USD | W161: FALSE | X161: Core Infrastructure Svr Ste DC Core
A162: Catalogo principalACADÉMICO9JS-00001AP | B162: 9JS-00001APACADÉMICO | D162: Catalogo principal | E162: 9JS-00001AP | F162: ACADÉMICO | G162: Catalogo principal | H162: USD | I162: N/A | J162: Microsoft®O365ExtraFileStorageforEDU ShrdSvr AllLng MonthlySubscriptions-VolumeLicense MVL 1License PerUsr_Additional Product | K162: Unidad | L162: Und | M162: Producto | N162: NA | O162: N/A | P162: N/A | Q162: 9JS-00001AP | R162: Suscripción mensual con pago anual | S162: 0.22 | T162: 1 | U162: 1 | V162: USD | W162: FALSE | X162: O365 Extra File Storage forEDU
A163: Catalogo principalACADÉMICO9KS-00001AP | B163: 9KS-00001APACADÉMICO | D163: Catalogo principal | E163: 9KS-00001AP | F163: ACADÉMICO | G163: Catalogo principal | H163: USD | I163: N/A | J163: Microsoft®ExchOnlArchExchServerforEDU ShrdSvr AllLng MonthlySubscriptions-VolumeLicense MVL 1License PerUsr_Additional Product | K163: Unidad | L163: Und | M163: Producto | N163: NA | O163: N/A | P163: N/A | Q163: 9KS-00001AP | R163: Suscripción mensual con pago anual | S163: 1 | T163: 1 | U163: 1 | V163: USD | W163: FALSE | X163: Exch Onl Arch Exch Server forEDU
A164: Catalogo principalACADÉMICO9KS-00001STU | B164: 9KS-00001STUACADÉMICO | D164: Catalogo principal | E164: 9KS-00001STU | F164: ACADÉMICO | G164: Catalogo principal | H164: USD | I164: N/A | J164: Microsoft®ExchOnlArchExchServerforEDU ShrdSvr AllLng MonthlySubscriptions-VolumeLicense MVL 1License PerUsr_Student | K164: Unidad | L164: Und | M164: Producto | N164: NA | O164: N/A | P164: N/A | Q164: 9KS-00001STU | R164: Suscripción mensual con pago anual | S164: 1 | T164: 1 | U164: 1 | V164: USD | W164: FALSE | X164: Exch Onl Arch Exch Server forEDU
A165: Catalogo principalACADÉMICO9RO-00043AP | B165: 9RO-00043APACADÉMICO | D165: Catalogo principal | E165: 9RO-00043AP | F165: ACADÉMICO | G165: Catalogo principal | H165: USD | I165: N/A | J165: Microsoft®SL1Programmatic-Portfolio AllLng ProfessionalEnterpriseService MCS 1License ColombiaOnly AnnualSupportContract DAS_Additional Product | K165: Unidad | L165: Und | M165: Producto | N165: NA | O165: N/A | P165: N/A | Q165: 9RO-00043AP | R165: Suscripción Anual | S165: 432801 | T165: 1 | U165: 1 | V165: USD | W165: FALSE | X165: SL1Programmatic-Portfolio
A166: Catalogo principalACADÉMICO9RS-00186AP | B166: 9RS-00186APACADÉMICO | D166: Catalogo principal | E166: 9RS-00186AP | F166: ACADÉMICO | G166: Catalogo principal | H166: USD | I166: N/A | J166: Microsoft®SL1Programmatic-Capacity AllLng ProfessionalEnterpriseService MCS 1License ColombiaOnly AnnualSupportContract DASCapacity_Additional Product | K166: Unidad | L166: Und | M166: Producto | N166: NA | O166: N/A | P166: N/A | Q166: 9RS-00186AP | R166: Suscripción Anual | S166: 55460 | T166: 1 | U166: 1 | V166: USD | W166: FALSE | X166: SL1Programmatic-Capacity
A167: Catalogo principalACADÉMICO9ST-00091AP | B167: 9ST-00091APACADÉMICO | D167: Catalogo principal | E167: 9ST-00091AP | F167: ACADÉMICO | G167: Catalogo principal | H167: USD | I167: N/A | J167: Microsoft®OfficeAuditandControlManagement AllLng License/SoftwareAssurancePack MVL 1License_Additional Product | K167: Unidad | L167: Und | M167: Producto | N167: NA | O167: N/A | P167: N/A | Q167: 9ST-00091AP | R167: Suscripción Anual | S167: 285 | T167: 1 | U167: 1 | V167: USD | W167: FALSE | X167: Office Audit and Control Management
A168: Catalogo principalACADÉMICO9TH-00058AP | B168: 9TH-00058APACADÉMICO | D168: Catalogo principal | E168: 9TH-00058AP | F168: ACADÉMICO | G168: Catalogo principal | H168: USD | I168: N/A | J168: Microsoft®SL1ProgrammaticConnect AllLng ProfessionalEnterpriseService MCS 1License ColombiaOnly AnnualSupportContract DAS_Additional Product | K168: Unidad | L168: Und | M168: Producto | N168: NA | O168: N/A | P168: N/A | Q168: 9TH-00058AP | R168: Suscripción Anual | S168: 108131 | T168: 1 | U168: 1 | V168: USD | W168: FALSE | X168: SL1ProgrammaticConnect
A169: Catalogo principalACADÉMICO9TX-00635FAC | B169: 9TX-00635FACACADÉMICO | D169: Catalogo principal | E169: 9TX-00635FAC | F169: ACADÉMICO | G169: Catalogo principal | H169: USD | I169: N/A | J169: Microsoft®SysCtrOpsMgrCltMgmtLic AllLng License/SoftwareAssurancePack MVL 1License PerOSE_Faculty | K169: Unidad | L169: Und | M169: Producto | N169: NA | O169: N/A | P169: N/A | Q169: 9TX-00635FAC | R169: Suscripción Anual | S169: 1.25 | T169: 1 | U169: 1 | V169: USD | W169: FALSE | X169: Sys Ctr Ops Mgr Clt Mgmt Lic
A170: Catalogo principalACADÉMICO9TX-00635STU | B170: 9TX-00635STUACADÉMICO | D170: Catalogo principal | E170: 9TX-00635STU | F170: ACADÉMICO | G170: Catalogo principal | H170: USD | I170: N/A | J170: Microsoft®SysCtrOpsMgrCltMgmtLic AllLng License/SoftwareAssurancePack MVL 1License PerOSE_Student | K170: Unidad | L170: Und | M170: Producto | N170: NA | O170: N/A | P170: N/A | Q170: 9TX-00635STU | R170: Suscripción Anual | S170: 0.94 | T170: 1 | U170: 1 | V170: USD | W170: FALSE | X170: Sys Ctr Ops Mgr Clt Mgmt Lic
A171: Catalogo principalACADÉMICOAAA-43267AP | B171: AAA-43267APACADÉMICO | D171: Catalogo principal | E171: AAA-43267AP | F171: ACADÉMICO | G171: Catalogo principal | H171: USD | I171: N/A | J171: Microsoft® WinVDAE3perUSRStpFrmWinVDA Alng MonthlySub Addon_Additional Product | K171: Unidad | L171: Und | M171: Producto | N171: NA | O171: N/A | P171: N/A | Q171: AAA-43267AP | R171: Suscripción mensual con pago anual | S171: 0.64 | T171: 1 | U171: 1 | V171: USD | W171: FALSE | X171: WIN VDA E3 Step-up from WIN VDA
A172: Catalogo principalACADÉMICOAAA-72987FACA | B172: AAA-72987FACAACADÉMICO | D172: Catalogo principal | E172: AAA-72987FACA | F172: ACADÉMICO | G172: Catalogo principal | H172: USD | I172: N/A | J172: Microsoft® WinEDUA3 ALNG MonthlySub MVL Per User_FacultyLevelA | K172: Unidad | L172: Und | M172: Producto | N172: NA | O172: N/A | P172: N/A | Q172: AAA-72987FACA | R172: Suscripción mensual con pago anual | S172: 2.21 | T172: 1 | U172: 1 | V172: USD | W172: FALSE | X172: WIN EDU A3
A173: Catalogo principalACADÉMICOAAA-72987FACB | B173: AAA-72987FACBACADÉMICO | D173: Catalogo principal | E173: AAA-72987FACB | F173: ACADÉMICO | G173: Catalogo principal | H173: USD | I173: N/A | J173: Microsoft® WinEDUA3 ALNG MonthlySub MVL Per User_FacultyLevelB | K173: Unidad | L173: Und | M173: Producto | N173: NA | O173: N/A | P173: N/A | Q173: AAA-72987FACB | R173: Suscripción mensual con pago anual | S173: 2.11 | T173: 1 | U173: 1 | V173: USD | W173: FALSE | X173: WIN EDU A3
A174: Catalogo principalACADÉMICOAAA-72987FACC | B174: AAA-72987FACCACADÉMICO | D174: Catalogo principal | E174: AAA-72987FACC | F174: ACADÉMICO | G174: Catalogo principal | H174: USD | I174: N/A | J174: Microsoft® WinEDUA3 ALNG MonthlySub MVL Per User_FacultyLevelC | K174: Unidad | L174: Und | M174: Producto | N174: NA | O174: N/A | P174: N/A | Q174: AAA-72987FACC | R174: Suscripción mensual con pago anual | S174: 2 | T174: 1 | U174: 1 | V174: USD | W174: FALSE | X174: WIN EDU A3
A175: Catalogo principalACADÉMICOAAA-72987FACD | B175: AAA-72987FACDACADÉMICO | D175: Catalogo principal | E175: AAA-72987FACD | F175: ACADÉMICO | G175: Catalogo principal | H175: USD | I175: N/A | J175: Microsoft® WinEDUA3 ALNG MonthlySub MVL Per User_FacultyLevelD | K175: Unidad | L175: Und | M175: Producto | N175: NA | O175: N/A | P175: N/A | Q175: AAA-72987FACD | R175: Suscripción mensual con pago anual | S175: 1.91 | T175: 1 | U175: 1 | V175: USD | W175: FALSE | X175: WIN EDU A3
A176: Catalogo principalACADÉMICOAAA-72987STUA | B176: AAA-72987STUAACADÉMICO | D176: Catalogo principal | E176: AAA-72987STUA | F176: ACADÉMICO | G176: Catalogo principal | H176: USD | I176: N/A | J176: Microsoft® WinEDUA3 ALNG MonthlySub MVL Per User_StudentLevelA | K176: Unidad | L176: Und | M176: Producto | N176: NA | O176: N/A | P176: N/A | Q176: AAA-72987STUA | R176: Suscripción mensual con pago anual | S176: 1.62 | T176: 1 | U176: 1 | V176: USD | W176: FALSE | X176: WIN EDU A3
A177: Catalogo principalACADÉMICOAAA-72987STUB | B177: AAA-72987STUBACADÉMICO | D177: Catalogo principal | E177: AAA-72987STUB | F177: ACADÉMICO | G177: Catalogo principal | H177: USD | I177: N/A | J177: Microsoft® WinEDUA3 ALNG MonthlySub MVL Per User_StudentLevelB | K177: Unidad | L177: Und | M177: Producto | N177: NA | O177: N/A | P177: N/A | Q177: AAA-72987STUB | R177: Suscripción mensual con pago anual | S177: 1.55 | T177: 1 | U177: 1 | V177: USD | W177: FALSE | X177: WIN EDU A3
A178: Catalogo principalACADÉMICOAAA-72987STUC | B178: AAA-72987STUCACADÉMICO | D178: Catalogo principal | E178: AAA-72987STUC | F178: ACADÉMICO | G178: Catalogo principal | H178: USD | I178: N/A | J178: Microsoft® WinEDUA3 ALNG MonthlySub MVL Per User_StudentLevelC | K178: Unidad | L178: Und | M178: Producto | N178: NA | O178: N/A | P178: N/A | Q178: AAA-72987STUC | R178: Suscripción mensual con pago anual | S178: 1.47 | T178: 1 | U178: 1 | V178: USD | W178: FALSE | X178: WIN EDU A3
A179: Catalogo principalACADÉMICOAAA-72987STUD | B179: AAA-72987STUDACADÉMICO | D179: Catalogo principal | E179: AAA-72987STUD | F179: ACADÉMICO | G179: Catalogo principal | H179: USD | I179: N/A | J179: Microsoft® WinEDUA3 ALNG MonthlySub MVL Per User_StudentLevelD | K179: Unidad | L179: Und | M179: Producto | N179: NA | O179: N/A | P179: N/A | Q179: AAA-72987STUD | R179: Suscripción mensual con pago anual | S179: 1.41 | T179: 1 | U179: 1 | V179: USD | W179: FALSE | X179: WIN EDU A3
A180: Catalogo principalACADÉMICOAAA-72988FACA | B180: AAA-72988FACAACADÉMICO | D180: Catalogo principal | E180: AAA-72988FACA | F180: ACADÉMICO | G180: Catalogo principal | H180: USD | I180: N/A | J180: Microsoft® WinEDUA5 ALNG MonthlySub MVL Per User_FacultyLevelA | K180: Unidad | L180: Und | M180: Producto | N180: NA | O180: N/A | P180: N/A | Q180: AAA-72988FACA | R180: Suscripción mensual con pago anual | S180: 4.69 | T180: 1 | U180: 1 | V180: USD | W180: FALSE | X180: Win EDU A5
A181: Catalogo principalACADÉMICOAAA-72988FACB | B181: AAA-72988FACBACADÉMICO | D181: Catalogo principal | E181: AAA-72988FACB | F181: ACADÉMICO | G181: Catalogo principal | H181: USD | I181: N/A | J181: Microsoft® WinEDUA5 ALNG MonthlySub MVL Per User_FacultyLevelB | K181: Unidad | L181: Und | M181: Producto | N181: NA | O181: N/A | P181: N/A | Q181: AAA-72988FACB | R181: Suscripción mensual con pago anual | S181: 4.6 | T181: 1 | U181: 1 | V181: USD | W181: FALSE | X181: Win EDU A5
A182: Catalogo principalACADÉMICOAAA-72988FACC | B182: AAA-72988FACCACADÉMICO | D182: Catalogo principal | E182: AAA-72988FACC | F182: ACADÉMICO | G182: Catalogo principal | H182: USD | I182: N/A | J182: Microsoft® WinEDUA5 ALNG MonthlySub MVL Per User_FacultyLevelC | K182: Unidad | L182: Und | M182: Producto | N182: NA | O182: N/A | P182: N/A | Q182: AAA-72988FACC | R182: Suscripción mensual con pago anual | S182: 4.49 | T182: 1 | U182: 1 | V182: USD | W182: FALSE | X182: Win EDU A5
A183: Catalogo principalACADÉMICOAAA-72988FACD | B183: AAA-72988FACDACADÉMICO | D183: Catalogo principal | E183: AAA-72988FACD | F183: ACADÉMICO | G183: Catalogo principal | H183: USD | I183: N/A | J183: Microsoft® WinEDUA5 ALNG MonthlySub MVL Per User_FacultyLevelD | K183: Unidad | L183: Und | M183: Producto | N183: NA | O183: N/A | P183: N/A | Q183: AAA-72988FACD | R183: Suscripción mensual con pago anual | S183: 4.41 | T183: 1 | U183: 1 | V183: USD | W183: FALSE | X183: Win EDU A5
A184: Catalogo principalACADÉMICOAAA-72988STUA | B184: AAA-72988STUAACADÉMICO | D184: Catalogo principal | E184: AAA-72988STUA | F184: ACADÉMICO | G184: Catalogo principal | H184: USD | I184: N/A | J184: Microsoft® WinEDUA5 ALNG MonthlySub MVL Per User_StudentLevelA | K184: Unidad | L184: Und | M184: Producto | N184: NA | O184: N/A | P184: N/A | Q184: AAA-72988STUA | R184: Suscripción mensual con pago anual | S184: 4.68 | T184: 1 | U184: 1 | V184: USD | W184: FALSE | X184: Win EDU A5
A185: Catalogo principalACADÉMICOAAA-72988STUB | B185: AAA-72988STUBACADÉMICO | D185: Catalogo principal | E185: AAA-72988STUB | F185: ACADÉMICO | G185: Catalogo principal | H185: USD | I185: N/A | J185: Microsoft® WinEDUA5 ALNG MonthlySub MVL Per User_StudentLevelB | K185: Unidad | L185: Und | M185: Producto | N185: NA | O185: N/A | P185: N/A | Q185: AAA-72988STUB | R185: Suscripción mensual con pago anual | S185: 4.61 | T185: 1 | U185: 1 | V185: USD | W185: FALSE | X185: Win EDU A5
A186: Catalogo principalACADÉMICOAAA-72988STUC | B186: AAA-72988STUCACADÉMICO | D186: Catalogo principal | E186: AAA-72988STUC | F186: ACADÉMICO | G186: Catalogo principal | H186: USD | I186: N/A | J186: Microsoft® WinEDUA5 ALNG MonthlySub MVL Per User_StudentLevelC | K186: Unidad | L186: Und | M186: Producto | N186: NA | O186: N/A | P186: N/A | Q186: AAA-72988STUC | R186: Suscripción mensual con pago anual | S186: 4.49 | T186: 1 | U186: 1 | V186: USD | W186: FALSE | X186: Win EDU A5
A187: Catalogo principalACADÉMICOAAA-72988STUD | B187: AAA-72988STUDACADÉMICO | D187: Catalogo principal | E187: AAA-72988STUD | F187: ACADÉMICO | G187: Catalogo principal | H187: USD | I187: N/A | J187: Microsoft® WinEDUA5 ALNG MonthlySub MVL Per User_StudentLevelD | K187: Unidad | L187: Und | M187: Producto | N187: NA | O187: N/A | P187: N/A | Q187: AAA-72988STUD | R187: Suscripción mensual con pago anual | S187: 4.41 | T187: 1 | U187: 1 | V187: USD | W187: FALSE | X187: Win EDU A5
A188: Catalogo principalACADÉMICOAAA-72989FACA | B188: AAA-72989FACAACADÉMICO | D188: Catalogo principal | E188: AAA-72989FACA | F188: ACADÉMICO | G188: Catalogo principal | H188: USD | I188: N/A | J188: Microsoft® WinEDUA5 Step-up From WinEduE3 ALNG MonthlySub MVL Per User_FacultyLevelA | K188: Unidad | L188: Und | M188: Producto | N188: NA | O188: N/A | P188: N/A | Q188: AAA-72989FACA | R188: Suscripción mensual con pago anual | S188: 2.65 | T188: 1 | U188: 1 | V188: USD | W188: FALSE | X188: Win EDU A5
A189: Catalogo principalACADÉMICOAAA-72989FACB | B189: AAA-72989FACBACADÉMICO | D189: Catalogo principal | E189: AAA-72989FACB | F189: ACADÉMICO | G189: Catalogo principal | H189: USD | I189: N/A | J189: Microsoft® WinEDUA5 Step-up From WinEduE3 ALNG MonthlySub MVL Per User_FacultyLevelB | K189: Unidad | L189: Und | M189: Producto | N189: NA | O189: N/A | P189: N/A | Q189: AAA-72989FACB | R189: Suscripción mensual con pago anual | S189: 2.65 | T189: 1 | U189: 1 | V189: USD | W189: FALSE | X189: Win EDU A5
A190: Catalogo principalACADÉMICOAAA-72989FACC | B190: AAA-72989FACCACADÉMICO | D190: Catalogo principal | E190: AAA-72989FACC | F190: ACADÉMICO | G190: Catalogo principal | H190: USD | I190: N/A | J190: Microsoft® WinEDUA5 Step-up From WinEduE3 ALNG MonthlySub MVL Per User_FacultyLevelC | K190: Unidad | L190: Und | M190: Producto | N190: NA | O190: N/A | P190: N/A | Q190: AAA-72989FACC | R190: Suscripción mensual con pago anual | S190: 2.65 | T190: 1 | U190: 1 | V190: USD | W190: FALSE | X190: Win EDU A5
A191: Catalogo principalACADÉMICOAAA-72989FACD | B191: AAA-72989FACDACADÉMICO | D191: Catalogo principal | E191: AAA-72989FACD | F191: ACADÉMICO | G191: Catalogo principal | H191: USD | I191: N/A | J191: Microsoft® WinEDUA5 Step-up From WinEduE3 ALNG MonthlySub MVL Per User_FacultyLevelD | K191: Unidad | L191: Und | M191: Producto | N191: NA | O191: N/A | P191: N/A | Q191: AAA-72989FACD | R191: Suscripción mensual con pago anual | S191: 2.65 | T191: 1 | U191: 1 | V191: USD | W191: FALSE | X191: Win EDU A5
A192: Catalogo principalACADÉMICOAAA-72989STUA | B192: AAA-72989STUAACADÉMICO | D192: Catalogo principal | E192: AAA-72989STUA | F192: ACADÉMICO | G192: Catalogo principal | H192: USD | I192: N/A | J192: Microsoft® WinEDUA5 Step-up From WinEduE3 ALNG MonthlySub MVL Per User_StudentLevelA | K192: Unidad | L192: Und | M192: Producto | N192: NA | O192: N/A | P192: N/A | Q192: AAA-72989STUA | R192: Suscripción mensual con pago anual | S192: 3.2 | T192: 1 | U192: 1 | V192: USD | W192: FALSE | X192: Win EDU A5
A193: Catalogo principalACADÉMICOAAA-72989STUB | B193: AAA-72989STUBACADÉMICO | D193: Catalogo principal | E193: AAA-72989STUB | F193: ACADÉMICO | G193: Catalogo principal | H193: USD | I193: N/A | J193: Microsoft® WinEDUA5 Step-up From WinEduE3 ALNG MonthlySub MVL Per User_StudentLevelB | K193: Unidad | L193: Und | M193: Producto | N193: NA | O193: N/A | P193: N/A | Q193: AAA-72989STUB | R193: Suscripción mensual con pago anual | S193: 3.2 | T193: 1 | U193: 1 | V193: USD | W193: FALSE | X193: Win EDU A5
A194: Catalogo principalACADÉMICOAAA-72989STUC | B194: AAA-72989STUCACADÉMICO | D194: Catalogo principal | E194: AAA-72989STUC | F194: ACADÉMICO | G194: Catalogo principal | H194: USD | I194: N/A | J194: Microsoft® WinEDUA5 Step-up From WinEduE3 ALNG MonthlySub MVL Per User_StudentLevelC | K194: Unidad | L194: Und | M194: Producto | N194: NA | O194: N/A | P194: N/A | Q194: AAA-72989STUC | R194: Suscripción mensual con pago anual | S194: 3.15 | T194: 1 | U194: 1 | V194: USD | W194: FALSE | X194: Win EDU A5
A195: =D195&F195&E195 -> Catalogo principalACADÉMICOAAA-72989STUD | B195: =E195&F195 -> AAA-72989STUDACADÉMICO | D195: Catalogo principal | E195: AAA-72989STUD | F195: ACADÉMICO | G195: =D195 -> Catalogo principal | H195: USD | I195: N/A | J195: Microsoft® WinEDUA5 Step-up From WinEduE3 ALNG MonthlySub MVL Per User_StudentLevelD | K195: Unidad | L195: Und | M195: Producto | N195: NA | O195: N/A | P195: N/A | Q195: AAA-72989STUD | R195: Suscripción mensual con pago anual | S195: 3.13 | T195: 1 | U195: 1 | V195: =H195 -> USD | W195: =IF(U195="NO",0,IF(U195="SI",1)) -> FALSE | X195: Win EDU A5
A196: Catalogo principalACADÉMICOAAA-72990SUB | B196: AAA-72990SUBACADÉMICO | D196: Catalogo principal | E196: AAA-72990SUB | F196: ACADÉMICO | G196: Catalogo principal | H196: USD | I196: N/A | J196: Microsoft® WinEDUA5 ALNG MonthlySub MVL Per User STUUseBnft | K196: Unidad | L196: Und | M196: Producto | N196: NA | O196: N/A | P196: N/A | Q196: AAA-72990SUB | R196: Suscripción mensual con pago anual | S196: 0 | T196: 1 | U196: 1 | V196: USD | W196: FALSE | X196: Win EDU A5
A197: Catalogo principalACADÉMICOAAA-72993FACA | B197: AAA-72993FACAACADÉMICO | D197: Catalogo principal | E197: AAA-72993FACA | F197: ACADÉMICO | G197: Catalogo principal | H197: USD | I197: N/A | J197: Microsoft® M365 EDU A3 Step-up From O365 A3 Shared ALNG MonthlySub MVL Per User (Original)_FacultyLevelA | K197: Unidad | L197: Und | M197: Producto | N197: NA | O197: N/A | P197: N/A | Q197: AAA-72993FACA | R197: Suscripción mensual con pago anual | S197: 3.4 | T197: 1 | U197: 1 | V197: USD | W197: FALSE | X197: M365 Education A3 Original
A198: Catalogo principalACADÉMICOAAA-72993FACB | B198: AAA-72993FACBACADÉMICO | D198: Catalogo principal | E198: AAA-72993FACB | F198: ACADÉMICO | G198: Catalogo principal | H198: USD | I198: N/A | J198: Microsoft® M365 EDU A3 Step-up From O365 A3 Shared ALNG MonthlySub MVL Per User (Original)_FacultyLevelB | K198: Unidad | L198: Und | M198: Producto | N198: NA | O198: N/A | P198: N/A | Q198: AAA-72993FACB | R198: Suscripción mensual con pago anual | S198: 3.18 | T198: 1 | U198: 1 | V198: USD | W198: FALSE | X198: M365 Education A3 Original
A199: Catalogo principalACADÉMICOAAA-72993FACC | B199: AAA-72993FACCACADÉMICO | D199: Catalogo principal | E199: AAA-72993FACC | F199: ACADÉMICO | G199: Catalogo principal | H199: USD | I199: N/A | J199: Microsoft® M365 EDU A3 Step-up From O365 A3 Shared ALNG MonthlySub MVL Per User (Original)_FacultyLevelC | K199: Unidad | L199: Und | M199: Producto | N199: NA | O199: N/A | P199: N/A | Q199: AAA-72993FACC | R199: Suscripción mensual con pago anual | S199: 2.93 | T199: 1 | U199: 1 | V199: USD | W199: FALSE | X199: M365 Education A3 Original
A200: Catalogo principalACADÉMICOAAA-72993FACD | B200: AAA-72993FACDACADÉMICO | D200: Catalogo principal | E200: AAA-72993FACD | F200: ACADÉMICO | G200: Catalogo principal | H200: USD | I200: N/A | J200: Microsoft® M365 EDU A3 Step-up From O365 A3 Shared ALNG MonthlySub MVL Per User (Original)_FacultyLevelD | K200: Unidad | L200: Und | M200: Producto | N200: NA | O200: N/A | P200: N/A | Q200: AAA-72993FACD | R200: Suscripción mensual con pago anual | S200: 2.77 | T200: 1 | U200: 1 | V200: USD | W200: FALSE | X200: M365 Education A3 Original
... 1970 more rows

Sheet ProXCat (hidden)
A3: Etiquetas de fila
A4: 1
A5: Controles Empresariales S.A.S.
A6: The Best Experience in Technology S.A
A7: UT Soft-IG
A8: UT Soluciones Microsoft 2017
A9: Total 1
A10: 2
A11: Controles Empresariales S.A.S.
A12: Dell Colombia INC
A13: The Best Experience in Technology S.A
A14: UT Soft-IG
A15: UT Soluciones Microsoft 2017
A16: Total 2
A17: 3
A18: Controles Empresariales S.A.S.
A19: UT Soft-IG
A20: UT Soluciones Microsoft 2017
A21: Total 3
A22: 4
A23: Controles Empresariales S.A.S.
A24: UT Soft-IG
A25: Total 4
A26: 5
A27: Controles Empresariales S.A.S.
A28: UT Soft-IG
A29: Vision Software S.A.S.
A30: Total 5
A31: 6
A32: Controles Empresariales S.A.S.
A33: The Best Experience in Technology S.A
A34: UT Soft-IG
A35: UT Soluciones Microsoft 2017
A36: Total 6
A37: 7
A38: Controles Empresariales S.A.S.
A39: The Best Experience in Technology S.A
A40: UT Soft-IG
A41: UT Soluciones Microsoft 2017
A42: Vision Software S.A.S.
A43: Total 7
A44: Total general

Sheet Cuadro Totales (hidden)
A1: Precio Unitario | B1: Precio Unitario + Gravamen | C1: Subtotal | D1: IVA | E1: Precio Total
D3: Valor Total | E3: =SUM(E2) -> 0
A8: Precio Unitario | B8: Precio Unitario + Gravamen | C8: Descuento adicional | D8: Precio con Descuento | E8: Subtotal | F8: IVA | G8: Vr IVA | H8: Precio Total
G10: Valor Total | H10: =SUM(H9) -> 0
A13: Servicios Azure
A14: Subtotal | B14: IVA | C14: Precio Total

Sheet Listas (hidden)
A1: Categoria | B1: Zona | C1: Marca | D1: ProductoInicial | E1: Producto | F1: Proveedores
A2: ACADÉMICO | D2: 125-00110AP | F2: Controles Empresariales
A3: ENTERPRISE | D3: 126-00156AP | F3: UT DELL EMC
D4: 228-04437AP | F4: UT Soft-IG
D5: 2ER-00003AP | F5: UT Softlinebext 20202
D6: 2ER-00003STU
D7: 2FJ-00001FACA
D8: 2FJ-00001FACB
D9: 2FJ-00001FACC
D10: 2FJ-00001FACD
D11: 2FJ-00001STUA
D12: 2FJ-00001STUB
D13: 2FJ-00001STUC
D14: 2FJ-00001STUD
D15: 2UJ-00001FACA
D16: 2UJ-00001FACB
D17: 2UJ-00001FACC
D18: 2UJ-00001FACD
D19: 2UJ-00001STUA
D20: 2UJ-00001STUB
D21: 2UJ-00001STUC
D22: 2UJ-00001STUD
D23: 2UJ-00003FACA
D24: 2UJ-00003FACB
D25: 2UJ-00003FACC
D26: 2UJ-00003FACD
D27: 2UJ-00003STUA
D28: 2UJ-00003STUB
D29: 2UJ-00003STUC
D30: 2UJ-00003STUD
D31: 2UJ-00004FACA
D32: 2UJ-00004FACB
D33: 2UJ-00004FACC
D34: 2UJ-00004FACD
D35: 2UJ-00004STUA
D36: 2UJ-00004STUB
D37: 2UJ-00004STUC
D38: 2UJ-00004STUD
D39: 2ZA-00001SUB
D40: 2ZA-00002AP
D41: 2ZA-00002FAC
D42: 2ZA-00002STU
D43: 2ZR-00001AP
D44: 2ZR-00001STU
D45: 312-02177AP
D46: 32M-00001AP
D47: 32M-00001STU
D48: 359-00765AP
D49: 359-00765FAC
D50: 359-00765STU
D51: 381-01587FAC
D52: 381-01587STU
D53: 395-02412AP
D54: 395-03039AP
D55: 3ND-00524FAC
D56: 3ND-00524STU
D57: 3R3-00001AP
D58: 3R3-00001STU
D59: 3R3-00004SUB
D60: 3VU-00043AP
D61: 3ZK-00193FAC
D62: 3ZK-00193STU
D63: 4ZF-00019AP
D64: 54R-00098AP
D65: 5HU-00215AP
D66: 5RS-00002AP
D67: 5WS-00001AP
D68: 5WS-00001STU
D69: 5XS-00001FACA
D70: 5XS-00001FACB
D71: 5XS-00001FACC
D72: 5XS-00001FACD
D73: 5XS-00001STUA
D74: 5XS-00001STUB
D75: 5XS-00001STUC
D76: 5XS-00001STUD
D77: 5XS-00002SUB
D78: 5XS-00003AP
D79: 5XS-00003STU
D80: 6E9-00001AP
D81: 6E9-00001STU
D82: 6E9-00002AP
D83: 6E9-00002STU
D84: 6E9-00004SUB
D85: 6MV-00003AP
D86: 6MV-00003STU
D87: 6QV-00003AP
D88: 6QV-00003STU
D89: 6VC-01251AP
D90: 6VC-01251FAC
D91: 6VC-01251STU
D92: 6XC-00298AP
D93: 6YH-00575AP
D94: 6YH-00575STU
D95: 6ZH-00395FAC
D96: 6ZH-00395STU
D97: 76A-00025FACA
D98: 76A-00025FACB
D99: 76A-00025FACC
D100: 76A-00025FACD
D101: 76A-00025STUA
D102: 76A-00025STUB
D103: 76A-00025STUC
D104: 76A-00025STUD
D105: 76A-00043FACA
D106: 76A-00043FACB
D107: 76A-00043FACC
D108: 76A-00043FACD
D109: 76A-00043STUA
D110: 76A-00043STUB
D111: 76A-00043STUC
D112: 76A-00043STUD
D113: 76N-02345FAC
D114: 76N-02345STU
D115: 77D-00110AP
D116: 7AH-00281FAC
D117: 7AH-00281STU
D118: 7HS-00001AP
D119: 7HS-00001STU
D120: 7JQ-00341AP
D121: 7JQ-00448AP
D122: 7MA-00001AP
D123: 7MA-00001STU
D124: 7MA-00002AP
D125: 7MA-00002STU
D126: 7MA-00003AP
D127: 7MA-00003STU
D128: 7NQ-00302AP
D129: 7TR-00001AP
D130: 7TR-00001STU
D131: 7TR-00002AP
D132: 7TR-00002STU
D133: 7TR-00003AP
D134: 7TR-00003STU
D135: 7UP-00001AP
D136: 7UP-00001STU
D137: 7V2-00001AP
D138: 7V2-00001STU
D139: 7V2-00002AP
D140: 7V2-00002STU
D141: 7VC-00137AP
D142: 965-00002AP
D143: 965-00002STU
D144: 9EA-00039AP
D145: 9EA-00271AP
D146: 9EA-00274AP
D147: 9EA-00279AP
D148: 9EM-00265AP
D149: 9EM-00562AP
D150: 9EN-00193AP
D151: 9EN-00494AP
D152: 9EP-00037AP
D153: 9EP-00201AP
D154: 9EP-00204AP
D155: 9EP-00209AP
D156: 9GA-00006AP
D157: 9GA-00308AP
D158: 9GS-00128AP
D159: 9GS-00131AP
D160: 9GS-00136AP
D161: 9GS-00495AP
D162: 9JS-00001AP
D163: 9KS-00001AP
D164: 9KS-00001STU
D165: 9RO-00043AP
D166: 9RS-00186AP
D167: 9ST-00091AP
D168: 9TH-00058AP
D169: 9TX-00635FAC
D170: 9TX-00635STU
D171: AAA-43267AP
D172: AAA-72987FACA
D173: AAA-72987FACB
D174: AAA-72987FACC
D175: AAA-72987FACD
D176: AAA-72987STUA
D177: AAA-72987STUB
D178: AAA-72987STUC
D179: AAA-72987STUD
D180: AAA-72988FACA
D181: AAA-72988FACB
D182: AAA-72988FACC
D183: AAA-72988FACD
D184: AAA-72988STUA
D185: AAA-72988STUB
D186: AAA-72988STUC
D187: AAA-72988STUD
D188: AAA-72989FACA
D189: AAA-72989FACB
D190: AAA-72989FACC
D191: AAA-72989FACD
D192: AAA-72989STUA
D193: AAA-72989STUB
D194: AAA-72989STUC
D195: AAA-72989STUD
D196: AAA-72990SUB
D197: AAA-72993FACA
D198: AAA-72993FACB
D199: AAA-72993FACC
D200: AAA-72993FACD
... 841 more rows

Sheet minimo (hidden)
C1: categoria | D1: Canal
C3: Etiquetas de fila | D3: Suma de total
C4: UT DELL EMC | D4: 0
C5: UT Soft-IG | D5: 0
C6: Controles Empresariales | D6: 0
C7: UT Softlinebext 20202 | D7: 0
C8: Total general | D8: 0

Sheet temp (hidden)
A1: LLAVE | B1: TEMP1 | C1: TEMP2 | D1: PROVEEDOR | E1: Código matriz Colombia Compra Eficiente | F1: categoria | G1: PROVEEDOR2 | H1: Moneda | I1: Parametrización de los Servicios | J1: Nombre Producto | K1: Unidad de Medida | L1: Unidad TVEC | M1: Tipo | N1: Zona | O1: Asistencia | P1: Perfil | Q1: Número de parte | R1: Forma de Pago | S1: Precio | T1: Activo | U1: IVA | V1: cant | W1: valor base | X1: valor con gravamenes | Y1: total
A2: =D2&F2&E2 -> Catalogo principalACADÉMICO125-00110AP | B2: =E2&F2 -> 125-00110APACADÉMICO | D2: Catalogo principal | E2: 125-00110AP | F2: ACADÉMICO | G2: =D2 -> Catalogo principal | H2: USD | I2: N/A | J2: Microsoft®AzureDevOpsServer AllLng License/SoftwareAssurancePack MVL 1License_Additional Product | K2: Unidad | L2: Und | M2: Producto | N2: NA | O2: N/A | P2: N/A | Q2: 125-00110AP | R2: Suscripción Anual | S2: 41 | T2: 1 | U2: 1 | V2: =SUMIF(ResumenCotizacion!$C:$C,E2,ResumenCotizacion!$P:$P) -> 0 | W2: =IF(H2="USD",S2*SolCotizacion!$J$18,S2) -> 154084.15 | X2: =ROUND(W2/(1-VLOOKUP("Total porcentaje:",ResumenCotizacion!$F:$H,3,0)),2) -> 159838.33 | Y2: =V2*X2 -> 0
A3: =D3&F3&E3 -> Catalogo principalACADÉMICO126-00156AP | B3: =E3&F3 -> 126-00156APACADÉMICO | D3: Catalogo principal | E3: 126-00156AP | F3: ACADÉMICO | G3: =D3 -> Catalogo principal | H3: USD | I3: N/A | J3: Microsoft®AzureDevOpsServerCAL AllLng License/SoftwareAssurancePack MVL 1License DvcCAL_Additional Product | K3: Unidad | L3: Und | M3: Producto | N3: NA | O3: N/A | P3: N/A | Q3: 126-00156AP | R3: Suscripción Anual | S3: 41 | T3: 1 | U3: 1 | V3: =SUMIF(ResumenCotizacion!$C:$C,E3,ResumenCotizacion!$P:$P) -> 0 | W3: =IF(H3="USD",S3*SolCotizacion!$J$18,S3) -> 154084.15 | X3: =ROUND(W3/(1-VLOOKUP("Total porcentaje:",ResumenCotizacion!$F:$H,3,0)),2) -> 159838.33 | Y3: =V3*X3 -> 0
A4: Catalogo principalACADÉMICO228-04437AP | B4: 228-04437APACADÉMICO | D4: Catalogo principal | E4: 228-04437AP | F4: ACADÉMICO | G4: Catalogo principal | H4: USD | I4: N/A | J4: Microsoft®SQLServerStandardEdition AllLng License/SoftwareAssurancePack MVL 1License_Additional Product | K4: Unidad | L4: Und | M4: Producto | N4: NA | O4: N/A | P4: N/A | Q4: 228-04437AP | R4: Suscripción Anual | S4: 95 | T4: 1 | U4: 1 | V4: =SUMIF(ResumenCotizacion!$C:$C,E4,ResumenCotizacion!$P:$P) -> 0 | W4: =IF(H4="USD",S4*SolCotizacion!$J$18,S4) -> 357024.25 | X4: =ROUND(W4/(1-VLOOKUP("Total porcentaje:",ResumenCotizacion!$F:$H,3,0)),2) -> 370357.11 | Y4: 0
A5: Catalogo principalACADÉMICO2ER-00003AP | B5: 2ER-00003APACADÉMICO | D5: Catalogo principal | E5: 2ER-00003AP | F5: ACADÉMICO | G5: Catalogo principal | H5: USD | I5: N/A | J5: Microsoft®CloudAppSecurity ShrdSvr AllLng MonthlySubscriptions-VolumeLicense MVL 1License PerUsr Education_Additional Product | K5: Unidad | L5: Und | M5: Producto | N5: NA | O5: N/A | P5: N/A | Q5: 2ER-00003AP | R5: Suscripción mensual con pago anual | S5: 0.9 | T5: 1 | U5: 1 | V5: =SUMIF(ResumenCotizacion!$C:$C,E5,ResumenCotizacion!$P:$P) -> 0 | W5: =IF(H5="USD",S5*SolCotizacion!$J$18,S5) -> 3382.335 | X5: =ROUND(W5/(1-VLOOKUP("Total porcentaje:",ResumenCotizacion!$F:$H,3,0)),2) -> 3508.65 | Y5: 0
A6: Catalogo principalACADÉMICO2ER-00003STU | B6: 2ER-00003STUACADÉMICO | D6: Catalogo principal | E6: 2ER-00003STU | F6: ACADÉMICO | G6: Catalogo principal | H6: USD | I6: N/A | J6: Microsoft®CloudAppSecurity ShrdSvr AllLng MonthlySubscriptions-VolumeLicense MVL 1License PerUsr Education_Student | K6: Unidad | L6: Und | M6: Producto | N6: NA | O6: N/A | P6: N/A | Q6: 2ER-00003STU | R6: Suscripción mensual con pago anual | S6: 0.5 | T6: 1 | U6: 1 | V6: =SUMIF(ResumenCotizacion!$C:$C,E6,ResumenCotizacion!$P:$P) -> 0 | W6: =IF(H6="USD",S6*SolCotizacion!$J$18,S6) -> 1879.075 | X6: =ROUND(W6/(1-VLOOKUP("Total porcentaje:",ResumenCotizacion!$F:$H,3,0)),2) -> 1949.25 | Y6: 0
A7: Catalogo principalACADÉMICO2FJ-00001FACA | B7: 2FJ-00001FACAACADÉMICO | D7: Catalogo principal | E7: 2FJ-00001FACA | F7: ACADÉMICO | G7: Catalogo principal | H7: USD | I7: N/A | J7: Microsoft®OfficeProPlusEducation AllLng License/SoftwareAssurancePack MVL 1License Pre2017EES_FacultyLevelA | K7: Unidad | L7: Und | M7: Producto | N7: NA | O7: N/A | P7: N/A | Q7: 2FJ-00001FACA | R7: Suscripción Anual | S7: 30 | T7: 1 | U7: 1 | V7: =SUMIF(ResumenCotizacion!$C:$C,E7,ResumenCotizacion!$P:$P) -> 0 | W7: =IF(H7="USD",S7*SolCotizacion!$J$18,S7) -> 112744.5 | X7: =ROUND(W7/(1-VLOOKUP("Total porcentaje:",ResumenCotizacion!$F:$H,3,0)),2) -> 116954.88 | Y7: 0
A8: Catalogo principalACADÉMICO2FJ-00001FACB | B8: 2FJ-00001FACBACADÉMICO | D8: Catalogo principal | E8: 2FJ-00001FACB | F8: ACADÉMICO | G8: Catalogo principal | H8: USD | I8: N/A | J8: Microsoft®OfficeProPlusEducation AllLng License/SoftwareAssurancePack MVL 1License Pre2017EES_FacultyLevelB | K8: Unidad | L8: Und | M8: Producto | N8: NA | O8: N/A | P8: N/A | Q8: 2FJ-00001FACB | R8: Suscripción Anual | S8: 27 | T8: 1 | U8: 1 | V8: =SUMIF(ResumenCotizacion!$C:$C,E8,ResumenCotizacion!$P:$P) -> 0 | W8: =IF(H8="USD",S8*SolCotizacion!$J$18,S8) -> 101470.05 | X8: =ROUND(W8/(1-VLOOKUP("Total porcentaje:",ResumenCotizacion!$F:$H,3,0)),2) -> 105259.39 | Y8: 0
A9: Catalogo principalACADÉMICO2FJ-00001FACC | B9: 2FJ-00001FACCACADÉMICO | D9: Catalogo principal | E9: 2FJ-00001FACC | F9: ACADÉMICO | G9: Catalogo principal | H9: USD | I9: N/A | J9: Microsoft®OfficeProPlusEducation AllLng License/SoftwareAssurancePack MVL 1License Pre2017EES_FacultyLevelC | K9: Unidad | L9: Und | M9: Producto | N9: NA | O9: N/A | P9: N/A | Q9: 2FJ-00001FACC | R9: Suscripción Anual | S9: 25 | T9: 1 | U9: 1 | V9: =SUMIF(ResumenCotizacion!$C:$C,E9,ResumenCotizacion!$P:$P) -> 0 | W9: =IF(H9="USD",S9*SolCotizacion!$J$18,S9) -> 93953.75 | X9: =ROUND(W9/(1-VLOOKUP("Total porcentaje:",ResumenCotizacion!$F:$H,3,0)),2) -> 97462.4 | Y9: 0
A10: Catalogo principalACADÉMICO2FJ-00001FACD | B10: 2FJ-00001FACDACADÉMICO | D10: Catalogo principal | E10: 2FJ-00001FACD | F10: ACADÉMICO | G10: Catalogo principal | H10: USD | I10: N/A | J10: Microsoft®OfficeProPlusEducation AllLng License/SoftwareAssurancePack MVL 1License Pre2017EES_FacultyLevelD | K10: Unidad | L10: Und | M10: Producto | N10: NA | O10: N/A | P10: N/A | Q10: 2FJ-00001FACD | R10: Suscripción Anual | S10: 24 | T10: 1 | U10: 1 | V10: =SUMIF(ResumenCotizacion!$C:$C,E10,ResumenCotizacion!$P:$P) -> 0 | W10: =IF(H10="USD",S10*SolCotizacion!$J$18,S10) -> 90195.6 | X10: =ROUND(W10/(1-VLOOKUP("Total porcentaje:",ResumenCotizacion!$F:$H,3,0)),2) -> 93563.9 | Y10: 0
A11: Catalogo principalACADÉMICO2FJ-00001STUA | B11: 2FJ-00001STUAACADÉMICO | D11: Catalogo principal | E11: 2FJ-00001STUA | F11: ACADÉMICO | G11: Catalogo principal | H11: USD | I11: N/A | J11: Microsoft®OfficeProPlusEducation AllLng License/SoftwareAssurancePack MVL 1License Pre2017EES_StudentLevelA | K11: Unidad | L11: Und | M11: Producto | N11: NA | O11: N/A | P11: N/A | Q11: 2FJ-00001STUA | R11: Suscripción Anual | S11: 19 | T11: 1 | U11: 1 | V11: =SUMIF(ResumenCotizacion!$C:$C,E11,ResumenCotizacion!$P:$P) -> 0 | W11: =IF(H11="USD",S11*SolCotizacion!$J$18,S11) -> 71404.85 | X11: =ROUND(W11/(1-VLOOKUP("Total porcentaje:",ResumenCotizacion!$F:$H,3,0)),2) -> 74071.42 | Y11: 0
A12: Catalogo principalACADÉMICO2FJ-00001STUB | B12: 2FJ-00001STUBACADÉMICO | D12: Catalogo principal | E12: 2FJ-00001STUB | F12: ACADÉMICO | G12: Catalogo principal | H12: USD | I12: N/A | J12: Microsoft®OfficeProPlusEducation AllLng License/SoftwareAssurancePack MVL 1License Pre2017EES_StudentLevelB | K12: Unidad | L12: Und | M12: Producto | N12: NA | O12: N/A | P12: N/A | Q12: 2FJ-00001STUB | R12: Suscripción Anual | S12: 18 | T12: 1 | U12: 1 | V12: =SUMIF(ResumenCotizacion!$C:$C,E12,ResumenCotizacion!$P:$P) -> 0 | W12: =IF(H12="USD",S12*SolCotizacion!$J$18,S12) -> 67646.7 | X12: =ROUND(W12/(1-VLOOKUP("Total porcentaje:",ResumenCotizacion!$F:$H,3,0)),2) -> 70172.93 | Y12: 0
A13: Catalogo principalACADÉMICO2FJ-00001STUC | B13: 2FJ-00001STUCACADÉMICO | D13: Catalogo principal | E13: 2FJ-00001STUC | F13: ACADÉMICO | G13: Catalogo principal | H13: USD | I13: N/A | J13: Microsoft®OfficeProPlusEducation AllLng License/SoftwareAssurancePack MVL 1License Pre2017EES_StudentLevelC | K13: Unidad | L13: Und | M13: Producto | N13: NA | O13: N/A | P13: N/A | Q13: 2FJ-00001STUC | R13: Suscripción Anual | S13: 17 | T13: 1 | U13: 1 | V13: =SUMIF(ResumenCotizacion!$C:$C,E13,ResumenCotizacion!$P:$P) -> 0 | W13: =IF(H13="USD",S13*SolCotizacion!$J$18,S13) -> 63888.55 | X13: =ROUND(W13/(1-VLOOKUP("Total porcentaje:",ResumenCotizacion!$F:$H,3,0)),2) -> 66274.43 | Y13: 0
A14: Catalogo principalACADÉMICO2FJ-00001STUD | B14: 2FJ-00001STUDACADÉMICO | D14: Catalogo principal | E14: 2FJ-00001STUD | F14: ACADÉMICO | G14: Catalogo principal | H14: USD | I14: N/A | J14: Microsoft®OfficeProPlusEducation AllLng License/SoftwareAssurancePack MVL 1License Pre2017EES_StudentLevelD | K14: Unidad | L14: Und | M14: Producto | N14: NA | O14: N/A | P14: N/A | Q14: 2FJ-00001STUD | R14: Suscripción Anual | S14: 16 | T14: 1 | U14: 1 | V14: =SUMIF(ResumenCotizacion!$C:$C,E14,ResumenCotizacion!$P:$P) -> 0 | W14: =IF(H14="USD",S14*SolCotizacion!$J$18,S14) -> 60130.4 | X14: =ROUND(W14/(1-VLOOKUP("Total porcentaje:",ResumenCotizacion!$F:$H,3,0)),2) -> 62375.93 | Y14: 0
A15: Catalogo principalACADÉMICO2UJ-00001FACA | B15: 2UJ-00001FACAACADÉMICO | D15: Catalogo principal | E15: 2UJ-00001FACA | F15: ACADÉMICO | G15: Catalogo principal | H15: USD | I15: N/A | J15: Microsoft®DesktopEducation AllLng License/SoftwareAssurancePack MVL 1License Pre2017EES_FacultyLevelA | K15: Unidad | L15: Und | M15: Producto | N15: NA | O15: N/A | P15: N/A | Q15: 2UJ-00001FACA | R15: Suscripción Anual | S15: 62 | T15: 1 | U15: 1 | V15: =SUMIF(ResumenCotizacion!$C:$C,E15,ResumenCotizacion!$P:$P) -> 0 | W15: =IF(H15="USD",S15*SolCotizacion!$J$18,S15) -> 233005.3 | X15: =ROUND(W15/(1-VLOOKUP("Total porcentaje:",ResumenCotizacion!$F:$H,3,0)),2) -> 241706.74 | Y15: 0
A16: Catalogo principalACADÉMICO2UJ-00001FACB | B16: 2UJ-00001FACBACADÉMICO | D16: Catalogo principal | E16: 2UJ-00001FACB | F16: ACADÉMICO | G16: Catalogo principal | H16: USD | I16: N/A | J16: Microsoft®DesktopEducation AllLng License/SoftwareAssurancePack MVL 1License Pre2017EES_FacultyLevelB | K16: Unidad | L16: Und | M16: Producto | N16: NA | O16: N/A | P16: N/A | Q16: 2UJ-00001FACB | R16: Suscripción Anual | S16: 57 | T16: 1 | U16: 1 | V16: =SUMIF(ResumenCotizacion!$C:$C,E16,ResumenCotizacion!$P:$P) -> 0 | W16: =IF(H16="USD",S16*SolCotizacion!$J$18,S16) -> 214214.55 | X16: =ROUND(W16/(1-VLOOKUP("Total porcentaje:",ResumenCotizacion!$F:$H,3,0)),2) -> 222214.26 | Y16: 0
A17: Catalogo principalACADÉMICO2UJ-00001FACC | B17: 2UJ-00001FACCACADÉMICO | D17: Catalogo principal | E17: 2UJ-00001FACC | F17: ACADÉMICO | G17: Catalogo principal | H17: USD | I17: N/A | J17: Microsoft®DesktopEducation AllLng License/SoftwareAssurancePack MVL 1License Pre2017EES_FacultyLevelC | K17: Unidad | L17: Und | M17: Producto | N17: NA | O17: N/A | P17: N/A | Q17: 2UJ-00001FACC | R17: Suscripción Anual | S17: 53 | T17: 1 | U17: 1 | V17: =SUMIF(ResumenCotizacion!$C:$C,E17,ResumenCotizacion!$P:$P) -> 0 | W17: =IF(H17="USD",S17*SolCotizacion!$J$18,S17) -> 199181.95 | X17: =ROUND(W17/(1-VLOOKUP("Total porcentaje:",ResumenCotizacion!$F:$H,3,0)),2) -> 206620.28 | Y17: 0
A18: Catalogo principalACADÉMICO2UJ-00001FACD | B18: 2UJ-00001FACDACADÉMICO | D18: Catalogo principal | E18: 2UJ-00001FACD | F18: ACADÉMICO | G18: Catalogo principal | H18: USD | I18: N/A | J18: Microsoft®DesktopEducation AllLng License/SoftwareAssurancePack MVL 1License Pre2017EES_FacultyLevelD | K18: Unidad | L18: Und | M18: Producto | N18: NA | O18: N/A | P18: N/A | Q18: 2UJ-00001FACD | R18: Suscripción Anual | S18: 51 | T18: 1 | U18: 1 | V18: =SUMIF(ResumenCotizacion!$C:$C,E18,ResumenCotizacion!$P:$P) -> 0 | W18: =IF(H18="USD",S18*SolCotizacion!$J$18,S18) -> 191665.65 | X18: =ROUND(W18/(1-VLOOKUP("Total porcentaje:",ResumenCotizacion!$F:$H,3,0)),2) -> 198823.29 | Y18: 0
A19: Catalogo principalACADÉMICO2UJ-00001STUA | B19: 2UJ-00001STUAACADÉMICO | D19: Catalogo principal | E19: 2UJ-00001STUA | F19: ACADÉMICO | G19: Catalogo principal | H19: USD | I19: N/A | J19: Microsoft®DesktopEducation AllLng License/SoftwareAssurancePack MVL 1License Pre2017EES_StudentLevelA | K19: Unidad | L19: Und | M19: Producto | N19: NA | O19: N/A | P19: N/A | Q19: 2UJ-00001STUA | R19: Suscripción Anual | S19: 23 | T19: 1 | U19: 1 | V19: =SUMIF(ResumenCotizacion!$C:$C,E19,ResumenCotizacion!$P:$P) -> 0 | W19: =IF(H19="USD",S19*SolCotizacion!$J$18,S19) -> 86437.45 | X19: =ROUND(W19/(1-VLOOKUP("Total porcentaje:",ResumenCotizacion!$F:$H,3,0)),2) -> 89665.4 | Y19: 0
A20: Catalogo principalACADÉMICO2UJ-00001STUB | B20: 2UJ-00001STUBACADÉMICO | D20: Catalogo principal | E20: 2UJ-00001STUB | F20: ACADÉMICO | G20: Catalogo principal | H20: USD | I20: N/A | J20: Microsoft®DesktopEducation AllLng License/SoftwareAssurancePack MVL 1License Pre2017EES_StudentLevelB | K20: Unidad | L20: Und | M20: Producto | N20: NA | O20: N/A | P20: N/A | Q20: 2UJ-00001STUB | R20: Suscripción Anual | S20: 22 | T20: 1 | U20: 1 | V20: =SUMIF(ResumenCotizacion!$C:$C,E20,ResumenCotizacion!$P:$P) -> 0 | W20: =IF(H20="USD",S20*SolCotizacion!$J$18,S20) -> 82679.3 | X20: =ROUND(W20/(1-VLOOKUP("Total porcentaje:",ResumenCotizacion!$F:$H,3,0)),2) -> 85766.91 | Y20: 0
A21: Catalogo principalACADÉMICO2UJ-00001STUC | B21: 2UJ-00001STUCACADÉMICO | D21: Catalogo principal | E21: 2UJ-00001STUC | F21: ACADÉMICO | G21: Catalogo principal | H21: USD | I21: N/A | J21: Microsoft®DesktopEducation AllLng License/SoftwareAssurancePack MVL 1License Pre2017EES_StudentLevelC | K21: Unidad | L21: Und | M21: Producto | N21: NA | O21: N/A | P21: N/A | Q21: 2UJ-00001STUC | R21: Suscripción Anual | S21: 20 | T21: 1 | U21: 1 | V21: =SUMIF(ResumenCotizacion!$C:$C,E21,ResumenCotizacion!$P:$P) -> 0 | W21: =IF(H21="USD",S21*SolCotizacion!$J$18,S21) -> 75163 | X21: =ROUND(W21/(1-VLOOKUP("Total porcentaje:",ResumenCotizacion!$F:$H,3,0)),2) -> 77969.92 | Y21: 0
A22: Catalogo principalACADÉMICO2UJ-00001STUD | B22: 2UJ-00001STUDACADÉMICO | D22: Catalogo principal | E22: 2UJ-00001STUD | F22: ACADÉMICO | G22: Catalogo principal | H22: USD | I22: N/A | J22: Microsoft®DesktopEducation AllLng License/SoftwareAssurancePack MVL 1License Pre2017EES_StudentLevelD | K22: Unidad | L22: Und | M22: Producto | N22: NA | O22: N/A | P22: N/A | Q22: 2UJ-00001STUD | R22: Suscripción Anual | S22: 19 | T22: 1 | U22: 1 | V22: =SUMIF(ResumenCotizacion!$C:$C,E22,ResumenCotizacion!$P:$P) -> 0 | W22: =IF(H22="USD",S22*SolCotizacion!$J$18,S22) -> 71404.85 | X22: =ROUND(W22/(1-VLOOKUP("Total porcentaje:",ResumenCotizacion!$F:$H,3,0)),2) -> 74071.42 | Y22: 0
A23: Catalogo principalACADÉMICO2UJ-00003FACA | B23: 2UJ-00003FACAACADÉMICO | D23: Catalogo principal | E23: 2UJ-00003FACA | F23: ACADÉMICO | G23: Catalogo principal | H23: USD | I23: N/A | J23: Microsoft®DesktopEducation AllLng License/SoftwareAssurancePack MVL 1License Pre2017EES ECAL_FacultyLevelA | K23: Unidad | L23: Und | M23: Producto | N23: NA | O23: N/A | P23: N/A | Q23: 2UJ-00003FACA | R23: Suscripción Anual | S23: 72 | T23: 1 | U23: 1 | V23: =SUMIF(ResumenCotizacion!$C:$C,E23,ResumenCotizacion!$P:$P) -> 0 | W23: =IF(H23="USD",S23*SolCotizacion!$J$18,S23) -> 270586.8 | X23: =ROUND(W23/(1-VLOOKUP("Total porcentaje:",ResumenCotizacion!$F:$H,3,0)),2) -> 280691.7 | Y23: 0
A24: Catalogo principalACADÉMICO2UJ-00003FACB | B24: 2UJ-00003FACBACADÉMICO | D24: Catalogo principal | E24: 2UJ-00003FACB | F24: ACADÉMICO | G24: Catalogo principal | H24: USD | I24: N/A | J24: Microsoft®DesktopEducation AllLng License/SoftwareAssurancePack MVL 1License Pre2017EES ECAL_FacultyLevelB | K24: Unidad | L24: Und | M24: Producto | N24: NA | O24: N/A | P24: N/A | Q24: 2UJ-00003FACB | R24: Suscripción Anual | S24: 67 | T24: 1 | U24: 1 | V24: =SUMIF(ResumenCotizacion!$C:$C,E24,ResumenCotizacion!$P:$P) -> 0 | W24: =IF(H24="USD",S24*SolCotizacion!$J$18,S24) -> 251796.05 | X24: =ROUND(W24/(1-VLOOKUP("Total porcentaje:",ResumenCotizacion!$F:$H,3,0)),2) -> 261199.22 | Y24: 0
A25: Catalogo principalACADÉMICO2UJ-00003FACC | B25: 2UJ-00003FACCACADÉMICO | D25: Catalogo principal | E25: 2UJ-00003FACC | F25: ACADÉMICO | G25: Catalogo principal | H25: USD | I25: N/A | J25: Microsoft®DesktopEducation AllLng License/SoftwareAssurancePack MVL 1License Pre2017EES ECAL_FacultyLevelC | K25: Unidad | L25: Und | M25: Producto | N25: NA | O25: N/A | P25: N/A | Q25: 2UJ-00003FACC | R25: Suscripción Anual | S25: 62 | T25: 1 | U25: 1 | V25: =SUMIF(ResumenCotizacion!$C:$C,E25,ResumenCotizacion!$P:$P) -> 0 | W25: =IF(H25="USD",S25*SolCotizacion!$J$18,S25) -> 233005.3 | X25: =ROUND(W25/(1-VLOOKUP("Total porcentaje:",ResumenCotizacion!$F:$H,3,0)),2) -> 241706.74 | Y25: 0
A26: Catalogo principalACADÉMICO2UJ-00003FACD | B26: 2UJ-00003FACDACADÉMICO | D26: Catalogo principal | E26: 2UJ-00003FACD | F26: ACADÉMICO | G26: Catalogo principal | H26: USD | I26: N/A | J26: Microsoft®DesktopEducation AllLng License/SoftwareAssurancePack MVL 1License Pre2017EES ECAL_FacultyLevelD | K26: Unidad | L26: Und | M26: Producto | N26: NA | O26: N/A | P26: N/A | Q26: 2UJ-00003FACD | R26: Suscripción Anual | S26: 59 | T26: 1 | U26: 1 | V26: =SUMIF(ResumenCotizacion!$C:$C,E26,ResumenCotizacion!$P:$P) -> 0 | W26: =IF(H26="USD",S26*SolCotizacion!$J$18,S26) -> 221730.85 | X26: =ROUND(W26/(1-VLOOKUP("Total porcentaje:",ResumenCotizacion!$F:$H,3,0)),2) -> 230011.26 | Y26: 0
A27: Catalogo principalACADÉMICO2UJ-00003STUA | B27: 2UJ-00003STUAACADÉMICO | D27: Catalogo principal | E27: 2UJ-00003STUA | F27: ACADÉMICO | G27: Catalogo principal | H27: USD | I27: N/A | J27: Microsoft®DesktopEducation AllLng License/SoftwareAssurancePack MVL 1License Pre2017EES ECAL_StudentLevelA | K27: Unidad | L27: Und | M27: Producto | N27: NA | O27: N/A | P27: N/A | Q27: 2UJ-00003STUA | R27: Suscripción Anual | S27: 35 | T27: 1 | U27: 1 | V27: =SUMIF(ResumenCotizacion!$C:$C,E27,ResumenCotizacion!$P:$P) -> 0 | W27: =IF(H27="USD",S27*SolCotizacion!$J$18,S27) -> 131535.25 | X27: =ROUND(W27/(1-VLOOKUP("Total porcentaje:",ResumenCotizacion!$F:$H,3,0)),2) -> 136447.35 | Y27: 0
A28: Catalogo principalACADÉMICO2UJ-00003STUB | B28: 2UJ-00003STUBACADÉMICO | D28: Catalogo principal | E28: 2UJ-00003STUB | F28: ACADÉMICO | G28: Catalogo principal | H28: USD | I28: N/A | J28: Microsoft®DesktopEducation AllLng License/SoftwareAssurancePack MVL 1License Pre2017EES ECAL_StudentLevelB | K28: Unidad | L28: Und | M28: Producto | N28: NA | O28: N/A | P28: N/A | Q28: 2UJ-00003STUB | R28: Suscripción Anual | S28: 33 | T28: 1 | U28: 1 | V28: =SUMIF(ResumenCotizacion!$C:$C,E28,ResumenCotizacion!$P:$P) -> 0 | W28: =IF(H28="USD",S28*SolCotizacion!$J$18,S28) -> 124018.95 | X28: =ROUND(W28/(1-VLOOKUP("Total porcentaje:",ResumenCotizacion!$F:$H,3,0)),2) -> 128650.36 | Y28: 0
A29: Catalogo principalACADÉMICO2UJ-00003STUC | B29: 2UJ-00003STUCACADÉMICO | D29: Catalogo principal | E29: 2UJ-00003STUC | F29: ACADÉMICO | G29: Catalogo principal | H29: USD | I29: N/A | J29: Microsoft®DesktopEducation AllLng License/SoftwareAssurancePack MVL 1License Pre2017EES ECAL_StudentLevelC | K29: Unidad | L29: Und | M29: Producto | N29: NA | O29: N/A | P29: N/A | Q29: 2UJ-00003STUC | R29: Suscripción Anual | S29: 30 | T29: 1 | U29: 1 | V29: =SUMIF(ResumenCotizacion!$C:$C,E29,ResumenCotizacion!$P:$P) -> 0 | W29: =IF(H29="USD",S29*SolCotizacion!$J$18,S29) -> 112744.5 | X29: =ROUND(W29/(1-VLOOKUP("Total porcentaje:",ResumenCotizacion!$F:$H,3,0)),2) -> 116954.88 | Y29: 0
A30: Catalogo principalACADÉMICO2UJ-00003STUD | B30: 2UJ-00003STUDACADÉMICO | D30: Catalogo principal | E30: 2UJ-00003STUD | F30: ACADÉMICO | G30: Catalogo principal | H30: USD | I30: N/A | J30: Microsoft®DesktopEducation AllLng License/SoftwareAssurancePack MVL 1License Pre2017EES ECAL_StudentLevelD | K30: Unidad | L30: Und | M30: Producto | N30: NA | O30: N/A | P30: N/A | Q30: 2UJ-00003STUD | R30: Suscripción Anual | S30: 29 | T30: 1 | U30: 1 | V30: =SUMIF(ResumenCotizacion!$C:$C,E30,ResumenCotizacion!$P:$P) -> 0 | W30: =IF(H30="USD",S30*SolCotizacion!$J$18,S30) -> 108986.35 | X30: =ROUND(W30/(1-VLOOKUP("Total porcentaje:",ResumenCotizacion!$F:$H,3,0)),2) -> 113056.38 | Y30: 0
A31: Catalogo principalACADÉMICO2UJ-00004FACA | B31: 2UJ-00004FACAACADÉMICO | D31: Catalogo principal | E31: 2UJ-00004FACA | F31: ACADÉMICO | G31: Catalogo principal | H31: USD | I31: N/A | J31: Microsoft®DesktopEducation AllLng SAStepUp MVL 1License Pre2017EES ECAL_FacultyLevelA | K31: Unidad | L31: Und | M31: Producto | N31: NA | O31: N/A | P31: N/A | Q31: 2UJ-00004FACA | R31: Suscripción Anual | S31: 11 | T31: 1 | U31: 1 | V31: =SUMIF(ResumenCotizacion!$C:$C,E31,ResumenCotizacion!$P:$P) -> 0 | W31: =IF(H31="USD",S31*SolCotizacion!$J$18,S31) -> 41339.65 | X31: =ROUND(W31/(1-VLOOKUP("Total porcentaje:",ResumenCotizacion!$F:$H,3,0)),2) -> 42883.45 | Y31: 0
A32: Catalogo principalACADÉMICO2UJ-00004FACB | B32: 2UJ-00004FACBACADÉMICO | D32: Catalogo principal | E32: 2UJ-00004FACB | F32: ACADÉMICO | G32: Catalogo principal | H32: USD | I32: N/A | J32: Microsoft®DesktopEducation AllLng SAStepUp MVL 1License Pre2017EES ECAL_FacultyLevelB | K32: Unidad | L32: Und | M32: Producto | N32: NA | O32: N/A | P32: N/A | Q32: 2UJ-00004FACB | R32: Suscripción Anual | S32: 10 | T32: 1 | U32: 1 | V32: =SUMIF(ResumenCotizacion!$C:$C,E32,ResumenCotizacion!$P:$P) -> 0 | W32: =IF(H32="USD",S32*SolCotizacion!$J$18,S32) -> 37581.5 | X32: =ROUND(W32/(1-VLOOKUP("Total porcentaje:",ResumenCotizacion!$F:$H,3,0)),2) -> 38984.96 | Y32: 0
A33: Catalogo principalACADÉMICO2UJ-00004FACC | B33: 2UJ-00004FACCACADÉMICO | D33: Catalogo principal | E33: 2UJ-00004FACC | F33: ACADÉMICO | G33: Catalogo principal | H33: USD | I33: N/A | J33: Microsoft®DesktopEducation AllLng SAStepUp MVL 1License Pre2017EES ECAL_FacultyLevelC | K33: Unidad | L33: Und | M33: Producto | N33: NA | O33: N/A | P33: N/A | Q33: 2UJ-00004FACC | R33: Suscripción Anual | S33: 9 | T33: 1 | U33: 1 | V33: =SUMIF(ResumenCotizacion!$C:$C,E33,ResumenCotizacion!$P:$P) -> 0 | W33: =IF(H33="USD",S33*SolCotizacion!$J$18,S33) -> 33823.35 | X33: =ROUND(W33/(1-VLOOKUP("Total porcentaje:",ResumenCotizacion!$F:$H,3,0)),2) -> 35086.46 | Y33: 0
A34: Catalogo principalACADÉMICO2UJ-00004FACD | B34: 2UJ-00004FACDACADÉMICO | D34: Catalogo principal | E34: 2UJ-00004FACD | F34: ACADÉMICO | G34: Catalogo principal | H34: USD | I34: N/A | J34: Microsoft®DesktopEducation AllLng SAStepUp MVL 1License Pre2017EES ECAL_FacultyLevelD | K34: Unidad | L34: Und | M34: Producto | N34: NA | O34: N/A | P34: N/A | Q34: 2UJ-00004FACD | R34: Suscripción Anual | S34: 8 | T34: 1 | U34: 1 | V34: =SUMIF(ResumenCotizacion!$C:$C,E34,ResumenCotizacion!$P:$P) -> 0 | W34: =IF(H34="USD",S34*SolCotizacion!$J$18,S34) -> 30065.2 | X34: =ROUND(W34/(1-VLOOKUP("Total porcentaje:",ResumenCotizacion!$F:$H,3,0)),2) -> 31187.97 | Y34: 0
A35: Catalogo principalACADÉMICO2UJ-00004STUA | B35: 2UJ-00004STUAACADÉMICO | D35: Catalogo principal | E35: 2UJ-00004STUA | F35: ACADÉMICO | G35: Catalogo principal | H35: USD | I35: N/A | J35: Microsoft®DesktopEducation AllLng SAStepUp MVL 1License Pre2017EES ECAL_StudentLevelA | K35: Unidad | L35: Und | M35: Producto | N35: NA | O35: N/A | P35: N/A | Q35: 2UJ-00004STUA | R35: Suscripción Anual | S35: 12 | T35: 1 | U35: 1 | V35: =SUMIF(ResumenCotizacion!$C:$C,E35,ResumenCotizacion!$P:$P) -> 0 | W35: =IF(H35="USD",S35*SolCotizacion!$J$18,S35) -> 45097.8 | X35: =ROUND(W35/(1-VLOOKUP("Total porcentaje:",ResumenCotizacion!$F:$H,3,0)),2) -> 46781.95 | Y35: 0
A36: Catalogo principalACADÉMICO2UJ-00004STUB | B36: 2UJ-00004STUBACADÉMICO | D36: Catalogo principal | E36: 2UJ-00004STUB | F36: ACADÉMICO | G36: Catalogo principal | H36: USD | I36: N/A | J36: Microsoft®DesktopEducation AllLng SAStepUp MVL 1License Pre2017EES ECAL_StudentLevelB | K36: Unidad | L36: Und | M36: Producto | N36: NA | O36: N/A | P36: N/A | Q36: 2UJ-00004STUB | R36: Suscripción Anual | S36: 11 | T36: 1 | U36: 1 | V36: =SUMIF(ResumenCotizacion!$C:$C,E36,ResumenCotizacion!$P:$P) -> 0 | W36: =IF(H36="USD",S36*SolCotizacion!$J$18,S36) -> 41339.65 | X36: =ROUND(W36/(1-VLOOKUP("Total porcentaje:",ResumenCotizacion!$F:$H,3,0)),2) -> 42883.45 | Y36: 0
A37: Catalogo principalACADÉMICO2UJ-00004STUC | B37: 2UJ-00004STUCACADÉMICO | D37: Catalogo principal | E37: 2UJ-00004STUC | F37: ACADÉMICO | G37: Catalogo principal | H37: USD | I37: N/A | J37: Microsoft®DesktopEducation AllLng SAStepUp MVL 1License Pre2017EES ECAL_StudentLevelC | K37: Unidad | L37: Und | M37: Producto | N37: NA | O37: N/A | P37: N/A | Q37: 2UJ-00004STUC | R37: Suscripción Anual | S37: 11 | T37: 1 | U37: 1 | V37: =SUMIF(ResumenCotizacion!$C:$C,E37,ResumenCotizacion!$P:$P) -> 0 | W37: =IF(H37="USD",S37*SolCotizacion!$J$18,S37) -> 41339.65 | X37: =ROUND(W37/(1-VLOOKUP("Total porcentaje:",ResumenCotizacion!$F:$H,3,0)),2) -> 42883.45 | Y37: 0
A38: Catalogo principalACADÉMICO2UJ-00004STUD | B38: 2UJ-00004STUDACADÉMICO | D38: Catalogo principal | E38: 2UJ-00004STUD | F38: ACADÉMICO | G38: Catalogo principal | H38: USD | I38: N/A | J38: Microsoft®DesktopEducation AllLng SAStepUp MVL 1License Pre2017EES ECAL_StudentLevelD | K38: Unidad | L38: Und | M38: Producto | N38: NA | O38: N/A | P38: N/A | Q38: 2UJ-00004STUD | R38: Suscripción Anual | S38: 10 | T38: 1 | U38: 1 | V38: =SUMIF(ResumenCotizacion!$C:$C,E38,ResumenCotizacion!$P:$P) -> 0 | W38: =IF(H38="USD",S38*SolCotizacion!$J$18,S38) -> 37581.5 | X38: =ROUND(W38/(1-VLOOKUP("Total porcentaje:",ResumenCotizacion!$F:$H,3,0)),2) -> 38984.96 | Y38: 0
A39: Catalogo principalACADÉMICO2ZA-00001SUB | B39: 2ZA-00001SUBACADÉMICO | D39: Catalogo principal | E39: 2ZA-00001SUB | F39: ACADÉMICO | G39: Catalogo principal | H39: USD | I39: N/A | J39: Microsoft®MinecraftEducation AllLng MonthlySubscriptions-VolumeLicense MVL 1License PerUsr STUUseBnft | K39: Unidad | L39: Und | M39: Producto | N39: NA | O39: N/A | P39: N/A | Q39: 2ZA-00001SUB | R39: Suscripción mensual con pago anual | S39: 0 | T39: 1 | U39: 1 | V39: =SUMIF(ResumenCotizacion!$C:$C,E39,ResumenCotizacion!$P:$P) -> 0 | W39: =IF(H39="USD",S39*SolCotizacion!$J$18,S39) -> 0 | X39: =ROUND(W39/(1-VLOOKUP("Total porcentaje:",ResumenCotizacion!$F:$H,3,0)),2) -> 0 | Y39: 0
A40: Catalogo principalACADÉMICO2ZA-00002AP | B40: 2ZA-00002APACADÉMICO | D40: Catalogo principal | E40: 2ZA-00002AP | F40: ACADÉMICO | G40: Catalogo principal | H40: USD | I40: N/A | J40: Microsoft®MinecraftEducation AllLng MonthlySubscriptions-VolumeLicense MVL 1License PerUsr_Additional Product | K40: Unidad | L40: Und | M40: Producto | N40: NA | O40: N/A | P40: N/A | Q40: 2ZA-00002AP | R40: Suscripción mensual con pago anual | S40: 0.42 | T40: 1 | U40: 1 | V40: =SUMIF(ResumenCotizacion!$C:$C,E40,ResumenCotizacion!$P:$P) -> 0 | W40: =IF(H40="USD",S40*SolCotizacion!$J$18,S40) -> 1578.423 | X40: =ROUND(W40/(1-VLOOKUP("Total porcentaje:",ResumenCotizacion!$F:$H,3,0)),2) -> 1637.37 | Y40: 0
A41: Catalogo principalACADÉMICO2ZA-00002FAC | B41: 2ZA-00002FACACADÉMICO | D41: Catalogo principal | E41: 2ZA-00002FAC | F41: ACADÉMICO | G41: Catalogo principal | H41: USD | I41: N/A | J41: Microsoft®MinecraftEducation AllLng MonthlySubscriptions-VolumeLicense MVL 1License PerUsr_Faculty | K41: Unidad | L41: Und | M41: Producto | N41: NA | O41: N/A | P41: N/A | Q41: 2ZA-00002FAC | R41: Suscripción mensual con pago anual | S41: 1.1 | T41: 1 | U41: 1 | V41: =SUMIF(ResumenCotizacion!$C:$C,E41,ResumenCotizacion!$P:$P) -> 0 | W41: =IF(H41="USD",S41*SolCotizacion!$J$18,S41) -> 4133.965 | X41: =ROUND(W41/(1-VLOOKUP("Total porcentaje:",ResumenCotizacion!$F:$H,3,0)),2) -> 4288.35 | Y41: 0
A42: Catalogo principalACADÉMICO2ZA-00002STU | B42: 2ZA-00002STUACADÉMICO | D42: Catalogo principal | E42: 2ZA-00002STU | F42: ACADÉMICO | G42: Catalogo principal | H42: USD | I42: N/A | J42: Microsoft®MinecraftEducation AllLng MonthlySubscriptions-VolumeLicense MVL 1License PerUsr_Student | K42: Unidad | L42: Und | M42: Producto | N42: NA | O42: N/A | P42: N/A | Q42: 2ZA-00002STU | R42: Suscripción mensual con pago anual | S42: 0.42 | T42: 1 | U42: 1 | V42: =SUMIF(ResumenCotizacion!$C:$C,E42,ResumenCotizacion!$P:$P) -> 0 | W42: =IF(H42="USD",S42*SolCotizacion!$J$18,S42) -> 1578.423 | X42: =ROUND(W42/(1-VLOOKUP("Total porcentaje:",ResumenCotizacion!$F:$H,3,0)),2) -> 1637.37 | Y42: 0
A43: Catalogo principalACADÉMICO2ZR-00001AP | B43: 2ZR-00001APACADÉMICO | D43: Catalogo principal | E43: 2ZR-00001AP | F43: ACADÉMICO | G43: Catalogo principal | H43: USD | I43: N/A | J43: Microsoft®O365AdvancedComplianceEDU ShrdSvr AllLng MonthlySubscriptions-VolumeLicense MVL 1License PerUser_Additional Product | K43: Unidad | L43: Und | M43: Producto | N43: NA | O43: N/A | P43: N/A | Q43: 2ZR-00001AP | R43: Suscripción mensual con pago anual | S43: 2.5 | T43: 1 | U43: 1 | V43: =SUMIF(ResumenCotizacion!$C:$C,E43,ResumenCotizacion!$P:$P) -> 0 | W43: =IF(H43="USD",S43*SolCotizacion!$J$18,S43) -> 9395.375 | X43: =ROUND(W43/(1-VLOOKUP("Total porcentaje:",ResumenCotizacion!$F:$H,3,0)),2) -> 9746.24 | Y43: 0
A44: Catalogo principalACADÉMICO2ZR-00001STU | B44: 2ZR-00001STUACADÉMICO | D44: Catalogo principal | E44: 2ZR-00001STU | F44: ACADÉMICO | G44: Catalogo principal | H44: USD | I44: N/A | J44: Microsoft®O365AdvancedComplianceEDU ShrdSvr AllLng MonthlySubscriptions-VolumeLicense MVL 1License PerUser_Student | K44: Unidad | L44: Und | M44: Producto | N44: NA | O44: N/A | P44: N/A | Q44: 2ZR-00001STU | R44: Suscripción mensual con pago anual | S44: 2.15 | T44: 1 | U44: 1 | V44: =SUMIF(ResumenCotizacion!$C:$C,E44,ResumenCotizacion!$P:$P) -> 0 | W44: =IF(H44="USD",S44*SolCotizacion!$J$18,S44) -> 8080.0225 | X44: =ROUND(W44/(1-VLOOKUP("Total porcentaje:",ResumenCotizacion!$F:$H,3,0)),2) -> 8381.77 | Y44: 0
A45: Catalogo principalACADÉMICO312-02177AP | B45: 312-02177APACADÉMICO | D45: Catalogo principal | E45: 312-02177AP | F45: ACADÉMICO | G45: Catalogo principal | H45: USD | I45: N/A | J45: Microsoft®ExchangeServerStandard AllLng License/SoftwareAssurancePack MVL 1License_Additional Product | K45: Unidad | L45: Und | M45: Producto | N45: NA | O45: N/A | P45: N/A | Q45: 312-02177AP | R45: Suscripción Anual | S45: 75 | T45: 1 | U45: 1 | V45: =SUMIF(ResumenCotizacion!$C:$C,E45,ResumenCotizacion!$P:$P) -> 0 | W45: =IF(H45="USD",S45*SolCotizacion!$J$18,S45) -> 281861.25 | X45: =ROUND(W45/(1-VLOOKUP("Total porcentaje:",ResumenCotizacion!$F:$H,3,0)),2) -> 292387.19 | Y45: 0
A46: Catalogo principalACADÉMICO32M-00001AP | B46: 32M-00001APACADÉMICO | D46: Catalogo principal | E46: 32M-00001AP | F46: ACADÉMICO | G46: Catalogo principal | H46: USD | I46: N/A | J46: Microsoft®MSMyAnalyticsEDU ShrdSvr AllLng MonthlySubscriptions-VolumeLicense MVL 1License PerUsr PerUser_Additional Product | K46: Unidad | L46: Und | M46: Producto | N46: NA | O46: N/A | P46: N/A | Q46: 32M-00001AP | R46: Suscripción mensual con pago anual | S46: 1.5 | T46: 1 | U46: 1 | V46: =SUMIF(ResumenCotizacion!$C:$C,E46,ResumenCotizacion!$P:$P) -> 0 | W46: =IF(H46="USD",S46*SolCotizacion!$J$18,S46) -> 5637.225 | X46: =ROUND(W46/(1-VLOOKUP("Total porcentaje:",ResumenCotizacion!$F:$H,3,0)),2) -> 5847.74 | Y46: 0
A47: Catalogo principalACADÉMICO32M-00001STU | B47: 32M-00001STUACADÉMICO | D47: Catalogo principal | E47: 32M-00001STU | F47: ACADÉMICO | G47: Catalogo principal | H47: USD | I47: N/A | J47: Microsoft®MSMyAnalyticsEDU ShrdSvr AllLng MonthlySubscriptions-VolumeLicense MVL 1License PerUsr PerUser_Student | K47: Unidad | L47: Und | M47: Producto | N47: NA | O47: N/A | P47: N/A | Q47: 32M-00001STU | R47: Suscripción mensual con pago anual | S47: 1.12 | T47: 1 | U47: 1 | V47: =SUMIF(ResumenCotizacion!$C:$C,E47,ResumenCotizacion!$P:$P) -> 0 | W47: =IF(H47="USD",S47*SolCotizacion!$J$18,S47) -> 4209.128 | X47: =ROUND(W47/(1-VLOOKUP("Total porcentaje:",ResumenCotizacion!$F:$H,3,0)),2) -> 4366.32 | Y47: 0
A48: Catalogo principalACADÉMICO359-00765AP | B48: 359-00765APACADÉMICO | D48: Catalogo principal | E48: 359-00765AP | F48: ACADÉMICO | G48: Catalogo principal | H48: USD | I48: N/A | J48: Microsoft®SQLCAL AllLng License/SoftwareAssurancePack MVL 1License DvcCAL_Additional Product | K48: Unidad | L48: Und | M48: Producto | N48: NA | O48: N/A | P48: N/A | Q48: 359-00765AP | R48: Suscripción Anual | S48: 22 | T48: 1 | U48: 1 | V48: =SUMIF(ResumenCotizacion!$C:$C,E48,ResumenCotizacion!$P:$P) -> 0 | W48: =IF(H48="USD",S48*SolCotizacion!$J$18,S48) -> 82679.3 | X48: =ROUND(W48/(1-VLOOKUP("Total porcentaje:",ResumenCotizacion!$F:$H,3,0)),2) -> 85766.91 | Y48: 0
A49: Catalogo principalACADÉMICO359-00765FAC | B49: 359-00765FACACADÉMICO | D49: Catalogo principal | E49: 359-00765FAC | F49: ACADÉMICO | G49: Catalogo principal | H49: USD | I49: N/A | J49: Microsoft®SQLCAL AllLng License/SoftwareAssurancePack MVL 1License DvcCAL_Faculty | K49: Unidad | L49: Und | M49: Producto | N49: NA | O49: N/A | P49: N/A | Q49: 359-00765FAC | R49: Suscripción Anual | S49: 8 | T49: 1 | U49: 1 | V49: =SUMIF(ResumenCotizacion!$C:$C,E49,ResumenCotizacion!$P:$P) -> 0 | W49: =IF(H49="USD",S49*SolCotizacion!$J$18,S49) -> 30065.2 | X49: =ROUND(W49/(1-VLOOKUP("Total porcentaje:",ResumenCotizacion!$F:$H,3,0)),2) -> 31187.97 | Y49: 0
A50: Catalogo principalACADÉMICO359-00765STU | B50: 359-00765STUACADÉMICO | D50: Catalogo principal | E50: 359-00765STU | F50: ACADÉMICO | G50: Catalogo principal | H50: USD | I50: N/A | J50: Microsoft®SQLCAL AllLng License/SoftwareAssurancePack MVL 1License DvcCAL_Student | K50: Unidad | L50: Und | M50: Producto | N50: NA | O50: N/A | P50: N/A | Q50: 359-00765STU | R50: Suscripción Anual | S50: 8 | T50: 1 | U50: 1 | V50: =SUMIF(ResumenCotizacion!$C:$C,E50,ResumenCotizacion!$P:$P) -> 0 | W50: =IF(H50="USD",S50*SolCotizacion!$J$18,S50) -> 30065.2 | X50: =ROUND(W50/(1-VLOOKUP("Total porcentaje:",ResumenCotizacion!$F:$H,3,0)),2) -> 31187.97 | Y50: 0
A51: Catalogo principalACADÉMICO381-01587FAC | B51: 381-01587FACACADÉMICO | D51: Catalogo principal | E51: 381-01587FAC | F51: ACADÉMICO | G51: Catalogo principal | H51: USD | I51: N/A | J51: Microsoft®ExchangeStandardCAL AllLng License/SoftwareAssurancePack MVL 1License DvcCAL_Faculty | K51: Unidad | L51: Und | M51: Producto | N51: NA | O51: N/A | P51: N/A | Q51: 381-01587FAC | R51: Suscripción Anual | S51: 2.96 | T51: 1 | U51: 1 | V51: =SUMIF(ResumenCotizacion!$C:$C,E51,ResumenCotizacion!$P:$P) -> 0 | W51: =IF(H51="USD",S51*SolCotizacion!$J$18,S51) -> 11124.124 | X51: =ROUND(W51/(1-VLOOKUP("Total porcentaje:",ResumenCotizacion!$F:$H,3,0)),2) -> 11539.55 | Y51: 0
A52: Catalogo principalACADÉMICO381-01587STU | B52: 381-01587STUACADÉMICO | D52: Catalogo principal | E52: 381-01587STU | F52: ACADÉMICO | G52: Catalogo principal | H52: USD | I52: N/A | J52: Microsoft®ExchangeStandardCAL AllLng License/SoftwareAssurancePack MVL 1License DvcCAL_Student | K52: Unidad | L52: Und | M52: Producto | N52: NA | O52: N/A | P52: N/A | Q52: 381-01587STU | R52: Suscripción Anual | S52: 0.78 | T52: 1 | U52: 1 | V52: =SUMIF(ResumenCotizacion!$C:$C,E52,ResumenCotizacion!$P:$P) -> 0 | W52: =IF(H52="USD",S52*SolCotizacion!$J$18,S52) -> 2931.357 | X52: =ROUND(W52/(1-VLOOKUP("Total porcentaje:",ResumenCotizacion!$F:$H,3,0)),2) -> 3040.83 | Y52: 0
A53: Catalogo principalACADÉMICO395-02412AP | B53: 395-02412APACADÉMICO | D53: Catalogo principal | E53: 395-02412AP | F53: ACADÉMICO | G53: Catalogo principal | H53: USD | I53: N/A | J53: Microsoft®ExchangeServerEnterprise AllLng License/SoftwareAssurancePack MVL 1License_Additional Product | K53: Unidad | L53: Und | M53: Producto | N53: NA | O53: N/A | P53: N/A | Q53: 395-02412AP | R53: Suscripción Anual | S53: 426 | T53: 1 | U53: 1 | V53: =SUMIF(ResumenCotizacion!$C:$C,E53,ResumenCotizacion!$P:$P) -> 0 | W53: =IF(H53="USD",S53*SolCotizacion!$J$18,S53) -> 1600971.9 | X53: =ROUND(W53/(1-VLOOKUP("Total porcentaje:",ResumenCotizacion!$F:$H,3,0)),2) -> 1660759.23 | Y53: 0
A54: Catalogo principalACADÉMICO395-03039AP | B54: 395-03039APACADÉMICO | D54: Catalogo principal | E54: 395-03039AP | F54: ACADÉMICO | G54: Catalogo principal | H54: USD | I54: N/A | J54: Microsoft®ExchangeServerEnterprise AllLng SAStepUp MVL 1License ExchangeServer-Standard_Additional Product | K54: Unidad | L54: Und | M54: Producto | N54: NA | O54: N/A | P54: N/A | Q54: 395-03039AP | R54: Suscripción Anual | S54: 352 | T54: 1 | U54: 1 | V54: =SUMIF(ResumenCotizacion!$C:$C,E54,ResumenCotizacion!$P:$P) -> 0 | W54: =IF(H54="USD",S54*SolCotizacion!$J$18,S54) -> 1322868.8 | X54: =ROUND(W54/(1-VLOOKUP("Total porcentaje:",ResumenCotizacion!$F:$H,3,0)),2) -> 1372270.54 | Y54: 0
A55: Catalogo principalACADÉMICO3ND-00524FAC | B55: 3ND-00524FACACADÉMICO | D55: Catalogo principal | E55: 3ND-00524FAC | F55: ACADÉMICO | G55: Catalogo principal | H55: USD | I55: N/A | J55: Microsoft®SysCtrServiceMgrCltMgmtLic AllLng License/SoftwareAssurancePack MVL 1License PerOSE_Faculty | K55: Unidad | L55: Und | M55: Producto | N55: NA | O55: N/A | P55: N/A | Q55: 3ND-00524FAC | R55: Suscripción Anual | S55: 1.25 | T55: 1 | U55: 1 | V55: =SUMIF(ResumenCotizacion!$C:$C,E55,ResumenCotizacion!$P:$P) -> 0 | W55: =IF(H55="USD",S55*SolCotizacion!$J$18,S55) -> 4697.6875 | X55: =ROUND(W55/(1-VLOOKUP("Total porcentaje:",ResumenCotizacion!$F:$H,3,0)),2) -> 4873.12 | Y55: 0
A56: Catalogo principalACADÉMICO3ND-00524STU | B56: 3ND-00524STUACADÉMICO | D56: Catalogo principal | E56: 3ND-00524STU | F56: ACADÉMICO | G56: Catalogo principal | H56: USD | I56: N/A | J56: Microsoft®SysCtrServiceMgrCltMgmtLic AllLng License/SoftwareAssurancePack MVL 1License PerOSE_Student | K56: Unidad | L56: Und | M56: Producto | N56: NA | O56: N/A | P56: N/A | Q56: 3ND-00524STU | R56: Suscripción Anual | S56: 0.94 | T56: 1 | U56: 1 | V56: =SUMIF(ResumenCotizacion!$C:$C,E56,ResumenCotizacion!$P:$P) -> 0 | W56: =IF(H56="USD",S56*SolCotizacion!$J$18,S56) -> 3532.661 | X56: =ROUND(W56/(1-VLOOKUP("Total porcentaje:",ResumenCotizacion!$F:$H,3,0)),2) -> 3664.59 | Y56: 0
A57: Catalogo principalACADÉMICO3R3-00001AP | B57: 3R3-00001APACADÉMICO | D57: Catalogo principal | E57: 3R3-00001AP | F57: ACADÉMICO | G57: Catalogo principal | H57: USD | I57: N/A | J57: Microsoft®AzureActiveDirectoryPremP1A ShrdSvr AllLng MonthlySubscriptions-VolumeLicense MVL 1License PerUsr_Additional Product | K57: Unidad | L57: Und | M57: Producto | N57: NA | O57: N/A | P57: N/A | Q57: 3R3-00001AP | R57: Suscripción mensual con pago anual | S57: 0.55 | T57: 1 | U57: 1 | V57: =SUMIF(ResumenCotizacion!$C:$C,E57,ResumenCotizacion!$P:$P) -> 0 | W57: =IF(H57="USD",S57*SolCotizacion!$J$18,S57) -> 2066.9825 | X57: =ROUND(W57/(1-VLOOKUP("Total porcentaje:",ResumenCotizacion!$F:$H,3,0)),2) -> 2144.17 | Y57: 0
A58: Catalogo principalACADÉMICO3R3-00001STU | B58: 3R3-00001STUACADÉMICO | D58: Catalogo principal | E58: 3R3-00001STU | F58: ACADÉMICO | G58: Catalogo principal | H58: USD | I58: N/A | J58: Microsoft®AzureActiveDirectoryPremP1A ShrdSvr AllLng MonthlySubscriptions-VolumeLicense MVL 1License PerUsr_Student | K58: Unidad | L58: Und | M58: Producto | N58: NA | O58: N/A | P58: N/A | Q58: 3R3-00001STU | R58: Suscripción mensual con pago anual | S58: 0.22 | T58: 1 | U58: 1 | V58: =SUMIF(ResumenCotizacion!$C:$C,E58,ResumenCotizacion!$P:$P) -> 0 | W58: =IF(H58="USD",S58*SolCotizacion!$J$18,S58) -> 826.793 | X58: =ROUND(W58/(1-VLOOKUP("Total porcentaje:",ResumenCotizacion!$F:$H,3,0)),2) -> 857.67 | Y58: 0
A59: Catalogo principalACADÉMICO3R3-00004SUB | B59: 3R3-00004SUBACADÉMICO | D59: Catalogo principal | E59: 3R3-00004SUB | F59: ACADÉMICO | G59: Catalogo principal | H59: USD | I59: N/A | J59: Microsoft®AzureActiveDirectoryPremP1A ShrdSvr AllLng MonthlySubscriptions-VolumeLicense MVL 1License PerUsr STUUseBenefit | K59: Unidad | L59: Und | M59: Producto | N59: NA | O59: N/A | P59: N/A | Q59: 3R3-00004SUB | R59: Suscripción mensual con pago anual | S59: 0 | T59: 1 | U59: 1 | V59: =SUMIF(ResumenCotizacion!$C:$C,E59,ResumenCotizacion!$P:$P) -> 0 | W59: =IF(H59="USD",S59*SolCotizacion!$J$18,S59) -> 0 | X59: =ROUND(W59/(1-VLOOKUP("Total porcentaje:",ResumenCotizacion!$F:$H,3,0)),2) -> 0 | Y59: 0
A60: Catalogo principalACADÉMICO3VU-00043AP | B60: 3VU-00043APACADÉMICO | D60: Catalogo principal | E60: 3VU-00043AP | F60: ACADÉMICO | G60: Catalogo principal | H60: USD | I60: N/A | J60: Microsoft®MSDNPlatforms AllLng License/SoftwareAssurancePack MVL 1License_Additional Product | K60: Unidad | L60: Und | M60: Producto | N60: NA | O60: N/A | P60: N/A | Q60: 3VU-00043AP | R60: Suscripción Anual | S60: 156 | T60: 1 | U60: 1 | V60: =SUMIF(ResumenCotizacion!$C:$C,E60,ResumenCotizacion!$P:$P) -> 0 | W60: =IF(H60="USD",S60*SolCotizacion!$J$18,S60) -> 586271.4 | X60: =ROUND(W60/(1-VLOOKUP("Total porcentaje:",ResumenCotizacion!$F:$H,3,0)),2) -> 608165.35 | Y60: 0
A61: Catalogo principalACADÉMICO3ZK-00193FAC | B61: 3ZK-00193FACACADÉMICO | D61: Catalogo principal | E61: 3ZK-00193FAC | F61: ACADÉMICO | G61: Catalogo principal | H61: USD | I61: N/A | J61: Microsoft®SysCtrOrchestratorSvr AllLng License/SoftwareAssurancePack MVL 1License PerOSE_Faculty | K61: Unidad | L61: Und | M61: Producto | N61: NA | O61: N/A | P61: N/A | Q61: 3ZK-00193FAC | R61: Suscripción Anual | S61: 1.25 | T61: 1 | U61: 1 | V61: =SUMIF(ResumenCotizacion!$C:$C,E61,ResumenCotizacion!$P:$P) -> 0 | W61: =IF(H61="USD",S61*SolCotizacion!$J$18,S61) -> 4697.6875 | X61: =ROUND(W61/(1-VLOOKUP("Total porcentaje:",ResumenCotizacion!$F:$H,3,0)),2) -> 4873.12 | Y61: 0
A62: Catalogo principalACADÉMICO3ZK-00193STU | B62: 3ZK-00193STUACADÉMICO | D62: Catalogo principal | E62: 3ZK-00193STU | F62: ACADÉMICO | G62: Catalogo principal | H62: USD | I62: N/A | J62: Microsoft®SysCtrOrchestratorSvr AllLng License/SoftwareAssurancePack MVL 1License PerOSE_Student | K62: Unidad | L62: Und | M62: Producto | N62: NA | O62: N/A | P62: N/A | Q62: 3ZK-00193STU | R62: Suscripción Anual | S62: 0.94 | T62: 1 | U62: 1 | V62: =SUMIF(ResumenCotizacion!$C:$C,E62,ResumenCotizacion!$P:$P) -> 0 | W62: =IF(H62="USD",S62*SolCotizacion!$J$18,S62) -> 3532.661 | X62: =ROUND(W62/(1-VLOOKUP("Total porcentaje:",ResumenCotizacion!$F:$H,3,0)),2) -> 3664.59 | Y62: 0
A63: Catalogo principalACADÉMICO4ZF-00019AP | B63: 4ZF-00019APACADÉMICO | D63: Catalogo principal | E63: 4ZF-00019AP | F63: ACADÉMICO | G63: Catalogo principal | H63: USD | I63: N/A | J63: Microsoft®WINVDAPerDevice AllLng MonthlySubscriptions-VolumeLicense MVL 1License PerDvc_Additional Product | K63: Unidad | L63: Und | M63: Producto | N63: NA | O63: N/A | P63: N/A | Q63: 4ZF-00019AP | R63: Suscripción mensual con pago anual | S63: 3.34 | T63: 1 | U63: 1 | V63: =SUMIF(ResumenCotizacion!$C:$C,E63,ResumenCotizacion!$P:$P) -> 0 | W63: =IF(H63="USD",S63*SolCotizacion!$J$18,S63) -> 12552.221 | X63: =ROUND(W63/(1-VLOOKUP("Total porcentaje:",ResumenCotizacion!$F:$H,3,0)),2) -> 13020.98 | Y63: 0
A64: Catalogo principalACADÉMICO54R-00098AP | B64: 54R-00098APACADÉMICO | D64: Catalogo principal | E64: 54R-00098AP | F64: ACADÉMICO | G64: Catalogo principal | H64: USD | I64: N/A | J64: Microsoft®MSImagineAcademy AllLng MonthlySubscriptions-VolumeLicense MVL 1License Srvcs_Additional Product | K64: Unidad | L64: Und | M64: Producto | N64: NA | O64: N/A | P64: N/A | Q64: 54R-00098AP | R64: Suscripción mensual con pago anual | S64: 84 | T64: 1 | U64: 1 | V64: =SUMIF(ResumenCotizacion!$C:$C,E64,ResumenCotizacion!$P:$P) -> 0 | W64: =IF(H64="USD",S64*SolCotizacion!$J$18,S64) -> 315684.6 | X64: =ROUND(W64/(1-VLOOKUP("Total porcentaje:",ResumenCotizacion!$F:$H,3,0)),2) -> 327473.65 | Y64: 0
A65: Catalogo principalACADÉMICO5HU-00215AP | B65: 5HU-00215APACADÉMICO | D65: Catalogo principal | E65: 5HU-00215AP | F65: ACADÉMICO | G65: Catalogo principal | H65: USD | I65: N/A | J65: Microsoft®SfBServer AllLng License/SoftwareAssurancePack MVL 1License_Additional Product | K65: Unidad | L65: Und | M65: Producto | N65: NA | O65: N/A | P65: N/A | Q65: 5HU-00215AP | R65: Suscripción Anual | S65: 384 | T65: 1 | U65: 1 | V65: =SUMIF(ResumenCotizacion!$C:$C,E65,ResumenCotizacion!$P:$P) -> 0 | W65: =IF(H65="USD",S65*SolCotizacion!$J$18,S65) -> 1443129.6 | X65: =ROUND(W65/(1-VLOOKUP("Total porcentaje:",ResumenCotizacion!$F:$H,3,0)),2) -> 1497022.41 | Y65: 0
A66: Catalogo principalACADÉMICO5RS-00002AP | B66: 5RS-00002APACADÉMICO | D66: Catalogo principal | E66: 5RS-00002AP | F66: ACADÉMICO | G66: Catalogo principal | H66: USD | I66: N/A | J66: Microsoft®ExchangeOnlinePlan1forEDU ShrdSvr AllLng MonthlySubscriptions-VolumeLicense MVL 1License PerUsr Alumni_Additional Product | K66: Unidad | L66: Und | M66: Producto | N66: NA | O66: N/A | P66: N/A | Q66: 5RS-00002AP | R66: Suscripción mensual con pago anual | S66: 0 | T66: 1 | U66: 1 | V66: =SUMIF(ResumenCotizacion!$C:$C,E66,ResumenCotizacion!$P:$P) -> 0 | W66: =IF(H66="USD",S66*SolCotizacion!$J$18,S66) -> 0 | X66: =ROUND(W66/(1-VLOOKUP("Total porcentaje:",ResumenCotizacion!$F:$H,3,0)),2) -> 0 | Y66: 0
A67: =D67&F67&E67 -> Catalogo principalACADÉMICO5WS-00001AP | B67: =E67&F67 -> 5WS-00001APACADÉMICO | D67: Catalogo principal | E67: 5WS-00001AP | F67: ACADÉMICO | G67: =D67 -> Catalogo principal | H67: USD | I67: N/A | J67: Microsoft®ExchOnlineArchExchOnlineforEDU ShrdSvr AllLng MonthlySubscriptions-VolumeLicense MVL 1License PerUsr_Additional Product | K67: Unidad | L67: Und | M67: Producto | N67: NA | O67: N/A | P67: N/A | Q67: 5WS-00001AP | R67: Suscripción mensual con pago anual | S67: 1 | T67: 1 | U67: 1 | V67: =SUMIF(ResumenCotizacion!$C:$C,E67,ResumenCotizacion!$P:$P) -> 0 | W67: =IF(H67="USD",S67*SolCotizacion!$J$18,S67) -> 3758.15 | X67: =ROUND(W67/(1-VLOOKUP("Total porcentaje:",ResumenCotizacion!$F:$H,3,0)),2) -> 3898.5 | Y67: =V67*X67 -> 0
A68: Catalogo principalACADÉMICO5WS-00001STU | B68: 5WS-00001STUACADÉMICO | D68: Catalogo principal | E68: 5WS-00001STU | F68: ACADÉMICO | G68: Catalogo principal | H68: USD | I68: N/A | J68: Microsoft®ExchOnlineArchExchOnlineforEDU ShrdSvr AllLng MonthlySubscriptions-VolumeLicense MVL 1License PerUsr_Student | K68: Unidad | L68: Und | M68: Producto | N68: NA | O68: N/A | P68: N/A | Q68: 5WS-00001STU | R68: Suscripción mensual con pago anual | S68: 1 | T68: 1 | U68: 1 | V68: =SUMIF(ResumenCotizacion!$C:$C,E68,ResumenCotizacion!$P:$P) -> 0 | W68: =IF(H68="USD",S68*SolCotizacion!$J$18,S68) -> 3758.15 | X68: =ROUND(W68/(1-VLOOKUP("Total porcentaje:",ResumenCotizacion!$F:$H,3,0)),2) -> 3898.5 | Y68: 0
A69: Catalogo principalACADÉMICO5XS-00001FACA | B69: 5XS-00001FACAACADÉMICO | D69: Catalogo principal | E69: 5XS-00001FACA | F69: ACADÉMICO | G69: Catalogo principal | H69: USD | I69: N/A | J69: Microsoft®O365ProPlusforEDU ShrdSvr AllLng MonthlySubscriptions-VolumeLicense MVL 1License PerUsr_FacultyLevelA | K69: Unidad | L69: Und | M69: Producto | N69: NA | O69: N/A | P69: N/A | Q69: 5XS-00001FACA | R69: Suscripción mensual con pago anual | S69: 2.25 | T69: 1 | U69: 1 | V69: =SUMIF(ResumenCotizacion!$C:$C,E69,ResumenCotizacion!$P:$P) -> 0 | W69: =IF(H69="USD",S69*SolCotizacion!$J$18,S69) -> 8455.8375 | X69: =ROUND(W69/(1-VLOOKUP("Total porcentaje:",ResumenCotizacion!$F:$H,3,0)),2) -> 8771.62 | Y69: 0
A70: Catalogo principalACADÉMICO5XS-00001FACB | B70: 5XS-00001FACBACADÉMICO | D70: Catalogo principal | E70: 5XS-00001FACB | F70: ACADÉMICO | G70: Catalogo principal | H70: USD | I70: N/A | J70: Microsoft®O365ProPlusforEDU ShrdSvr AllLng MonthlySubscriptions-VolumeLicense MVL 1License PerUsr_FacultyLevelB | K70: Unidad | L70: Und | M70: Producto | N70: NA | O70: N/A | P70: N/A | Q70: 5XS-00001FACB | R70: Suscripción mensual con pago anual | S70: 2.1 | T70: 1 | U70: 1 | V70: =SUMIF(ResumenCotizacion!$C:$C,E70,ResumenCotizacion!$P:$P) -> 0 | W70: =IF(H70="USD",S70*SolCotizacion!$J$18,S70) -> 7892.115 | X70: =ROUND(W70/(1-VLOOKUP("Total porcentaje:",ResumenCotizacion!$F:$H,3,0)),2) -> 8186.84 | Y70: 0
A71: Catalogo principalACADÉMICO5XS-00001FACC | B71: 5XS-00001FACCACADÉMICO | D71: Catalogo principal | E71: 5XS-00001FACC | F71: ACADÉMICO | G71: Catalogo principal | H71: USD | I71: N/A | J71: Microsoft®O365ProPlusforEDU ShrdSvr AllLng MonthlySubscriptions-VolumeLicense MVL 1License PerUsr_FacultyLevelC | K71: Unidad | L71: Und | M71: Producto | N71: NA | O71: N/A | P71: N/A | Q71: 5XS-00001FACC | R71: Suscripción mensual con pago anual | S71: 1.94 | T71: 1 | U71: 1 | V71: =SUMIF(ResumenCotizacion!$C:$C,E71,ResumenCotizacion!$P:$P) -> 0 | W71: =IF(H71="USD",S71*SolCotizacion!$J$18,S71) -> 7290.811 | X71: =ROUND(W71/(1-VLOOKUP("Total porcentaje:",ResumenCotizacion!$F:$H,3,0)),2) -> 7563.08 | Y71: 0
A72: Catalogo principalACADÉMICO5XS-00001FACD | B72: 5XS-00001FACDACADÉMICO | D72: Catalogo principal | E72: 5XS-00001FACD | F72: ACADÉMICO | G72: Catalogo principal | H72: USD | I72: N/A | J72: Microsoft®O365ProPlusforEDU ShrdSvr AllLng MonthlySubscriptions-VolumeLicense MVL 1License PerUsr_FacultyLevelD | K72: Unidad | L72: Und | M72: Producto | N72: NA | O72: N/A | P72: N/A | Q72: 5XS-00001FACD | R72: Suscripción mensual con pago anual | S72: 1.82 | T72: 1 | U72: 1 | V72: =SUMIF(ResumenCotizacion!$C:$C,E72,ResumenCotizacion!$P:$P) -> 0 | W72: =IF(H72="USD",S72*SolCotizacion!$J$18,S72) -> 6839.833 | X72: =ROUND(W72/(1-VLOOKUP("Total porcentaje:",ResumenCotizacion!$F:$H,3,0)),2) -> 7095.26 | Y72: 0
A73: Catalogo principalACADÉMICO5XS-00001STUA | B73: 5XS-00001STUAACADÉMICO | D73: Catalogo principal | E73: 5XS-00001STUA | F73: ACADÉMICO | G73: Catalogo principal | H73: USD | I73: N/A | J73: Microsoft®O365ProPlusforEDU ShrdSvr AllLng MonthlySubscriptions-VolumeLicense MVL 1License PerUsr_StudentLevelA | K73: Unidad | L73: Und | M73: Producto | N73: NA | O73: N/A | P73: N/A | Q73: 5XS-00001STUA | R73: Suscripción mensual con pago anual | S73: 1.75 | T73: 1 | U73: 1 | V73: =SUMIF(ResumenCotizacion!$C:$C,E73,ResumenCotizacion!$P:$P) -> 0 | W73: =IF(H73="USD",S73*SolCotizacion!$J$18,S73) -> 6576.7625 | X73: =ROUND(W73/(1-VLOOKUP("Total porcentaje:",ResumenCotizacion!$F:$H,3,0)),2) -> 6822.37 | Y73: 0
A74: Catalogo principalACADÉMICO5XS-00001STUB | B74: 5XS-00001STUBACADÉMICO | D74: Catalogo principal | E74: 5XS-00001STUB | F74: ACADÉMICO | G74: Catalogo principal | H74: USD | I74: N/A | J74: Microsoft®O365ProPlusforEDU ShrdSvr AllLng MonthlySubscriptions-VolumeLicense MVL 1License PerUsr_StudentLevelB | K74: Unidad | L74: Und | M74: Producto | N74: NA | O74: N/A | P74: N/A | Q74: 5XS-00001STUB | R74: Suscripción mensual con pago anual | S74: 1.63 | T74: 1 | U74: 1 | V74: =SUMIF(ResumenCotizacion!$C:$C,E74,ResumenCotizacion!$P:$P) -> 0 | W74: =IF(H74="USD",S74*SolCotizacion!$J$18,S74) -> 6125.7845 | X74: =ROUND(W74/(1-VLOOKUP("Total porcentaje:",ResumenCotizacion!$F:$H,3,0)),2) -> 6354.55 | Y74: 0
A75: Catalogo principalACADÉMICO5XS-00001STUC | B75: 5XS-00001STUCACADÉMICO | D75: Catalogo principal | E75: 5XS-00001STUC | F75: ACADÉMICO | G75: Catalogo principal | H75: USD | I75: N/A | J75: Microsoft®O365ProPlusforEDU ShrdSvr AllLng MonthlySubscriptions-VolumeLicense MVL 1License PerUsr_StudentLevelC | K75: Unidad | L75: Und | M75: Producto | N75: NA | O75: N/A | P75: N/A | Q75: 5XS-00001STUC | R75: Suscripción mensual con pago anual | S75: 1.51 | T75: 1 | U75: 1 | V75: =SUMIF(ResumenCotizacion!$C:$C,E75,ResumenCotizacion!$P:$P) -> 0 | W75: =IF(H75="USD",S75*SolCotizacion!$J$18,S75) -> 5674.8065 | X75: =ROUND(W75/(1-VLOOKUP("Total porcentaje:",ResumenCotizacion!$F:$H,3,0)),2) -> 5886.73 | Y75: 0
A76: Catalogo principalACADÉMICO5XS-00001STUD | B76: 5XS-00001STUDACADÉMICO | D76: Catalogo principal | E76: 5XS-00001STUD | F76: ACADÉMICO | G76: Catalogo principal | H76: USD | I76: N/A | J76: Microsoft®O365ProPlusforEDU ShrdSvr AllLng MonthlySubscriptions-VolumeLicense MVL 1License PerUsr_StudentLevelD | K76: Unidad | L76: Und | M76: Producto | N76: NA | O76: N/A | P76: N/A | Q76: 5XS-00001STUD | R76: Suscripción mensual con pago anual | S76: 1.41 | T76: 1 | U76: 1 | V76: =SUMIF(ResumenCotizacion!$C:$C,E76,ResumenCotizacion!$P:$P) -> 0 | W76: =IF(H76="USD",S76*SolCotizacion!$J$18,S76) -> 5298.9915 | X76: =ROUND(W76/(1-VLOOKUP("Total porcentaje:",ResumenCotizacion!$F:$H,3,0)),2) -> 5496.88 | Y76: 0
A77: Catalogo principalACADÉMICO5XS-00002SUB | B77: 5XS-00002SUBACADÉMICO | D77: Catalogo principal | E77: 5XS-00002SUB | F77: ACADÉMICO | G77: Catalogo principal | H77: USD | I77: N/A | J77: Microsoft®O365ProPlusforEDU ShrdSvr AllLng MonthlySubscriptions-VolumeLicense MVL 1License PerUsr STUUseBnft | K77: Unidad | L77: Und | M77: Producto | N77: NA | O77: N/A | P77: N/A | Q77: 5XS-00002SUB | R77: Suscripción mensual con pago anual | S77: 0 | T77: 1 | U77: 1 | V77: =SUMIF(ResumenCotizacion!$C:$C,E77,ResumenCotizacion!$P:$P) -> 0 | W77: =IF(H77="USD",S77*SolCotizacion!$J$18,S77) -> 0 | X77: =ROUND(W77/(1-VLOOKUP("Total porcentaje:",ResumenCotizacion!$F:$H,3,0)),2) -> 0 | Y77: 0
A78: Catalogo principalACADÉMICO5XS-00003AP | B78: 5XS-00003APACADÉMICO | D78: Catalogo principal | E78: 5XS-00003AP | F78: ACADÉMICO | G78: Catalogo principal | H78: USD | I78: N/A | J78: Microsoft®O365ProPlusforEDU AllLng MonthlySubscriptions-VolumeLicense MVL 1License AddOn toOPP_Additional Product | K78: Unidad | L78: Und | M78: Producto | N78: NA | O78: N/A | P78: N/A | Q78: 5XS-00003AP | R78: Suscripción mensual con pago anual | S78: 0 | T78: 1 | U78: 1 | V78: =SUMIF(ResumenCotizacion!$C:$C,E78,ResumenCotizacion!$P:$P) -> 0 | W78: =IF(H78="USD",S78*SolCotizacion!$J$18,S78) -> 0 | X78: =ROUND(W78/(1-VLOOKUP("Total porcentaje:",ResumenCotizacion!$F:$H,3,0)),2) -> 0 | Y78: 0
A79: Catalogo principalACADÉMICO5XS-00003STU | B79: 5XS-00003STUACADÉMICO | D79: Catalogo principal | E79: 5XS-00003STU | F79: ACADÉMICO | G79: Catalogo principal | H79: USD | I79: N/A | J79: Microsoft®O365ProPlusforEDU AllLng MonthlySubscriptions-VolumeLicense MVL 1License AddOn toOPP_Student | K79: Unidad | L79: Und | M79: Producto | N79: NA | O79: N/A | P79: N/A | Q79: 5XS-00003STU | R79: Suscripción mensual con pago anual | S79: 0 | T79: 1 | U79: 1 | V79: =SUMIF(ResumenCotizacion!$C:$C,E79,ResumenCotizacion!$P:$P) -> 0 | W79: =IF(H79="USD",S79*SolCotizacion!$J$18,S79) -> 0 | X79: =ROUND(W79/(1-VLOOKUP("Total porcentaje:",ResumenCotizacion!$F:$H,3,0)),2) -> 0 | Y79: 0
A80: Catalogo principalACADÉMICO6E9-00001AP | B80: 6E9-00001APACADÉMICO | D80: Catalogo principal | E80: 6E9-00001AP | F80: ACADÉMICO | G80: Catalogo principal | H80: USD | I80: N/A | J80: Microsoft®AzureActiveDirectoryPremP2A ShrdSvr AllLng MonthlySubscriptions-VolumeLicense MVL 1License PerUsr_Additional Product | K80: Unidad | L80: Und | M80: Producto | N80: NA | O80: N/A | P80: N/A | Q80: 6E9-00001AP | R80: Suscripción mensual con pago anual | S80: 1.1 | T80: 1 | U80: 1 | V80: =SUMIF(ResumenCotizacion!$C:$C,E80,ResumenCotizacion!$P:$P) -> 0 | W80: =IF(H80="USD",S80*SolCotizacion!$J$18,S80) -> 4133.965 | X80: =ROUND(W80/(1-VLOOKUP("Total porcentaje:",ResumenCotizacion!$F:$H,3,0)),2) -> 4288.35 | Y80: 0
A81: Catalogo principalACADÉMICO6E9-00001STU | B81: 6E9-00001STUACADÉMICO | D81: Catalogo principal | E81: 6E9-00001STU | F81: ACADÉMICO | G81: Catalogo principal | H81: USD | I81: N/A | J81: Microsoft®AzureActiveDirectoryPremP2A ShrdSvr AllLng MonthlySubscriptions-VolumeLicense MVL 1License PerUsr_Student | K81: Unidad | L81: Und | M81: Producto | N81: NA | O81: N/A | P81: N/A | Q81: 6E9-00001STU | R81: Suscripción mensual con pago anual | S81: 0.83 | T81: 1 | U81: 1 | V81: =SUMIF(ResumenCotizacion!$C:$C,E81,ResumenCotizacion!$P:$P) -> 0 | W81: =IF(H81="USD",S81*SolCotizacion!$J$18,S81) -> 3119.2645 | X81: =ROUND(W81/(1-VLOOKUP("Total porcentaje:",ResumenCotizacion!$F:$H,3,0)),2) -> 3235.75 | Y81: 0
A82: Catalogo principalACADÉMICO6E9-00002AP | B82: 6E9-00002APACADÉMICO | D82: Catalogo principal | E82: 6E9-00002AP | F82: ACADÉMICO | G82: Catalogo principal | H82: USD | I82: N/A | J82: Microsoft®AzureActiveDirectoryPremP2A ShrdSvr AllLng StepUp MVL 1License AzureActiveDirectoryPremP1A PerUsr_Additional Product | K82: Unidad | L82: Und | M82: Producto | N82: NA | O82: N/A | P82: N/A | Q82: 6E9-00002AP | R82: Suscripción mensual con pago anual | S82: 0.55 | T82: 1 | U82: 1 | V82: =SUMIF(ResumenCotizacion!$C:$C,E82,ResumenCotizacion!$P:$P) -> 0 | W82: =IF(H82="USD",S82*SolCotizacion!$J$18,S82) -> 2066.9825 | X82: =ROUND(W82/(1-VLOOKUP("Total porcentaje:",ResumenCotizacion!$F:$H,3,0)),2) -> 2144.17 | Y82: 0
A83: Catalogo principalACADÉMICO6E9-00002STU | B83: 6E9-00002STUACADÉMICO | D83: Catalogo principal | E83: 6E9-00002STU | F83: ACADÉMICO | G83: Catalogo principal | H83: USD | I83: N/A | J83: Microsoft®AzureActiveDirectoryPremP2A ShrdSvr AllLng StepUp MVL 1License AzureActiveDirectoryPremP1A PerUsr_Student | K83: Unidad | L83: Und | M83: Producto | N83: NA | O83: N/A | P83: N/A | Q83: 6E9-00002STU | R83: Suscripción mensual con pago anual | S83: 0.61 | T83: 1 | U83: 1 | V83: =SUMIF(ResumenCotizacion!$C:$C,E83,ResumenCotizacion!$P:$P) -> 0 | W83: =IF(H83="USD",S83*SolCotizacion!$J$18,S83) -> 2292.4715 | X83: =ROUND(W83/(1-VLOOKUP("Total porcentaje:",ResumenCotizacion!$F:$H,3,0)),2) -> 2378.08 | Y83: 0
A84: Catalogo principalACADÉMICO6E9-00004SUB | B84: 6E9-00004SUBACADÉMICO | D84: Catalogo principal | E84: 6E9-00004SUB | F84: ACADÉMICO | G84: Catalogo principal | H84: USD | I84: N/A | J84: Microsoft®AzureActiveDirectoryPremP2A ShrdSvr AllLng MonthlySubscriptions-VolumeLicense MVL 1License PerUsr STUUseBenefit | K84: Unidad | L84: Und | M84: Producto | N84: NA | O84: N/A | P84: N/A | Q84: 6E9-00004SUB | R84: Suscripción mensual con pago anual | S84: 0 | T84: 1 | U84: 1 | V84: =SUMIF(ResumenCotizacion!$C:$C,E84,ResumenCotizacion!$P:$P) -> 0 | W84: =IF(H84="USD",S84*SolCotizacion!$J$18,S84) -> 0 | X84: =ROUND(W84/(1-VLOOKUP("Total porcentaje:",ResumenCotizacion!$F:$H,3,0)),2) -> 0 | Y84: 0
A85: Catalogo principalACADÉMICO6MV-00003AP | B85: 6MV-00003APACADÉMICO | D85: Catalogo principal | E85: 6MV-00003AP | F85: ACADÉMICO | G85: Catalogo principal | H85: USD | I85: N/A | J85: Microsoft®ExchangeEntCALSrvcsforEdu AllLng MonthlySubscriptions-VolumeLicense MVL 1License PerUsr_Additional Product | K85: Unidad | L85: Und | M85: Producto | N85: NA | O85: N/A | P85: N/A | Q85: 6MV-00003AP | R85: Suscripción mensual con pago anual | S85: 0 | T85: 1 | U85: 1 | V85: =SUMIF(ResumenCotizacion!$C:$C,E85,ResumenCotizacion!$P:$P) -> 0 | W85: =IF(H85="USD",S85*SolCotizacion!$J$18,S85) -> 0 | X85: =ROUND(W85/(1-VLOOKUP("Total porcentaje:",ResumenCotizacion!$F:$H,3,0)),2) -> 0 | Y85: 0
A86: Catalogo principalACADÉMICO6MV-00003STU | B86: 6MV-00003STUACADÉMICO | D86: Catalogo principal | E86: 6MV-00003STU | F86: ACADÉMICO | G86: Catalogo principal | H86: USD | I86: N/A | J86: Microsoft®ExchangeEntCALSrvcsforEdu AllLng MonthlySubscriptions-VolumeLicense MVL 1License PerUsr_Student | K86: Unidad | L86: Und | M86: Producto | N86: NA | O86: N/A | P86: N/A | Q86: 6MV-00003STU | R86: Suscripción mensual con pago anual | S86: 0 | T86: 1 | U86: 1 | V86: =SUMIF(ResumenCotizacion!$C:$C,E86,ResumenCotizacion!$P:$P) -> 0 | W86: =IF(H86="USD",S86*SolCotizacion!$J$18,S86) -> 0 | X86: =ROUND(W86/(1-VLOOKUP("Total porcentaje:",ResumenCotizacion!$F:$H,3,0)),2) -> 0 | Y86: 0
A87: Catalogo principalACADÉMICO6QV-00003AP | B87: 6QV-00003APACADÉMICO | D87: Catalogo principal | E87: 6QV-00003AP | F87: ACADÉMICO | G87: Catalogo principal | H87: USD | I87: N/A | J87: Microsoft®EnterpriseCALSrvcsforEdu AllLng MonthlySubscriptions-VolumeLicense MVL 1License PerUsr_Additional Product | K87: Unidad | L87: Und | M87: Producto | N87: NA | O87: N/A | P87: N/A | Q87: 6QV-00003AP | R87: Suscripción mensual con pago anual | S87: 0 | T87: 1 | U87: 1 | V87: =SUMIF(ResumenCotizacion!$C:$C,E87,ResumenCotizacion!$P:$P) -> 0 | W87: =IF(H87="USD",S87*SolCotizacion!$J$18,S87) -> 0 | X87: =ROUND(W87/(1-VLOOKUP("Total porcentaje:",ResumenCotizacion!$F:$H,3,0)),2) -> 0 | Y87: 0
A88: Catalogo principalACADÉMICO6QV-00003STU | B88: 6QV-00003STUACADÉMICO | D88: Catalogo principal | E88: 6QV-00003STU | F88: ACADÉMICO | G88: Catalogo principal | H88: USD | I88: N/A | J88: Microsoft®EnterpriseCALSrvcsforEdu AllLng MonthlySubscriptions-VolumeLicense MVL 1License PerUsr_Student | K88: Unidad | L88: Und | M88: Producto | N88: NA | O88: N/A | P88: N/A | Q88: 6QV-00003STU | R88: Suscripción mensual con pago anual | S88: 0 | T88: 1 | U88: 1 | V88: =SUMIF(ResumenCotizacion!$C:$C,E88,ResumenCotizacion!$P:$P) -> 0 | W88: =IF(H88="USD",S88*SolCotizacion!$J$18,S88) -> 0 | X88: =ROUND(W88/(1-VLOOKUP("Total porcentaje:",ResumenCotizacion!$F:$H,3,0)),2) -> 0 | Y88: 0
A89: Catalogo principalACADÉMICO6VC-01251AP | B89: 6VC-01251APACADÉMICO | D89: Catalogo principal | E89: 6VC-01251AP | F89: ACADÉMICO | G89: Catalogo principal | H89: USD | I89: N/A | J89: Microsoft®WinRmtDsktpSvcsCAL AllLng License/SoftwareAssurancePack MVL 1License DvcCAL_Additional Product | K89: Unidad | L89: Und | M89: Producto | N89: NA | O89: N/A | P89: N/A | Q89: 6VC-01251AP | R89: Suscripción Anual | S89: 11 | T89: 1 | U89: 1 | V89: =SUMIF(ResumenCotizacion!$C:$C,E89,ResumenCotizacion!$P:$P) -> 300 | W89: =IF(H89="USD",S89*SolCotizacion!$J$18,S89) -> 41339.65 | X89: =ROUND(W89/(1-VLOOKUP("Total porcentaje:",ResumenCotizacion!$F:$H,3,0)),2) -> 42883.45 | Y89: 12865035
A90: Catalogo principalACADÉMICO6VC-01251FAC | B90: 6VC-01251FACACADÉMICO | D90: Catalogo principal | E90: 6VC-01251FAC | F90: ACADÉMICO | G90: Catalogo principal | H90: USD | I90: N/A | J90: Microsoft®WinRmtDsktpSvcsCAL AllLng License/SoftwareAssurancePack MVL 1License DvcCAL_Faculty | K90: Unidad | L90: Und | M90: Producto | N90: NA | O90: N/A | P90: N/A | Q90: 6VC-01251FAC | R90: Suscripción Anual | S90: 8 | T90: 1 | U90: 1 | V90: =SUMIF(ResumenCotizacion!$C:$C,E90,ResumenCotizacion!$P:$P) -> 0 | W90: =IF(H90="USD",S90*SolCotizacion!$J$18,S90) -> 30065.2 | X90: =ROUND(W90/(1-VLOOKUP("Total porcentaje:",ResumenCotizacion!$F:$H,3,0)),2) -> 31187.97 | Y90: 0
A91: Catalogo principalACADÉMICO6VC-01251STU | B91: 6VC-01251STUACADÉMICO | D91: Catalogo principal | E91: 6VC-01251STU | F91: ACADÉMICO | G91: Catalogo principal | H91: USD | I91: N/A | J91: Microsoft®WinRmtDsktpSvcsCAL AllLng License/SoftwareAssurancePack MVL 1License DvcCAL_Student | K91: Unidad | L91: Und | M91: Producto | N91: NA | O91: N/A | P91: N/A | Q91: 6VC-01251STU | R91: Suscripción Anual | S91: 4.52 | T91: 1 | U91: 1 | V91: =SUMIF(ResumenCotizacion!$C:$C,E91,ResumenCotizacion!$P:$P) -> 0 | W91: =IF(H91="USD",S91*SolCotizacion!$J$18,S91) -> 16986.838 | X91: =ROUND(W91/(1-VLOOKUP("Total porcentaje:",ResumenCotizacion!$F:$H,3,0)),2) -> 17621.2 | Y91: 0
A92: Catalogo principalACADÉMICO6XC-00298AP | B92: 6XC-00298APACADÉMICO | D92: Catalogo principal | E92: 6XC-00298AP | F92: ACADÉMICO | G92: Catalogo principal | H92: USD | I92: N/A | J92: Microsoft®WinRmtDsktpSvcsExtConn AllLng License/SoftwareAssurancePack MVL 1License_Additional Product | K92: Unidad | L92: Und | M92: Producto | N92: NA | O92: N/A | P92: N/A | Q92: 6XC-00298AP | R92: Suscripción Anual | S92: 1071 | T92: 1 | U92: 1 | V92: =SUMIF(ResumenCotizacion!$C:$C,E92,ResumenCotizacion!$P:$P) -> 0 | W92: =IF(H92="USD",S92*SolCotizacion!$J$18,S92) -> 4024978.65 | X92: =ROUND(W92/(1-VLOOKUP("Total porcentaje:",ResumenCotizacion!$F:$H,3,0)),2) -> 4175289.06 | Y92: 0
A93: Catalogo principalACADÉMICO6YH-00575AP | B93: 6YH-00575APACADÉMICO | D93: Catalogo principal | E93: 6YH-00575AP | F93: ACADÉMICO | G93: Catalogo principal | H93: USD | I93: N/A | J93: Microsoft®SkypeforBusiness AllLng License/SoftwareAssurancePack MVL 1License_Additional Product | K93: Unidad | L93: Und | M93: Producto | N93: NA | O93: N/A | P93: N/A | Q93: 6YH-00575AP | R93: Suscripción Anual | S93: 2.18 | T93: 1 | U93: 1 | V93: =SUMIF(ResumenCotizacion!$C:$C,E93,ResumenCotizacion!$P:$P) -> 0 | W93: =IF(H93="USD",S93*SolCotizacion!$J$18,S93) -> 8192.767 | X93: =ROUND(W93/(1-VLOOKUP("Total porcentaje:",ResumenCotizacion!$F:$H,3,0)),2) -> 8498.72 | Y93: 0
A94: Catalogo principalACADÉMICO6YH-00575STU | B94: 6YH-00575STUACADÉMICO | D94: Catalogo principal | E94: 6YH-00575STU | F94: ACADÉMICO | G94: Catalogo principal | H94: USD | I94: N/A | J94: Microsoft®SkypeforBusiness AllLng License/SoftwareAssurancePack MVL 1License_Student | K94: Unidad | L94: Und | M94: Producto | N94: NA | O94: N/A | P94: N/A | Q94: 6YH-00575STU | R94: Suscripción Anual | S94: 1.4 | T94: 1 | U94: 1 | V94: =SUMIF(ResumenCotizacion!$C:$C,E94,ResumenCotizacion!$P:$P) -> 0 | W94: =IF(H94="USD",S94*SolCotizacion!$J$18,S94) -> 5261.41 | X94: =ROUND(W94/(1-VLOOKUP("Total porcentaje:",ResumenCotizacion!$F:$H,3,0)),2) -> 5457.89 | Y94: 0
A95: Catalogo principalACADÉMICO6ZH-00395FAC | B95: 6ZH-00395FACACADÉMICO | D95: Catalogo principal | E95: 6ZH-00395FAC | F95: ACADÉMICO | G95: Catalogo principal | H95: USD | I95: N/A | J95: Microsoft®SfBServerStdCAL AllLng License/SoftwareAssurancePack MVL 1License DvcCAL_Faculty | K95: Unidad | L95: Und | M95: Producto | N95: NA | O95: N/A | P95: N/A | Q95: 6ZH-00395FAC | R95: Suscripción Anual | S95: 3.28 | T95: 1 | U95: 1 | V95: =SUMIF(ResumenCotizacion!$C:$C,E95,ResumenCotizacion!$P:$P) -> 0 | W95: =IF(H95="USD",S95*SolCotizacion!$J$18,S95) -> 12326.732 | X95: =ROUND(W95/(1-VLOOKUP("Total porcentaje:",ResumenCotizacion!$F:$H,3,0)),2) -> 12787.07 | Y95: 0
A96: Catalogo principalACADÉMICO6ZH-00395STU | B96: 6ZH-00395STUACADÉMICO | D96: Catalogo principal | E96: 6ZH-00395STU | F96: ACADÉMICO | G96: Catalogo principal | H96: USD | I96: N/A | J96: Microsoft®SfBServerStdCAL AllLng License/SoftwareAssurancePack MVL 1License DvcCAL_Student | K96: Unidad | L96: Und | M96: Producto | N96: NA | O96: N/A | P96: N/A | Q96: 6ZH-00395STU | R96: Suscripción Anual | S96: 2.18 | T96: 1 | U96: 1 | V96: =SUMIF(ResumenCotizacion!$C:$C,E96,ResumenCotizacion!$P:$P) -> 0 | W96: =IF(H96="USD",S96*SolCotizacion!$J$18,S96) -> 8192.767 | X96: =ROUND(W96/(1-VLOOKUP("Total porcentaje:",ResumenCotizacion!$F:$H,3,0)),2) -> 8498.72 | Y96: 0
A97: Catalogo principalACADÉMICO76A-00025FACA | B97: 76A-00025FACAACADÉMICO | D97: Catalogo principal | E97: 76A-00025FACA | F97: ACADÉMICO | G97: Catalogo principal | H97: USD | I97: N/A | J97: Microsoft®EnterpriseCAL AllLng License/SoftwareAssurancePack MVL 1License DvcCAL w/Services_FacultyLevelA | K97: Unidad | L97: Und | M97: Producto | N97: NA | O97: N/A | P97: N/A | Q97: 76A-00025FACA | R97: Suscripción Anual | S97: 26 | T97: 1 | U97: 1 | V97: =SUMIF(ResumenCotizacion!$C:$C,E97,ResumenCotizacion!$P:$P) -> 0 | W97: =IF(H97="USD",S97*SolCotizacion!$J$18,S97) -> 97711.9 | X97: =ROUND(W97/(1-VLOOKUP("Total porcentaje:",ResumenCotizacion!$F:$H,3,0)),2) -> 101360.89 | Y97: 0
A98: Catalogo principalACADÉMICO76A-00025FACB | B98: 76A-00025FACBACADÉMICO | D98: Catalogo principal | E98: 76A-00025FACB | F98: ACADÉMICO | G98: Catalogo principal | H98: USD | I98: N/A | J98: Microsoft®EnterpriseCAL AllLng License/SoftwareAssurancePack MVL 1License DvcCAL w/Services_FacultyLevelB | K98: Unidad | L98: Und | M98: Producto | N98: NA | O98: N/A | P98: N/A | Q98: 76A-00025FACB | R98: Suscripción Anual | S98: 24 | T98: 1 | U98: 1 | V98: =SUMIF(ResumenCotizacion!$C:$C,E98,ResumenCotizacion!$P:$P) -> 0 | W98: =IF(H98="USD",S98*SolCotizacion!$J$18,S98) -> 90195.6 | X98: =ROUND(W98/(1-VLOOKUP("Total porcentaje:",ResumenCotizacion!$F:$H,3,0)),2) -> 93563.9 | Y98: 0
A99: Catalogo principalACADÉMICO76A-00025FACC | B99: 76A-00025FACCACADÉMICO | D99: Catalogo principal | E99: 76A-00025FACC | F99: ACADÉMICO | G99: Catalogo principal | H99: USD | I99: N/A | J99: Microsoft®EnterpriseCAL AllLng License/SoftwareAssurancePack MVL 1License DvcCAL w/Services_FacultyLevelC | K99: Unidad | L99: Und | M99: Producto | N99: NA | O99: N/A | P99: N/A | Q99: 76A-00025FACC | R99: Suscripción Anual | S99: 22 | T99: 1 | U99: 1 | V99: =SUMIF(ResumenCotizacion!$C:$C,E99,ResumenCotizacion!$P:$P) -> 0 | W99: =IF(H99="USD",S99*SolCotizacion!$J$18,S99) -> 82679.3 | X99: =ROUND(W99/(1-VLOOKUP("Total porcentaje:",ResumenCotizacion!$F:$H,3,0)),2) -> 85766.91 | Y99: 0
A100: Catalogo principalACADÉMICO76A-00025FACD | B100: 76A-00025FACDACADÉMICO | D100: Catalogo principal | E100: 76A-00025FACD | F100: ACADÉMICO | G100: Catalogo principal | H100: USD | I100: N/A | J100: Microsoft®EnterpriseCAL AllLng License/SoftwareAssurancePack MVL 1License DvcCAL w/Services_FacultyLevelD | K100: Unidad | L100: Und | M100: Producto | N100: NA | O100: N/A | P100: N/A | Q100: 76A-00025FACD | R100: Suscripción Anual | S100: 21 | T100: 1 | U100: 1 | V100: =SUMIF(ResumenCotizacion!$C:$C,E100,ResumenCotizacion!$P:$P) -> 0 | W100: =IF(H100="USD",S100*SolCotizacion!$J$18,S100) -> 78921.15 | X100: =ROUND(W100/(1-VLOOKUP("Total porcentaje:",ResumenCotizacion!$F:$H,3,0)),2) -> 81868.41 | Y100: 0
A101: Catalogo principalACADÉMICO76A-00025STUA | B101: 76A-00025STUAACADÉMICO | D101: Catalogo principal | E101: 76A-00025STUA | F101: ACADÉMICO | G101: Catalogo principal | H101: USD | I101: N/A | J101: Microsoft®EnterpriseCAL AllLng License/SoftwareAssurancePack MVL 1License DvcCAL w/Services_StudentLevelA | K101: Unidad | L101: Und | M101: Producto | N101: NA | O101: N/A | P101: N/A | Q101: 76A-00025STUA | R101: Suscripción Anual | S101: 16 | T101: 1 | U101: 1 | V101: =SUMIF(ResumenCotizacion!$C:$C,E101,ResumenCotizacion!$P:$P) -> 0 | W101: =IF(H101="USD",S101*SolCotizacion!$J$18,S101) -> 60130.4 | X101: =ROUND(W101/(1-VLOOKUP("Total porcentaje:",ResumenCotizacion!$F:$H,3,0)),2) -> 62375.93 | Y101: 0
A102: Catalogo principalACADÉMICO76A-00025STUB | B102: 76A-00025STUBACADÉMICO | D102: Catalogo principal | E102: 76A-00025STUB | F102: ACADÉMICO | G102: Catalogo principal | H102: USD | I102: N/A | J102: Microsoft®EnterpriseCAL AllLng License/SoftwareAssurancePack MVL 1License DvcCAL w/Services_StudentLevelB | K102: Unidad | L102: Und | M102: Producto | N102: NA | O102: N/A | P102: N/A | Q102: 76A-00025STUB | R102: Suscripción Anual | S102: 15 | T102: 1 | U102: 1 | V102: =SUMIF(ResumenCotizacion!$C:$C,E102,ResumenCotizacion!$P:$P) -> 0 | W102: =IF(H102="USD",S102*SolCotizacion!$J$18,S102) -> 56372.25 | X102: =ROUND(W102/(1-VLOOKUP("Total porcentaje:",ResumenCotizacion!$F:$H,3,0)),2) -> 58477.44 | Y102: 0
A103: Catalogo principalACADÉMICO76A-00025STUC | B103: 76A-00025STUCACADÉMICO | D103: Catalogo principal | E103: 76A-00025STUC | F103: ACADÉMICO | G103: Catalogo principal | H103: USD | I103: N/A | J103: Microsoft®EnterpriseCAL AllLng License/SoftwareAssurancePack MVL 1License DvcCAL w/Services_StudentLevelC | K103: Unidad | L103: Und | M103: Producto | N103: NA | O103: N/A | P103: N/A | Q103: 76A-00025STUC | R103: Suscripción Anual | S103: 14 | T103: 1 | U103: 1 | V103: =SUMIF(ResumenCotizacion!$C:$C,E103,ResumenCotizacion!$P:$P) -> 0 | W103: =IF(H103="USD",S103*SolCotizacion!$J$18,S103) -> 52614.1 | X103: =ROUND(W103/(1-VLOOKUP("Total porcentaje:",ResumenCotizacion!$F:$H,3,0)),2) -> 54578.94 | Y103: 0
A104: Catalogo principalACADÉMICO76A-00025STUD | B104: 76A-00025STUDACADÉMICO | D104: Catalogo principal | E104: 76A-00025STUD | F104: ACADÉMICO | G104: Catalogo principal | H104: USD | I104: N/A | J104: Microsoft®EnterpriseCAL AllLng License/SoftwareAssurancePack MVL 1License DvcCAL w/Services_StudentLevelD | K104: Unidad | L104: Und | M104: Producto | N104: NA | O104: N/A | P104: N/A | Q104: 76A-00025STUD | R104: Suscripción Anual | S104: 13 | T104: 1 | U104: 1 | V104: =SUMIF(ResumenCotizacion!$C:$C,E104,ResumenCotizacion!$P:$P) -> 0 | W104: =IF(H104="USD",S104*SolCotizacion!$J$18,S104) -> 48855.95 | X104: =ROUND(W104/(1-VLOOKUP("Total porcentaje:",ResumenCotizacion!$F:$H,3,0)),2) -> 50680.45 | Y104: 0
A105: Catalogo principalACADÉMICO76A-00043FACA | B105: 76A-00043FACAACADÉMICO | D105: Catalogo principal | E105: 76A-00043FACA | F105: ACADÉMICO | G105: Catalogo principal | H105: USD | I105: N/A | J105: Microsoft®EnterpriseCAL AllLng SAStepUp MVL 1License fromCoreCAL DvcCAL w/Services_FacultyLevelA | K105: Unidad | L105: Und | M105: Producto | N105: NA | O105: N/A | P105: N/A | Q105: 76A-00043FACA | R105: Suscripción Anual | S105: 13 | T105: 1 | U105: 1 | V105: =SUMIF(ResumenCotizacion!$C:$C,E105,ResumenCotizacion!$P:$P) -> 0 | W105: =IF(H105="USD",S105*SolCotizacion!$J$18,S105) -> 48855.95 | X105: =ROUND(W105/(1-VLOOKUP("Total porcentaje:",ResumenCotizacion!$F:$H,3,0)),2) -> 50680.45 | Y105: 0
A106: Catalogo principalACADÉMICO76A-00043FACB | B106: 76A-00043FACBACADÉMICO | D106: Catalogo principal | E106: 76A-00043FACB | F106: ACADÉMICO | G106: Catalogo principal | H106: USD | I106: N/A | J106: Microsoft®EnterpriseCAL AllLng SAStepUp MVL 1License fromCoreCAL DvcCAL w/Services_FacultyLevelB | K106: Unidad | L106: Und | M106: Producto | N106: NA | O106: N/A | P106: N/A | Q106: 76A-00043FACB | R106: Suscripción Anual | S106: 12 | T106: 1 | U106: 1 | V106: =SUMIF(ResumenCotizacion!$C:$C,E106,ResumenCotizacion!$P:$P) -> 0 | W106: =IF(H106="USD",S106*SolCotizacion!$J$18,S106) -> 45097.8 | X106: =ROUND(W106/(1-VLOOKUP("Total porcentaje:",ResumenCotizacion!$F:$H,3,0)),2) -> 46781.95 | Y106: 0
A107: Catalogo principalACADÉMICO76A-00043FACC | B107: 76A-00043FACCACADÉMICO | D107: Catalogo principal | E107: 76A-00043FACC | F107: ACADÉMICO | G107: Catalogo principal | H107: USD | I107: N/A | J107: Microsoft®EnterpriseCAL AllLng SAStepUp MVL 1License fromCoreCAL DvcCAL w/Services_FacultyLevelC | K107: Unidad | L107: Und | M107: Producto | N107: NA | O107: N/A | P107: N/A | Q107: 76A-00043FACC | R107: Suscripción Anual | S107: 11 | T107: 1 | U107: 1 | V107: =SUMIF(ResumenCotizacion!$C:$C,E107,ResumenCotizacion!$P:$P) -> 0 | W107: =IF(H107="USD",S107*SolCotizacion!$J$18,S107) -> 41339.65 | X107: =ROUND(W107/(1-VLOOKUP("Total porcentaje:",ResumenCotizacion!$F:$H,3,0)),2) -> 42883.45 | Y107: 0
A108: Catalogo principalACADÉMICO76A-00043FACD | B108: 76A-00043FACDACADÉMICO | D108: Catalogo principal | E108: 76A-00043FACD | F108: ACADÉMICO | G108: Catalogo principal | H108: USD | I108: N/A | J108: Microsoft®EnterpriseCAL AllLng SAStepUp MVL 1License fromCoreCAL DvcCAL w/Services_FacultyLevelD | K108: Unidad | L108: Und | M108: Producto | N108: NA | O108: N/A | P108: N/A | Q108: 76A-00043FACD | R108: Suscripción Anual | S108: 10 | T108: 1 | U108: 1 | V108: =SUMIF(ResumenCotizacion!$C:$C,E108,ResumenCotizacion!$P:$P) -> 0 | W108: =IF(H108="USD",S108*SolCotizacion!$J$18,S108) -> 37581.5 | X108: =ROUND(W108/(1-VLOOKUP("Total porcentaje:",ResumenCotizacion!$F:$H,3,0)),2) -> 38984.96 | Y108: 0
A109: Catalogo principalACADÉMICO76A-00043STUA | B109: 76A-00043STUAACADÉMICO | D109: Catalogo principal | E109: 76A-00043STUA | F109: ACADÉMICO | G109: Catalogo principal | H109: USD | I109: N/A | J109: Microsoft®EnterpriseCAL AllLng SAStepUp MVL 1License fromCoreCAL DvcCAL w/Services_StudentLevelA | K109: Unidad | L109: Und | M109: Producto | N109: NA | O109: N/A | P109: N/A | Q109: 76A-00043STUA | R109: Suscripción Anual | S109: 13 | T109: 1 | U109: 1 | V109: =SUMIF(ResumenCotizacion!$C:$C,E109,ResumenCotizacion!$P:$P) -> 0 | W109: =IF(H109="USD",S109*SolCotizacion!$J$18,S109) -> 48855.95 | X109: =ROUND(W109/(1-VLOOKUP("Total porcentaje:",ResumenCotizacion!$F:$H,3,0)),2) -> 50680.45 | Y109: 0
A110: Catalogo principalACADÉMICO76A-00043STUB | B110: 76A-00043STUBACADÉMICO | D110: Catalogo principal | E110: 76A-00043STUB | F110: ACADÉMICO | G110: Catalogo principal | H110: USD | I110: N/A | J110: Microsoft®EnterpriseCAL AllLng SAStepUp MVL 1License fromCoreCAL DvcCAL w/Services_StudentLevelB | K110: Unidad | L110: Und | M110: Producto | N110: NA | O110: N/A | P110: N/A | Q110: 76A-00043STUB | R110: Suscripción Anual | S110: 13 | T110: 1 | U110: 1 | V110: =SUMIF(ResumenCotizacion!$C:$C,E110,ResumenCotizacion!$P:$P) -> 0 | W110: =IF(H110="USD",S110*SolCotizacion!$J$18,S110) -> 48855.95 | X110: =ROUND(W110/(1-VLOOKUP("Total porcentaje:",ResumenCotizacion!$F:$H,3,0)),2) -> 50680.45 | Y110: 0
A111: Catalogo principalACADÉMICO76A-00043STUC | B111: 76A-00043STUCACADÉMICO | D111: Catalogo principal | E111: 76A-00043STUC | F111: ACADÉMICO | G111: Catalogo principal | H111: USD | I111: N/A | J111: Microsoft®EnterpriseCAL AllLng SAStepUp MVL 1License fromCoreCAL DvcCAL w/Services_StudentLevelC | K111: Unidad | L111: Und | M111: Producto | N111: NA | O111: N/A | P111: N/A | Q111: 76A-00043STUC | R111: Suscripción Anual | S111: 12 | T111: 1 | U111: 1 | V111: =SUMIF(ResumenCotizacion!$C:$C,E111,ResumenCotizacion!$P:$P) -> 0 | W111: =IF(H111="USD",S111*SolCotizacion!$J$18,S111) -> 45097.8 | X111: =ROUND(W111/(1-VLOOKUP("Total porcentaje:",ResumenCotizacion!$F:$H,3,0)),2) -> 46781.95 | Y111: 0
A112: Catalogo principalACADÉMICO76A-00043STUD | B112: 76A-00043STUDACADÉMICO | D112: Catalogo principal | E112: 76A-00043STUD | F112: ACADÉMICO | G112: Catalogo principal | H112: USD | I112: N/A | J112: Microsoft®EnterpriseCAL AllLng SAStepUp MVL 1License fromCoreCAL DvcCAL w/Services_StudentLevelD | K112: Unidad | L112: Und | M112: Producto | N112: NA | O112: N/A | P112: N/A | Q112: 76A-00043STUD | R112: Suscripción Anual | S112: 11 | T112: 1 | U112: 1 | V112: =SUMIF(ResumenCotizacion!$C:$C,E112,ResumenCotizacion!$P:$P) -> 0 | W112: =IF(H112="USD",S112*SolCotizacion!$J$18,S112) -> 41339.65 | X112: =ROUND(W112/(1-VLOOKUP("Total porcentaje:",ResumenCotizacion!$F:$H,3,0)),2) -> 42883.45 | Y112: 0
A113: Catalogo principalACADÉMICO76N-02345FAC | B113: 76N-02345FACACADÉMICO | D113: Catalogo principal | E113: 76N-02345FAC | F113: ACADÉMICO | G113: Catalogo principal | H113: USD | I113: N/A | J113: Microsoft®SharePointEnterpriseCAL AllLng License/SoftwareAssurancePack MVL 1License DvcCAL_Faculty | K113: Unidad | L113: Und | M113: Producto | N113: NA | O113: N/A | P113: N/A | Q113: 76N-02345FAC | R113: Suscripción Anual | S113: 9 | T113: 1 | U113: 1 | V113: =SUMIF(ResumenCotizacion!$C:$C,E113,ResumenCotizacion!$P:$P) -> 0 | W113: =IF(H113="USD",S113*SolCotizacion!$J$18,S113) -> 33823.35 | X113: =ROUND(W113/(1-VLOOKUP("Total porcentaje:",ResumenCotizacion!$F:$H,3,0)),2) -> 35086.46 | Y113: 0
A114: Catalogo principalACADÉMICO76N-02345STU | B114: 76N-02345STUACADÉMICO | D114: Catalogo principal | E114: 76N-02345STU | F114: ACADÉMICO | G114: Catalogo principal | H114: USD | I114: N/A | J114: Microsoft®SharePointEnterpriseCAL AllLng License/SoftwareAssurancePack MVL 1License DvcCAL_Student | K114: Unidad | L114: Und | M114: Producto | N114: NA | O114: N/A | P114: N/A | Q114: 76N-02345STU | R114: Suscripción Anual | S114: 6 | T114: 1 | U114: 1 | V114: =SUMIF(ResumenCotizacion!$C:$C,E114,ResumenCotizacion!$P:$P) -> 0 | W114: =IF(H114="USD",S114*SolCotizacion!$J$18,S114) -> 22548.9 | X114: =ROUND(W114/(1-VLOOKUP("Total porcentaje:",ResumenCotizacion!$F:$H,3,0)),2) -> 23390.98 | Y114: 0
A115: Catalogo principalACADÉMICO77D-00110AP | B115: 77D-00110APACADÉMICO | D115: Catalogo principal | E115: 77D-00110AP | F115: ACADÉMICO | G115: Catalogo principal | H115: USD | I115: N/A | J115: Microsoft®VisualStudioProSubMSDN AllLng License/SoftwareAssurancePack MVL 1License_Additional Product | K115: Unidad | L115: Und | M115: Producto | N115: NA | O115: N/A | P115: N/A | Q115: 77D-00110AP | R115: Suscripción Anual | S115: 69 | T115: 1 | U115: 1 | V115: =SUMIF(ResumenCotizacion!$C:$C,E115,ResumenCotizacion!$P:$P) -> 0 | W115: =IF(H115="USD",S115*SolCotizacion!$J$18,S115) -> 259312.35 | X115: =ROUND(W115/(1-VLOOKUP("Total porcentaje:",ResumenCotizacion!$F:$H,3,0)),2) -> 268996.21 | Y115: 0
A116: Catalogo principalACADÉMICO7AH-00281FAC | B116: 7AH-00281FACACADÉMICO | D116: Catalogo principal | E116: 7AH-00281FAC | F116: ACADÉMICO | G116: Catalogo principal | H116: USD | I116: N/A | J116: Microsoft®SfBServerEntCAL AllLng License/SoftwareAssurancePack MVL 1License DvcCAL_Faculty | K116: Unidad | L116: Und | M116: Producto | N116: NA | O116: N/A | P116: N/A | Q116: 7AH-00281FAC | R116: Suscripción Anual | S116: 12 | T116: 1 | U116: 1 | V116: =SUMIF(ResumenCotizacion!$C:$C,E116,ResumenCotizacion!$P:$P) -> 0 | W116: =IF(H116="USD",S116*SolCotizacion!$J$18,S116) -> 45097.8 | X116: =ROUND(W116/(1-VLOOKUP("Total porcentaje:",ResumenCotizacion!$F:$H,3,0)),2) -> 46781.95 | Y116: 0
A117: Catalogo principalACADÉMICO7AH-00281STU | B117: 7AH-00281STUACADÉMICO | D117: Catalogo principal | E117: 7AH-00281STU | F117: ACADÉMICO | G117: Catalogo principal | H117: USD | I117: N/A | J117: Microsoft®SfBServerEntCAL AllLng License/SoftwareAssurancePack MVL 1License DvcCAL_Student | K117: Unidad | L117: Und | M117: Producto | N117: NA | O117: N/A | P117: N/A | Q117: 7AH-00281STU | R117: Suscripción Anual | S117: 8 | T117: 1 | U117: 1 | V117: =SUMIF(ResumenCotizacion!$C:$C,E117,ResumenCotizacion!$P:$P) -> 0 | W117: =IF(H117="USD",S117*SolCotizacion!$J$18,S117) -> 30065.2 | X117: =ROUND(W117/(1-VLOOKUP("Total porcentaje:",ResumenCotizacion!$F:$H,3,0)),2) -> 31187.97 | Y117: 0
A118: Catalogo principalACADÉMICO7HS-00001AP | B118: 7HS-00001APACADÉMICO | D118: Catalogo principal | E118: 7HS-00001AP | F118: ACADÉMICO | G118: Catalogo principal | H118: USD | I118: N/A | J118: Microsoft®ProjOnlineEssentialsEDU ShrdSvr AllLng MonthlySubscriptions-VolumeLicense MVL 1License PerUsr_Additional Product | K118: Unidad | L118: Und | M118: Producto | N118: NA | O118: N/A | P118: N/A | Q118: 7HS-00001AP | R118: Suscripción mensual con pago anual | S118: 0 | T118: 1 | U118: 1 | V118: =SUMIF(ResumenCotizacion!$C:$C,E118,ResumenCotizacion!$P:$P) -> 0 | W118: =IF(H118="USD",S118*SolCotizacion!$J$18,S118) -> 0 | X118: =ROUND(W118/(1-VLOOKUP("Total porcentaje:",ResumenCotizacion!$F:$H,3,0)),2) -> 0 | Y118: 0
A119: Catalogo principalACADÉMICO7HS-00001STU | B119: 7HS-00001STUACADÉMICO | D119: Catalogo principal | E119: 7HS-00001STU | F119: ACADÉMICO | G119: Catalogo principal | H119: USD | I119: N/A | J119: Microsoft®ProjOnlineEssentialsEDU ShrdSvr AllLng MonthlySubscriptions-VolumeLicense MVL 1License PerUsr_Student | K119: Unidad | L119: Und | M119: Producto | N119: NA | O119: N/A | P119: N/A | Q119: 7HS-00001STU | R119: Suscripción mensual con pago anual | S119: 0 | T119: 1 | U119: 1 | V119: =SUMIF(ResumenCotizacion!$C:$C,E119,ResumenCotizacion!$P:$P) -> 0 | W119: =IF(H119="USD",S119*SolCotizacion!$J$18,S119) -> 0 | X119: =ROUND(W119/(1-VLOOKUP("Total porcentaje:",ResumenCotizacion!$F:$H,3,0)),2) -> 0 | Y119: 0
A120: Catalogo principalACADÉMICO7JQ-00341AP | B120: 7JQ-00341APACADÉMICO | D120: Catalogo principal | E120: 7JQ-00341AP | F120: ACADÉMICO | G120: Catalogo principal | H120: USD | I120: N/A | J120: Microsoft®SQLSvrEnterpriseCore AllLng License/SoftwareAssurancePack MVL 2Licenses CoreLic_Additional Product | K120: Unidad | L120: Und | M120: Producto | N120: NA | O120: N/A | P120: N/A | Q120: 7JQ-00341AP | R120: Suscripción Anual | S120: 1446 | T120: 1 | U120: 1 | V120: =SUMIF(ResumenCotizacion!$C:$C,E120,ResumenCotizacion!$P:$P) -> 2 | W120: =IF(H120="USD",S120*SolCotizacion!$J$18,S120) -> 5434284.9 | X120: =ROUND(W120/(1-VLOOKUP("Total porcentaje:",ResumenCotizacion!$F:$H,3,0)),2) -> 5637225 | Y120: 11274450
A121: Catalogo principalACADÉMICO7JQ-00448AP | B121: 7JQ-00448APACADÉMICO | D121: Catalogo principal | E121: 7JQ-00448AP | F121: ACADÉMICO | G121: Catalogo principal | H121: USD | I121: N/A | J121: Microsoft®SQLSvrEnterpriseCore AllLng SAStepUp MVL 2Licenses SQLSvrStandardCore CoreLic_Additional Product | K121: Unidad | L121: Und | M121: Producto | N121: NA | O121: N/A | P121: N/A | Q121: 7JQ-00448AP | R121: Suscripción Anual | S121: 1069 | T121: 1 | U121: 1 | V121: =SUMIF(ResumenCotizacion!$C:$C,E121,ResumenCotizacion!$P:$P) -> 0 | W121: =IF(H121="USD",S121*SolCotizacion!$J$18,S121) -> 4017462.35 | X121: =ROUND(W121/(1-VLOOKUP("Total porcentaje:",ResumenCotizacion!$F:$H,3,0)),2) -> 4167492.06 | Y121: 0
A122: Catalogo principalACADÉMICO7MA-00001AP | B122: 7MA-00001APACADÉMICO | D122: Catalogo principal | E122: 7MA-00001AP | F122: ACADÉMICO | G122: Catalogo principal | H122: USD | I122: N/A | J122: Microsoft®ProjectPlan3EDU ShrdSvr AllLng MonthlySubscriptions-VolumeLicense MVL 1License PerUsr_Additional Product | K122: Unidad | L122: Und | M122: Producto | N122: NA | O122: N/A | P122: N/A | Q122: 7MA-00001AP | R122: Suscripción mensual con pago anual | S122: 6 | T122: 1 | U122: 1 | V122: =SUMIF(ResumenCotizacion!$C:$C,E122,ResumenCotizacion!$P:$P) -> 720 | W122: =IF(H122="USD",S122*SolCotizacion!$J$18,S122) -> 22548.9 | X122: =ROUND(W122/(1-VLOOKUP("Total porcentaje:",ResumenCotizacion!$F:$H,3,0)),2) -> 23390.98 | Y122: 16841505.6
A123: Catalogo principalACADÉMICO7MA-00001STU | B123: 7MA-00001STUACADÉMICO | D123: Catalogo principal | E123: 7MA-00001STU | F123: ACADÉMICO | G123: Catalogo principal | H123: USD | I123: N/A | J123: Microsoft®ProjectPlan3EDU ShrdSvr AllLng MonthlySubscriptions-VolumeLicense MVL 1License PerUsr_Student | K123: Unidad | L123: Und | M123: Producto | N123: NA | O123: N/A | P123: N/A | Q123: 7MA-00001STU | R123: Suscripción mensual con pago anual | S123: 4.21 | T123: 1 | U123: 1 | V123: =SUMIF(ResumenCotizacion!$C:$C,E123,ResumenCotizacion!$P:$P) -> 0 | W123: =IF(H123="USD",S123*SolCotizacion!$J$18,S123) -> 15821.8115 | X123: =ROUND(W123/(1-VLOOKUP("Total porcentaje:",ResumenCotizacion!$F:$H,3,0)),2) -> 16412.67 | Y123: 0
A124: Catalogo principalACADÉMICO7MA-00002AP | B124: 7MA-00002APACADÉMICO | D124: Catalogo principal | E124: 7MA-00002AP | F124: ACADÉMICO | G124: Catalogo principal | H124: USD | I124: N/A | J124: Microsoft®ProjectPlan3EDU ShrdSvr AllLng StepUp MVL 1License ProjectProForOffice365forEDU PerUsr_Additional Product | K124: Unidad | L124: Und | M124: Producto | N124: NA | O124: N/A | P124: N/A | Q124: 7MA-00002AP | R124: Suscripción mensual con pago anual | S124: 3.41 | T124: 1 | U124: 1 | V124: =SUMIF(ResumenCotizacion!$C:$C,E124,ResumenCotizacion!$P:$P) -> 0 | W124: =IF(H124="USD",S124*SolCotizacion!$J$18,S124) -> 12815.2915 | X124: =ROUND(W124/(1-VLOOKUP("Total porcentaje:",ResumenCotizacion!$F:$H,3,0)),2) -> 13293.87 | Y124: 0
A125: Catalogo principalACADÉMICO7MA-00002STU | B125: 7MA-00002STUACADÉMICO | D125: Catalogo principal | E125: 7MA-00002STU | F125: ACADÉMICO | G125: Catalogo principal | H125: USD | I125: N/A | J125: Microsoft®ProjectPlan3EDU ShrdSvr AllLng StepUp MVL 1License ProjectProForOffice365forEDU PerUsr_Student | K125: Unidad | L125: Und | M125: Producto | N125: NA | O125: N/A | P125: N/A | Q125: 7MA-00002STU | R125: Suscripción mensual con pago anual | S125: 3.11 | T125: 1 | U125: 1 | V125: =SUMIF(ResumenCotizacion!$C:$C,E125,ResumenCotizacion!$P:$P) -> 0 | W125: =IF(H125="USD",S125*SolCotizacion!$J$18,S125) -> 11687.8465 | X125: =ROUND(W125/(1-VLOOKUP("Total porcentaje:",ResumenCotizacion!$F:$H,3,0)),2) -> 12124.32 | Y125: 0
A126: Catalogo principalACADÉMICO7MA-00003AP | B126: 7MA-00003APACADÉMICO | D126: Catalogo principal | E126: 7MA-00003AP | F126: ACADÉMICO | G126: Catalogo principal | H126: USD | I126: N/A | J126: Microsoft®ProjectPlan3EDU ShrdSvr AllLng StepUp MVL 1License ProjOnlineEssentialsforEDU PerUsr_Additional Product | K126: Unidad | L126: Und | M126: Producto | N126: NA | O126: N/A | P126: N/A | Q126: 7MA-00003AP | R126: Suscripción mensual con pago anual | S126: 6 | T126: 1 | U126: 1 | V126: =SUMIF(ResumenCotizacion!$C:$C,E126,ResumenCotizacion!$P:$P) -> 0 | W126: =IF(H126="USD",S126*SolCotizacion!$J$18,S126) -> 22548.9 | X126: =ROUND(W126/(1-VLOOKUP("Total porcentaje:",ResumenCotizacion!$F:$H,3,0)),2) -> 23390.98 | Y126: 0
A127: Catalogo principalACADÉMICO7MA-00003STU | B127: 7MA-00003STUACADÉMICO | D127: Catalogo principal | E127: 7MA-00003STU | F127: ACADÉMICO | G127: Catalogo principal | H127: USD | I127: N/A | J127: Microsoft®ProjectPlan3EDU ShrdSvr AllLng StepUp MVL 1License ProjOnlineEssentialsforEDU PerUsr_Student | K127: Unidad | L127: Und | M127: Producto | N127: NA | O127: N/A | P127: N/A | Q127: 7MA-00003STU | R127: Suscripción mensual con pago anual | S127: 4.21 | T127: 1 | U127: 1 | V127: =SUMIF(ResumenCotizacion!$C:$C,E127,ResumenCotizacion!$P:$P) -> 0 | W127: =IF(H127="USD",S127*SolCotizacion!$J$18,S127) -> 15821.8115 | X127: =ROUND(W127/(1-VLOOKUP("Total porcentaje:",ResumenCotizacion!$F:$H,3,0)),2) -> 16412.67 | Y127: 0
A128: Catalogo principalACADÉMICO7NQ-00302AP | B128: 7NQ-00302APACADÉMICO | D128: Catalogo principal | E128: 7NQ-00302AP | F128: ACADÉMICO | G128: Catalogo principal | H128: USD | I128: N/A | J128: Microsoft®SQLSvrStandardCore AllLng License/SoftwareAssurancePack MVL 2Licenses CoreLic_Additional Product | K128: Unidad | L128: Und | M128: Producto | N128: NA | O128: N/A | P128: N/A | Q128: 7NQ-00302AP | R128: Suscripción Anual | S128: 377 | T128: 1 | U128: 1 | V128: =SUMIF(ResumenCotizacion!$C:$C,E128,ResumenCotizacion!$P:$P) -> 0 | W128: =IF(H128="USD",S128*SolCotizacion!$J$18,S128) -> 1416822.55 | X128: =ROUND(W128/(1-VLOOKUP("Total porcentaje:",ResumenCotizacion!$F:$H,3,0)),2) -> 1469732.94 | Y128: 0
A129: Catalogo principalACADÉMICO7TR-00001AP | B129: 7TR-00001APACADÉMICO | D129: Catalogo principal | E129: 7TR-00001AP | F129: ACADÉMICO | G129: Catalogo principal | H129: USD | I129: N/A | J129: Microsoft®ProjectPlan5EDU ShrdSvr AllLng MonthlySubscriptions-VolumeLicense MVL 1License PerUsr_Additional Product | K129: Unidad | L129: Und | M129: Producto | N129: NA | O129: N/A | P129: N/A | Q129: 7TR-00001AP | R129: Suscripción mensual con pago anual | S129: 11 | T129: 1 | U129: 1 | V129: =SUMIF(ResumenCotizacion!$C:$C,E129,ResumenCotizacion!$P:$P) -> 0 | W129: =IF(H129="USD",S129*SolCotizacion!$J$18,S129) -> 41339.65 | X129: =ROUND(W129/(1-VLOOKUP("Total porcentaje:",ResumenCotizacion!$F:$H,3,0)),2) -> 42883.45 | Y129: 0
A130: Catalogo principalACADÉMICO7TR-00001STU | B130: 7TR-00001STUACADÉMICO | D130: Catalogo principal | E130: 7TR-00001STU | F130: ACADÉMICO | G130: Catalogo principal | H130: USD | I130: N/A | J130: Microsoft®ProjectPlan5EDU ShrdSvr AllLng MonthlySubscriptions-VolumeLicense MVL 1License PerUsr_Student | K130: Unidad | L130: Und | M130: Producto | N130: NA | O130: N/A | P130: N/A | Q130: 7TR-00001STU | R130: Suscripción mensual con pago anual | S130: 8 | T130: 1 | U130: 1 | V130: =SUMIF(ResumenCotizacion!$C:$C,E130,ResumenCotizacion!$P:$P) -> 0 | W130: =IF(H130="USD",S130*SolCotizacion!$J$18,S130) -> 30065.2 | X130: =ROUND(W130/(1-VLOOKUP("Total porcentaje:",ResumenCotizacion!$F:$H,3,0)),2) -> 31187.97 | Y130: 0
A131: =D131&F131&E131 -> Catalogo principalACADÉMICO7TR-00002AP | B131: =E131&F131 -> 7TR-00002APACADÉMICO | D131: Catalogo principal | E131: 7TR-00002AP | F131: ACADÉMICO | G131: =D131 -> Catalogo principal | H131: USD | I131: N/A | J131: Microsoft®ProjectPlan5EDU ShrdSvr AllLng StepUp MVL 1License ProjectOnlineforEDU PerUsr_Additional Product | K131: Unidad | L131: Und | M131: Producto | N131: NA | O131: N/A | P131: N/A | Q131: 7TR-00002AP | R131: Suscripción mensual con pago anual | S131: 11 | T131: 1 | U131: 1 | V131: =SUMIF(ResumenCotizacion!$C:$C,E131,ResumenCotizacion!$P:$P) -> 0 | W131: =IF(H131="USD",S131*SolCotizacion!$J$18,S131) -> 41339.65 | X131: =ROUND(W131/(1-VLOOKUP("Total porcentaje:",ResumenCotizacion!$F:$H,3,0)),2) -> 42883.45 | Y131: =V131*X131 -> 0
A132: Catalogo principalACADÉMICO7TR-00002STU | B132: 7TR-00002STUACADÉMICO | D132: Catalogo principal | E132: 7TR-00002STU | F132: ACADÉMICO | G132: Catalogo principal | H132: USD | I132: N/A | J132: Microsoft®ProjectPlan5EDU ShrdSvr AllLng StepUp MVL 1License ProjectOnlineforEDU PerUsr_Student | K132: Unidad | L132: Und | M132: Producto | N132: NA | O132: N/A | P132: N/A | Q132: 7TR-00002STU | R132: Suscripción mensual con pago anual | S132: 8 | T132: 1 | U132: 1 | V132: =SUMIF(ResumenCotizacion!$C:$C,E132,ResumenCotizacion!$P:$P) -> 0 | W132: =IF(H132="USD",S132*SolCotizacion!$J$18,S132) -> 30065.2 | X132: =ROUND(W132/(1-VLOOKUP("Total porcentaje:",ResumenCotizacion!$F:$H,3,0)),2) -> 31187.97 | Y132: 0
A133: Catalogo principalACADÉMICO7TR-00003AP | B133: 7TR-00003APACADÉMICO | D133: Catalogo principal | E133: 7TR-00003AP | F133: ACADÉMICO | G133: Catalogo principal | H133: USD | I133: N/A | J133: Microsoft®ProjectPlan5EDU ShrdSvr AllLng StepUp MVL 1License ProjOnlineProfessionalforEDU PerUsr_Additional Product | K133: Unidad | L133: Und | M133: Producto | N133: NA | O133: N/A | P133: N/A | Q133: 7TR-00003AP | R133: Suscripción mensual con pago anual | S133: 4.68 | T133: 1 | U133: 1 | V133: =SUMIF(ResumenCotizacion!$C:$C,E133,ResumenCotizacion!$P:$P) -> 0 | W133: =IF(H133="USD",S133*SolCotizacion!$J$18,S133) -> 17588.142 | X133: =ROUND(W133/(1-VLOOKUP("Total porcentaje:",ResumenCotizacion!$F:$H,3,0)),2) -> 18244.96 | Y133: 0
A134: Catalogo principalACADÉMICO7TR-00003STU | B134: 7TR-00003STUACADÉMICO | D134: Catalogo principal | E134: 7TR-00003STU | F134: ACADÉMICO | G134: Catalogo principal | H134: USD | I134: N/A | J134: Microsoft®ProjectPlan5EDU ShrdSvr AllLng StepUp MVL 1License ProjOnlineProfessionalforEDU PerUsr_Student | K134: Unidad | L134: Und | M134: Producto | N134: NA | O134: N/A | P134: N/A | Q134: 7TR-00003STU | R134: Suscripción mensual con pago anual | S134: 3.74 | T134: 1 | U134: 1 | V134: =SUMIF(ResumenCotizacion!$C:$C,E134,ResumenCotizacion!$P:$P) -> 0 | W134: =IF(H134="USD",S134*SolCotizacion!$J$18,S134) -> 14055.481 | X134: =ROUND(W134/(1-VLOOKUP("Total porcentaje:",ResumenCotizacion!$F:$H,3,0)),2) -> 14580.37 | Y134: 0
A135: Catalogo principalACADÉMICO7UP-00001AP | B135: 7UP-00001APACADÉMICO | D135: Catalogo principal | E135: 7UP-00001AP | F135: ACADÉMICO | G135: Catalogo principal | H135: USD | I135: N/A | J135: Microsoft®DynamicsMktgEnhancedSuprtEDU ShrdSvr AllLng MonthlySubscriptions-VolumeLicense MVL 1License PerUsr_Additional Product | K135: Unidad | L135: Und | M135: Producto | N135: NA | O135: N/A | P135: N/A | Q135: 7UP-00001AP | R135: Suscripción mensual con pago anual | S135: 6 | T135: 1 | U135: 1 | V135: =SUMIF(ResumenCotizacion!$C:$C,E135,ResumenCotizacion!$P:$P) -> 0 | W135: =IF(H135="USD",S135*SolCotizacion!$J$18,S135) -> 22548.9 | X135: =ROUND(W135/(1-VLOOKUP("Total porcentaje:",ResumenCotizacion!$F:$H,3,0)),2) -> 23390.98 | Y135: 0
A136: Catalogo principalACADÉMICO7UP-00001STU | B136: 7UP-00001STUACADÉMICO | D136: Catalogo principal | E136: 7UP-00001STU | F136: ACADÉMICO | G136: Catalogo principal | H136: USD | I136: N/A | J136: Microsoft®DynamicsMktgEnhancedSuprtEDU ShrdSvr AllLng MonthlySubscriptions-VolumeLicense MVL 1License PerUsr_Student | K136: Unidad | L136: Und | M136: Producto | N136: NA | O136: N/A | P136: N/A | Q136: 7UP-00001STU | R136: Suscripción mensual con pago anual | S136: 6 | T136: 1 | U136: 1 | V136: =SUMIF(ResumenCotizacion!$C:$C,E136,ResumenCotizacion!$P:$P) -> 0 | W136: =IF(H136="USD",S136*SolCotizacion!$J$18,S136) -> 22548.9 | X136: =ROUND(W136/(1-VLOOKUP("Total porcentaje:",ResumenCotizacion!$F:$H,3,0)),2) -> 23390.98 | Y136: 0
A137: Catalogo principalACADÉMICO7V2-00001AP | B137: 7V2-00001APACADÉMICO | D137: Catalogo principal | E137: 7V2-00001AP | F137: ACADÉMICO | G137: Catalogo principal | H137: USD | I137: N/A | J137: Microsoft®DynamicsMktgProfDirSuprtEDU ShrdSvr AllLng MonthlySubscriptions-VolumeLicense MVL 1License PerUsr_Additional Product | K137: Unidad | L137: Und | M137: Producto | N137: NA | O137: N/A | P137: N/A | Q137: 7V2-00001AP | R137: Suscripción mensual con pago anual | S137: 10 | T137: 1 | U137: 1 | V137: =SUMIF(ResumenCotizacion!$C:$C,E137,ResumenCotizacion!$P:$P) -> 0 | W137: =IF(H137="USD",S137*SolCotizacion!$J$18,S137) -> 37581.5 | X137: =ROUND(W137/(1-VLOOKUP("Total porcentaje:",ResumenCotizacion!$F:$H,3,0)),2) -> 38984.96 | Y137: 0
A138: Catalogo principalACADÉMICO7V2-00001STU | B138: 7V2-00001STUACADÉMICO | D138: Catalogo principal | E138: 7V2-00001STU | F138: ACADÉMICO | G138: Catalogo principal | H138: USD | I138: N/A | J138: Microsoft®DynamicsMktgProfDirSuprtEDU ShrdSvr AllLng MonthlySubscriptions-VolumeLicense MVL 1License PerUsr_Student | K138: Unidad | L138: Und | M138: Producto | N138: NA | O138: N/A | P138: N/A | Q138: 7V2-00001STU | R138: Suscripción mensual con pago anual | S138: 10 | T138: 1 | U138: 1 | V138: =SUMIF(ResumenCotizacion!$C:$C,E138,ResumenCotizacion!$P:$P) -> 0 | W138: =IF(H138="USD",S138*SolCotizacion!$J$18,S138) -> 37581.5 | X138: =ROUND(W138/(1-VLOOKUP("Total porcentaje:",ResumenCotizacion!$F:$H,3,0)),2) -> 38984.96 | Y138: 0
A139: Catalogo principalACADÉMICO7V2-00002AP | B139: 7V2-00002APACADÉMICO | D139: Catalogo principal | E139: 7V2-00002AP | F139: ACADÉMICO | G139: Catalogo principal | H139: USD | I139: N/A | J139: Microsoft®DynamicsMktgProfDirSuprtEDU ShrdSvr AllLng StepUp MVL 1License DYNAMICSMKTGENHANCEDSUPRTEDU PerUsr_Additional Product | K139: Unidad | L139: Und | M139: Producto | N139: NA | O139: N/A | P139: N/A | Q139: 7V2-00002AP | R139: Suscripción mensual con pago anual | S139: 4.4 | T139: 1 | U139: 1 | V139: =SUMIF(ResumenCotizacion!$C:$C,E139,ResumenCotizacion!$P:$P) -> 0 | W139: =IF(H139="USD",S139*SolCotizacion!$J$18,S139) -> 16535.86 | X139: =ROUND(W139/(1-VLOOKUP("Total porcentaje:",ResumenCotizacion!$F:$H,3,0)),2) -> 17153.38 | Y139: 0
A140: Catalogo principalACADÉMICO7V2-00002STU | B140: 7V2-00002STUACADÉMICO | D140: Catalogo principal | E140: 7V2-00002STU | F140: ACADÉMICO | G140: Catalogo principal | H140: USD | I140: N/A | J140: Microsoft®DynamicsMktgProfDirSuprtEDU ShrdSvr AllLng StepUp MVL 1License DYNAMICSMKTGENHANCEDSUPRTEDU PerUsr_Student | K140: Unidad | L140: Und | M140: Producto | N140: NA | O140: N/A | P140: N/A | Q140: 7V2-00002STU | R140: Suscripción mensual con pago anual | S140: 4.4 | T140: 1 | U140: 1 | V140: =SUMIF(ResumenCotizacion!$C:$C,E140,ResumenCotizacion!$P:$P) -> 0 | W140: =IF(H140="USD",S140*SolCotizacion!$J$18,S140) -> 16535.86 | X140: =ROUND(W140/(1-VLOOKUP("Total porcentaje:",ResumenCotizacion!$F:$H,3,0)),2) -> 17153.38 | Y140: 0
A141: Catalogo principalACADÉMICO7VC-00137AP | B141: 7VC-00137APACADÉMICO | D141: Catalogo principal | E141: 7VC-00137AP | F141: ACADÉMICO | G141: Catalogo principal | H141: USD | I141: N/A | J141: Microsoft®FrfrntIdentityMgr AllLng License/SoftwareAssurancePack MVL 1License LiveEdition_Additional Product | K141: Unidad | L141: Und | M141: Producto | N141: NA | O141: N/A | P141: N/A | Q141: 7VC-00137AP | R141: Suscripción Anual | S141: 212 | T141: 1 | U141: 1 | V141: =SUMIF(ResumenCotizacion!$C:$C,E141,ResumenCotizacion!$P:$P) -> 0 | W141: =IF(H141="USD",S141*SolCotizacion!$J$18,S141) -> 796727.8 | X141: =ROUND(W141/(1-VLOOKUP("Total porcentaje:",ResumenCotizacion!$F:$H,3,0)),2) -> 826481.12 | Y141: 0
A142: Catalogo principalACADÉMICO965-00002AP | B142: 965-00002APACADÉMICO | D142: Catalogo principal | E142: 965-00002AP | F142: ACADÉMICO | G142: Catalogo principal | H142: USD | I142: N/A | J142: Microsoft®AzureActiveDirectoryBasic ShrdSvr AllLng MonthlySubscriptions-VolumeLicense MVL 1License PerUsr_Additional Product | K142: Unidad | L142: Und | M142: Producto | N142: NA | O142: N/A | P142: N/A | Q142: 965-00002AP | R142: Suscripción mensual con pago anual | S142: 0 | T142: 1 | U142: 1 | V142: =SUMIF(ResumenCotizacion!$C:$C,E142,ResumenCotizacion!$P:$P) -> 0 | W142: =IF(H142="USD",S142*SolCotizacion!$J$18,S142) -> 0 | X142: =ROUND(W142/(1-VLOOKUP("Total porcentaje:",ResumenCotizacion!$F:$H,3,0)),2) -> 0 | Y142: 0
A143: Catalogo principalACADÉMICO965-00002STU | B143: 965-00002STUACADÉMICO | D143: Catalogo principal | E143: 965-00002STU | F143: ACADÉMICO | G143: Catalogo principal | H143: USD | I143: N/A | J143: Microsoft®AzureActiveDirectoryBasic ShrdSvr AllLng MonthlySubscriptions-VolumeLicense MVL 1License PerUsr_Student | K143: Unidad | L143: Und | M143: Producto | N143: NA | O143: N/A | P143: N/A | Q143: 965-00002STU | R143: Suscripción mensual con pago anual | S143: 0 | T143: 1 | U143: 1 | V143: =SUMIF(ResumenCotizacion!$C:$C,E143,ResumenCotizacion!$P:$P) -> 0 | W143: =IF(H143="USD",S143*SolCotizacion!$J$18,S143) -> 0 | X143: =ROUND(W143/(1-VLOOKUP("Total porcentaje:",ResumenCotizacion!$F:$H,3,0)),2) -> 0 | Y143: 0
A144: Catalogo principalACADÉMICO9EA-00039AP | B144: 9EA-00039APACADÉMICO | D144: Catalogo principal | E144: 9EA-00039AP | F144: ACADÉMICO | G144: Catalogo principal | H144: USD | I144: N/A | J144: Microsoft®WindowsServerDCCore AllLng License/SoftwareAssurancePack MVL 2Licenses CoreLic_Additional Product | K144: Unidad | L144: Und | M144: Producto | N144: NA | O144: N/A | P144: N/A | Q144: 9EA-00039AP | R144: Suscripción Anual | S144: 49 | T144: 1 | U144: 1 | V144: =SUMIF(ResumenCotizacion!$C:$C,E144,ResumenCotizacion!$P:$P) -> 0 | W144: =IF(H144="USD",S144*SolCotizacion!$J$18,S144) -> 184149.35 | X144: =ROUND(W144/(1-VLOOKUP("Total porcentaje:",ResumenCotizacion!$F:$H,3,0)),2) -> 191026.3 | Y144: 0
A145: Catalogo principalACADÉMICO9EA-00271AP | B145: 9EA-00271APACADÉMICO | D145: Catalogo principal | E145: 9EA-00271AP | F145: ACADÉMICO | G145: Catalogo principal | H145: USD | I145: N/A | J145: Microsoft®WindowsServerDCCore AllLng License/SoftwareAssurancePack MVL 16Licenses CoreLic_Additional Product | K145: Unidad | L145: Und | M145: Producto | N145: NA | O145: N/A | P145: N/A | Q145: 9EA-00271AP | R145: Suscripción Anual | S145: 389 | T145: 1 | U145: 1 | V145: =SUMIF(ResumenCotizacion!$C:$C,E145,ResumenCotizacion!$P:$P) -> 0 | W145: =IF(H145="USD",S145*SolCotizacion!$J$18,S145) -> 1461920.35 | X145: =ROUND(W145/(1-VLOOKUP("Total porcentaje:",ResumenCotizacion!$F:$H,3,0)),2) -> 1516514.89 | Y145: 0
A146: Catalogo principalACADÉMICO9EA-00274AP | B146: 9EA-00274APACADÉMICO | D146: Catalogo principal | E146: 9EA-00274AP | F146: ACADÉMICO | G146: Catalogo principal | H146: USD | I146: N/A | J146: Microsoft®WindowsServerDCCore AllLng SAStepUp MVL 16Licenses WindowsServerStandardCore CoreLic_Additional Product | K146: Unidad | L146: Und | M146: Producto | N146: NA | O146: N/A | P146: N/A | Q146: 9EA-00274AP | R146: Suscripción Anual | S146: 333 | T146: 1 | U146: 1 | V146: =SUMIF(ResumenCotizacion!$C:$C,E146,ResumenCotizacion!$P:$P) -> 0 | W146: =IF(H146="USD",S146*SolCotizacion!$J$18,S146) -> 1251463.95 | X146: =ROUND(W146/(1-VLOOKUP("Total porcentaje:",ResumenCotizacion!$F:$H,3,0)),2) -> 1298199.12 | Y146: 0
A147: Catalogo principalACADÉMICO9EA-00279AP | B147: 9EA-00279APACADÉMICO | D147: Catalogo principal | E147: 9EA-00279AP | F147: ACADÉMICO | G147: Catalogo principal | H147: USD | I147: N/A | J147: Microsoft®WindowsServerDCCore AllLng SAStepUp MVL 2Licenses WindowsServerStandardCore CoreLic_Additional Product | K147: Unidad | L147: Und | M147: Producto | N147: NA | O147: N/A | P147: N/A | Q147: 9EA-00279AP | R147: Suscripción Anual | S147: 42 | T147: 1 | U147: 1 | V147: =SUMIF(ResumenCotizacion!$C:$C,E147,ResumenCotizacion!$P:$P) -> 0 | W147: =IF(H147="USD",S147*SolCotizacion!$J$18,S147) -> 157842.3 | X147: =ROUND(W147/(1-VLOOKUP("Total porcentaje:",ResumenCotizacion!$F:$H,3,0)),2) -> 163736.83 | Y147: 0
A148: Catalogo principalACADÉMICO9EM-00265AP | B148: 9EM-00265APACADÉMICO | D148: Catalogo principal | E148: 9EM-00265AP | F148: ACADÉMICO | G148: Catalogo principal | H148: USD | I148: N/A | J148: Microsoft®WindowsServerSTDCORE AllLng License/SoftwareAssurancePack MVL 16Licenses CoreLic_Additional Product | K148: Unidad | L148: Und | M148: Producto | N148: NA | O148: N/A | P148: N/A | Q148: 9EM-00265AP | R148: Suscripción Anual | S148: 56 | T148: 1 | U148: 1 | V148: =SUMIF(ResumenCotizacion!$C:$C,E148,ResumenCotizacion!$P:$P) -> 0 | W148: =IF(H148="USD",S148*SolCotizacion!$J$18,S148) -> 210456.4 | X148: =ROUND(W148/(1-VLOOKUP("Total porcentaje:",ResumenCotizacion!$F:$H,3,0)),2) -> 218315.77 | Y148: 0
A149: Catalogo principalACADÉMICO9EM-00562AP | B149: 9EM-00562APACADÉMICO | D149: Catalogo principal | E149: 9EM-00562AP | F149: ACADÉMICO | G149: Catalogo principal | H149: USD | I149: N/A | J149: Microsoft®WindowsServerSTDCORE AllLng License/SoftwareAssurancePack MVL 2Licenses CoreLic_Additional Product | K149: Unidad | L149: Und | M149: Producto | N149: NA | O149: N/A | P149: N/A | Q149: 9EM-00562AP | R149: Suscripción Anual | S149: 8 | T149: 1 | U149: 1 | V149: =SUMIF(ResumenCotizacion!$C:$C,E149,ResumenCotizacion!$P:$P) -> 200 | W149: =IF(H149="USD",S149*SolCotizacion!$J$18,S149) -> 30065.2 | X149: =ROUND(W149/(1-VLOOKUP("Total porcentaje:",ResumenCotizacion!$F:$H,3,0)),2) -> 31187.97 | Y149: 6237594
A150: Catalogo principalACADÉMICO9EN-00193AP | B150: 9EN-00193APACADÉMICO | D150: Catalogo principal | E150: 9EN-00193AP | F150: ACADÉMICO | G150: Catalogo principal | H150: USD | I150: N/A | J150: Microsoft®SysCtrStandardCore AllLng License/SoftwareAssurancePack MVL 16Licenses CoreLic_Additional Product | K150: Unidad | L150: Und | M150: Producto | N150: NA | O150: N/A | P150: N/A | Q150: 9EN-00193AP | R150: Suscripción Anual | S150: 93 | T150: 1 | U150: 1 | V150: =SUMIF(ResumenCotizacion!$C:$C,E150,ResumenCotizacion!$P:$P) -> 0 | W150: =IF(H150="USD",S150*SolCotizacion!$J$18,S150) -> 349507.95 | X150: =ROUND(W150/(1-VLOOKUP("Total porcentaje:",ResumenCotizacion!$F:$H,3,0)),2) -> 362560.11 | Y150: 0
A151: Catalogo principalACADÉMICO9EN-00494AP | B151: 9EN-00494APACADÉMICO | D151: Catalogo principal | E151: 9EN-00494AP | F151: ACADÉMICO | G151: Catalogo principal | H151: USD | I151: N/A | J151: Microsoft®SysCtrStandardCore AllLng License/SoftwareAssurancePack MVL 2Licenses CoreLic_Additional Product | K151: Unidad | L151: Und | M151: Producto | N151: NA | O151: N/A | P151: N/A | Q151: 9EN-00494AP | R151: Suscripción Anual | S151: 12 | T151: 1 | U151: 1 | V151: =SUMIF(ResumenCotizacion!$C:$C,E151,ResumenCotizacion!$P:$P) -> 0 | W151: =IF(H151="USD",S151*SolCotizacion!$J$18,S151) -> 45097.8 | X151: =ROUND(W151/(1-VLOOKUP("Total porcentaje:",ResumenCotizacion!$F:$H,3,0)),2) -> 46781.95 | Y151: 0
A152: Catalogo principalACADÉMICO9EP-00037AP | B152: 9EP-00037APACADÉMICO | D152: Catalogo principal | E152: 9EP-00037AP | F152: ACADÉMICO | G152: Catalogo principal | H152: USD | I152: N/A | J152: Microsoft®SysCtrDataCenterCore AllLng License/SoftwareAssurancePack MVL 2Licenses CoreLic_Additional Product | K152: Unidad | L152: Und | M152: Producto | N152: NA | O152: N/A | P152: N/A | Q152: 9EP-00037AP | R152: Suscripción Anual | S152: 32 | T152: 1 | U152: 1 | V152: =SUMIF(ResumenCotizacion!$C:$C,E152,ResumenCotizacion!$P:$P) -> 0 | W152: =IF(H152="USD",S152*SolCotizacion!$J$18,S152) -> 120260.8 | X152: =ROUND(W152/(1-VLOOKUP("Total porcentaje:",ResumenCotizacion!$F:$H,3,0)),2) -> 124751.87 | Y152: 0
A153: Catalogo principalACADÉMICO9EP-00201AP | B153: 9EP-00201APACADÉMICO | D153: Catalogo principal | E153: 9EP-00201AP | F153: ACADÉMICO | G153: Catalogo principal | H153: USD | I153: N/A | J153: Microsoft®SysCtrDataCenterCore AllLng License/SoftwareAssurancePack MVL 16Licenses CoreLic_Additional Product | K153: Unidad | L153: Und | M153: Producto | N153: NA | O153: N/A | P153: N/A | Q153: 9EP-00201AP | R153: Suscripción Anual | S153: 253 | T153: 1 | U153: 1 | V153: =SUMIF(ResumenCotizacion!$C:$C,E153,ResumenCotizacion!$P:$P) -> 0 | W153: =IF(H153="USD",S153*SolCotizacion!$J$18,S153) -> 950811.95 | X153: =ROUND(W153/(1-VLOOKUP("Total porcentaje:",ResumenCotizacion!$F:$H,3,0)),2) -> 986319.45 | Y153: 0
A154: Catalogo principalACADÉMICO9EP-00204AP | B154: 9EP-00204APACADÉMICO | D154: Catalogo principal | E154: 9EP-00204AP | F154: ACADÉMICO | G154: Catalogo principal | H154: USD | I154: N/A | J154: Microsoft®SysCtrDataCenterCore AllLng SAStepUp MVL 16Licenses SystemCenterServerStandardCore CoreLic_Additional Product | K154: Unidad | L154: Und | M154: Producto | N154: NA | O154: N/A | P154: N/A | Q154: 9EP-00204AP | R154: Suscripción Anual | S154: 161 | T154: 1 | U154: 1 | V154: =SUMIF(ResumenCotizacion!$C:$C,E154,ResumenCotizacion!$P:$P) -> 0 | W154: =IF(H154="USD",S154*SolCotizacion!$J$18,S154) -> 605062.15 | X154: =ROUND(W154/(1-VLOOKUP("Total porcentaje:",ResumenCotizacion!$F:$H,3,0)),2) -> 627657.83 | Y154: 0
A155: Catalogo principalACADÉMICO9EP-00209AP | B155: 9EP-00209APACADÉMICO | D155: Catalogo principal | E155: 9EP-00209AP | F155: ACADÉMICO | G155: Catalogo principal | H155: USD | I155: N/A | J155: Microsoft®SysCtrDataCenterCore AllLng SAStepUp MVL 2Licenses SystemCenterServerStandardCore CoreLic_Additional Product | K155: Unidad | L155: Und | M155: Producto | N155: NA | O155: N/A | P155: N/A | Q155: 9EP-00209AP | R155: Suscripción Anual | S155: 21 | T155: 1 | U155: 1 | V155: =SUMIF(ResumenCotizacion!$C:$C,E155,ResumenCotizacion!$P:$P) -> 0 | W155: =IF(H155="USD",S155*SolCotizacion!$J$18,S155) -> 78921.15 | X155: =ROUND(W155/(1-VLOOKUP("Total porcentaje:",ResumenCotizacion!$F:$H,3,0)),2) -> 81868.41 | Y155: 0
A156: Catalogo principalACADÉMICO9GA-00006AP | B156: 9GA-00006APACADÉMICO | D156: Catalogo principal | E156: 9GA-00006AP | F156: ACADÉMICO | G156: Catalogo principal | H156: USD | I156: N/A | J156: Microsoft®CoreInfraSvrSteStdCore AllLng License/SoftwareAssurancePack MVL 2Licenses CoreLic_Additional Product | K156: Unidad | L156: Und | M156: Producto | N156: NA | O156: N/A | P156: N/A | Q156: 9GA-00006AP | R156: Suscripción Anual | S156: 18 | T156: 1 | U156: 1 | V156: =SUMIF(ResumenCotizacion!$C:$C,E156,ResumenCotizacion!$P:$P) -> 0 | W156: =IF(H156="USD",S156*SolCotizacion!$J$18,S156) -> 67646.7 | X156: =ROUND(W156/(1-VLOOKUP("Total porcentaje:",ResumenCotizacion!$F:$H,3,0)),2) -> 70172.93 | Y156: 0
A157: Catalogo principalACADÉMICO9GA-00308AP | B157: 9GA-00308APACADÉMICO | D157: Catalogo principal | E157: 9GA-00308AP | F157: ACADÉMICO | G157: Catalogo principal | H157: USD | I157: N/A | J157: Microsoft®CoreInfraSvrSteStdCore AllLng License/SoftwareAssurancePack MVL 16Licenses CoreLic_Additional Product | K157: Unidad | L157: Und | M157: Producto | N157: NA | O157: N/A | P157: N/A | Q157: 9GA-00308AP | R157: Suscripción Anual | S157: 142 | T157: 1 | U157: 1 | V157: =SUMIF(ResumenCotizacion!$C:$C,E157,ResumenCotizacion!$P:$P) -> 0 | W157: =IF(H157="USD",S157*SolCotizacion!$J$18,S157) -> 533657.3 | X157: =ROUND(W157/(1-VLOOKUP("Total porcentaje:",ResumenCotizacion!$F:$H,3,0)),2) -> 553586.41 | Y157: 0
A158: Catalogo principalACADÉMICO9GS-00128AP | B158: 9GS-00128APACADÉMICO | D158: Catalogo principal | E158: 9GS-00128AP | F158: ACADÉMICO | G158: Catalogo principal | H158: USD | I158: N/A | J158: Microsoft®CoreInfrastructureSvrSteDCCore AllLng License/SoftwareAssurancePack MVL 16Licenses CoreLic_Additional Product | K158: Unidad | L158: Und | M158: Producto | N158: NA | O158: N/A | P158: N/A | Q158: 9GS-00128AP | R158: Suscripción Anual | S158: 610 | T158: 1 | U158: 1 | V158: =SUMIF(ResumenCotizacion!$C:$C,E158,ResumenCotizacion!$P:$P) -> 0 | W158: =IF(H158="USD",S158*SolCotizacion!$J$18,S158) -> 2292471.5 | X158: =ROUND(W158/(1-VLOOKUP("Total porcentaje:",ResumenCotizacion!$F:$H,3,0)),2) -> 2378082.47 | Y158: 0
A159: Catalogo principalACADÉMICO9GS-00131AP | B159: 9GS-00131APACADÉMICO | D159: Catalogo principal | E159: 9GS-00131AP | F159: ACADÉMICO | G159: Catalogo principal | H159: USD | I159: N/A | J159: Microsoft®CoreInfrastructureSvrSteDCCore AllLng SAStepUp MVL 16Licenses CoreInfrastructureServerStdCore CoreLic_Additional Product | K159: Unidad | L159: Und | M159: Producto | N159: NA | O159: N/A | P159: N/A | Q159: 9GS-00131AP | R159: Suscripción Anual | S159: 468 | T159: 1 | U159: 1 | V159: =SUMIF(ResumenCotizacion!$C:$C,E159,ResumenCotizacion!$P:$P) -> 0 | W159: =IF(H159="USD",S159*SolCotizacion!$J$18,S159) -> 1758814.2 | X159: =ROUND(W159/(1-VLOOKUP("Total porcentaje:",ResumenCotizacion!$F:$H,3,0)),2) -> 1824496.06 | Y159: 0
A160: Catalogo principalACADÉMICO9GS-00136AP | B160: 9GS-00136APACADÉMICO | D160: Catalogo principal | E160: 9GS-00136AP | F160: ACADÉMICO | G160: Catalogo principal | H160: USD | I160: N/A | J160: Microsoft®CoreInfrastructureSvrSteDCCore AllLng SAStepUp MVL 2Licenses CoreInfrastructureServerStdCore CoreLic_Additional Product | K160: Unidad | L160: Und | M160: Producto | N160: NA | O160: N/A | P160: N/A | Q160: 9GS-00136AP | R160: Suscripción Anual | S160: 59 | T160: 1 | U160: 1 | V160: =SUMIF(ResumenCotizacion!$C:$C,E160,ResumenCotizacion!$P:$P) -> 0 | W160: =IF(H160="USD",S160*SolCotizacion!$J$18,S160) -> 221730.85 | X160: =ROUND(W160/(1-VLOOKUP("Total porcentaje:",ResumenCotizacion!$F:$H,3,0)),2) -> 230011.26 | Y160: 0
A161: Catalogo principalACADÉMICO9GS-00495AP | B161: 9GS-00495APACADÉMICO | D161: Catalogo principal | E161: 9GS-00495AP | F161: ACADÉMICO | G161: Catalogo principal | H161: USD | I161: N/A | J161: Microsoft®CoreInfrastructureSvrSteDCCore AllLng License/SoftwareAssurancePack MVL 2Licenses CoreLic_Additional Product | K161: Unidad | L161: Und | M161: Producto | N161: NA | O161: N/A | P161: N/A | Q161: 9GS-00495AP | R161: Suscripción Anual | S161: 77 | T161: 1 | U161: 1 | V161: =SUMIF(ResumenCotizacion!$C:$C,E161,ResumenCotizacion!$P:$P) -> 0 | W161: =IF(H161="USD",S161*SolCotizacion!$J$18,S161) -> 289377.55 | X161: =ROUND(W161/(1-VLOOKUP("Total porcentaje:",ResumenCotizacion!$F:$H,3,0)),2) -> 300184.18 | Y161: 0
A162: Catalogo principalACADÉMICO9JS-00001AP | B162: 9JS-00001APACADÉMICO | D162: Catalogo principal | E162: 9JS-00001AP | F162: ACADÉMICO | G162: Catalogo principal | H162: USD | I162: N/A | J162: Microsoft®O365ExtraFileStorageforEDU ShrdSvr AllLng MonthlySubscriptions-VolumeLicense MVL 1License PerUsr_Additional Product | K162: Unidad | L162: Und | M162: Producto | N162: NA | O162: N/A | P162: N/A | Q162: 9JS-00001AP | R162: Suscripción mensual con pago anual | S162: 0.22 | T162: 1 | U162: 1 | V162: =SUMIF(ResumenCotizacion!$C:$C,E162,ResumenCotizacion!$P:$P) -> 0 | W162: =IF(H162="USD",S162*SolCotizacion!$J$18,S162) -> 826.793 | X162: =ROUND(W162/(1-VLOOKUP("Total porcentaje:",ResumenCotizacion!$F:$H,3,0)),2) -> 857.67 | Y162: 0
A163: Catalogo principalACADÉMICO9KS-00001AP | B163: 9KS-00001APACADÉMICO | D163: Catalogo principal | E163: 9KS-00001AP | F163: ACADÉMICO | G163: Catalogo principal | H163: USD | I163: N/A | J163: Microsoft®ExchOnlArchExchServerforEDU ShrdSvr AllLng MonthlySubscriptions-VolumeLicense MVL 1License PerUsr_Additional Product | K163: Unidad | L163: Und | M163: Producto | N163: NA | O163: N/A | P163: N/A | Q163: 9KS-00001AP | R163: Suscripción mensual con pago anual | S163: 1 | T163: 1 | U163: 1 | V163: =SUMIF(ResumenCotizacion!$C:$C,E163,ResumenCotizacion!$P:$P) -> 0 | W163: =IF(H163="USD",S163*SolCotizacion!$J$18,S163) -> 3758.15 | X163: =ROUND(W163/(1-VLOOKUP("Total porcentaje:",ResumenCotizacion!$F:$H,3,0)),2) -> 3898.5 | Y163: 0
A164: Catalogo principalACADÉMICO9KS-00001STU | B164: 9KS-00001STUACADÉMICO | D164: Catalogo principal | E164: 9KS-00001STU | F164: ACADÉMICO | G164: Catalogo principal | H164: USD | I164: N/A | J164: Microsoft®ExchOnlArchExchServerforEDU ShrdSvr AllLng MonthlySubscriptions-VolumeLicense MVL 1License PerUsr_Student | K164: Unidad | L164: Und | M164: Producto | N164: NA | O164: N/A | P164: N/A | Q164: 9KS-00001STU | R164: Suscripción mensual con pago anual | S164: 1 | T164: 1 | U164: 1 | V164: =SUMIF(ResumenCotizacion!$C:$C,E164,ResumenCotizacion!$P:$P) -> 0 | W164: =IF(H164="USD",S164*SolCotizacion!$J$18,S164) -> 3758.15 | X164: =ROUND(W164/(1-VLOOKUP("Total porcentaje:",ResumenCotizacion!$F:$H,3,0)),2) -> 3898.5 | Y164: 0
A165: Catalogo principalACADÉMICO9RO-00043AP | B165: 9RO-00043APACADÉMICO | D165: Catalogo principal | E165: 9RO-00043AP | F165: ACADÉMICO | G165: Catalogo principal | H165: USD | I165: N/A | J165: Microsoft®SL1Programmatic-Portfolio AllLng ProfessionalEnterpriseService MCS 1License ColombiaOnly AnnualSupportContract DAS_Additional Product | K165: Unidad | L165: Und | M165: Producto | N165: NA | O165: N/A | P165: N/A | Q165: 9RO-00043AP | R165: Suscripción Anual | S165: 432801 | T165: 1 | U165: 1 | V165: =SUMIF(ResumenCotizacion!$C:$C,E165,ResumenCotizacion!$P:$P) -> 0 | W165: =IF(H165="USD",S165*SolCotizacion!$J$18,S165) -> 1626531078 | X165: =ROUND(W165/(1-VLOOKUP("Total porcentaje:",ResumenCotizacion!$F:$H,3,0)),2) -> 1687272903 | Y165: 0
A166: Catalogo principalACADÉMICO9RS-00186AP | B166: 9RS-00186APACADÉMICO | D166: Catalogo principal | E166: 9RS-00186AP | F166: ACADÉMICO | G166: Catalogo principal | H166: USD | I166: N/A | J166: Microsoft®SL1Programmatic-Capacity AllLng ProfessionalEnterpriseService MCS 1License ColombiaOnly AnnualSupportContract DASCapacity_Additional Product | K166: Unidad | L166: Und | M166: Producto | N166: NA | O166: N/A | P166: N/A | Q166: 9RS-00186AP | R166: Suscripción Anual | S166: 55460 | T166: 1 | U166: 1 | V166: =SUMIF(ResumenCotizacion!$C:$C,E166,ResumenCotizacion!$P:$P) -> 0 | W166: =IF(H166="USD",S166*SolCotizacion!$J$18,S166) -> 208426999 | X166: =ROUND(W166/(1-VLOOKUP("Total porcentaje:",ResumenCotizacion!$F:$H,3,0)),2) -> 216210579.9 | Y166: 0
A167: Catalogo principalACADÉMICO9ST-00091AP | B167: 9ST-00091APACADÉMICO | D167: Catalogo principal | E167: 9ST-00091AP | F167: ACADÉMICO | G167: Catalogo principal | H167: USD | I167: N/A | J167: Microsoft®OfficeAuditandControlManagement AllLng License/SoftwareAssurancePack MVL 1License_Additional Product | K167: Unidad | L167: Und | M167: Producto | N167: NA | O167: N/A | P167: N/A | Q167: 9ST-00091AP | R167: Suscripción Anual | S167: 285 | T167: 1 | U167: 1 | V167: =SUMIF(ResumenCotizacion!$C:$C,E167,ResumenCotizacion!$P:$P) -> 0 | W167: =IF(H167="USD",S167*SolCotizacion!$J$18,S167) -> 1071072.75 | X167: =ROUND(W167/(1-VLOOKUP("Total porcentaje:",ResumenCotizacion!$F:$H,3,0)),2) -> 1111071.32 | Y167: 0
A168: Catalogo principalACADÉMICO9TH-00058AP | B168: 9TH-00058APACADÉMICO | D168: Catalogo principal | E168: 9TH-00058AP | F168: ACADÉMICO | G168: Catalogo principal | H168: USD | I168: N/A | J168: Microsoft®SL1ProgrammaticConnect AllLng ProfessionalEnterpriseService MCS 1License ColombiaOnly AnnualSupportContract DAS_Additional Product | K168: Unidad | L168: Und | M168: Producto | N168: NA | O168: N/A | P168: N/A | Q168: 9TH-00058AP | R168: Suscripción Anual | S168: 108131 | T168: 1 | U168: 1 | V168: =SUMIF(ResumenCotizacion!$C:$C,E168,ResumenCotizacion!$P:$P) -> 0 | W168: =IF(H168="USD",S168*SolCotizacion!$J$18,S168) -> 406372517.7 | X168: =ROUND(W168/(1-VLOOKUP("Total porcentaje:",ResumenCotizacion!$F:$H,3,0)),2) -> 421548254.8 | Y168: 0
A169: Catalogo principalACADÉMICO9TX-00635FAC | B169: 9TX-00635FACACADÉMICO | D169: Catalogo principal | E169: 9TX-00635FAC | F169: ACADÉMICO | G169: Catalogo principal | H169: USD | I169: N/A | J169: Microsoft®SysCtrOpsMgrCltMgmtLic AllLng License/SoftwareAssurancePack MVL 1License PerOSE_Faculty | K169: Unidad | L169: Und | M169: Producto | N169: NA | O169: N/A | P169: N/A | Q169: 9TX-00635FAC | R169: Suscripción Anual | S169: 1.25 | T169: 1 | U169: 1 | V169: =SUMIF(ResumenCotizacion!$C:$C,E169,ResumenCotizacion!$P:$P) -> 0 | W169: =IF(H169="USD",S169*SolCotizacion!$J$18,S169) -> 4697.6875 | X169: =ROUND(W169/(1-VLOOKUP("Total porcentaje:",ResumenCotizacion!$F:$H,3,0)),2) -> 4873.12 | Y169: 0
A170: Catalogo principalACADÉMICO9TX-00635STU | B170: 9TX-00635STUACADÉMICO | D170: Catalogo principal | E170: 9TX-00635STU | F170: ACADÉMICO | G170: Catalogo principal | H170: USD | I170: N/A | J170: Microsoft®SysCtrOpsMgrCltMgmtLic AllLng License/SoftwareAssurancePack MVL 1License PerOSE_Student | K170: Unidad | L170: Und | M170: Producto | N170: NA | O170: N/A | P170: N/A | Q170: 9TX-00635STU | R170: Suscripción Anual | S170: 0.94 | T170: 1 | U170: 1 | V170: =SUMIF(ResumenCotizacion!$C:$C,E170,ResumenCotizacion!$P:$P) -> 0 | W170: =IF(H170="USD",S170*SolCotizacion!$J$18,S170) -> 3532.661 | X170: =ROUND(W170/(1-VLOOKUP("Total porcentaje:",ResumenCotizacion!$F:$H,3,0)),2) -> 3664.59 | Y170: 0
A171: Catalogo principalACADÉMICOAAA-43267AP | B171: AAA-43267APACADÉMICO | D171: Catalogo principal | E171: AAA-43267AP | F171: ACADÉMICO | G171: Catalogo principal | H171: USD | I171: N/A | J171: Microsoft® WinVDAE3perUSRStpFrmWinVDA Alng MonthlySub Addon_Additional Product | K171: Unidad | L171: Und | M171: Producto | N171: NA | O171: N/A | P171: N/A | Q171: AAA-43267AP | R171: Suscripción mensual con pago anual | S171: 0.64 | T171: 1 | U171: 1 | V171: =SUMIF(ResumenCotizacion!$C:$C,E171,ResumenCotizacion!$P:$P) -> 0 | W171: =IF(H171="USD",S171*SolCotizacion!$J$18,S171) -> 2405.216 | X171: =ROUND(W171/(1-VLOOKUP("Total porcentaje:",ResumenCotizacion!$F:$H,3,0)),2) -> 2495.04 | Y171: 0
A172: Catalogo principalACADÉMICOAAA-72987FACA | B172: AAA-72987FACAACADÉMICO | D172: Catalogo principal | E172: AAA-72987FACA | F172: ACADÉMICO | G172: Catalogo principal | H172: USD | I172: N/A | J172: Microsoft® WinEDUA3 ALNG MonthlySub MVL Per User_FacultyLevelA | K172: Unidad | L172: Und | M172: Producto | N172: NA | O172: N/A | P172: N/A | Q172: AAA-72987FACA | R172: Suscripción mensual con pago anual | S172: 2.21 | T172: 1 | U172: 1 | V172: =SUMIF(ResumenCotizacion!$C:$C,E172,ResumenCotizacion!$P:$P) -> 0 | W172: =IF(H172="USD",S172*SolCotizacion!$J$18,S172) -> 8305.5115 | X172: =ROUND(W172/(1-VLOOKUP("Total porcentaje:",ResumenCotizacion!$F:$H,3,0)),2) -> 8615.68 | Y172: 0
A173: Catalogo principalACADÉMICOAAA-72987FACB | B173: AAA-72987FACBACADÉMICO | D173: Catalogo principal | E173: AAA-72987FACB | F173: ACADÉMICO | G173: Catalogo principal | H173: USD | I173: N/A | J173: Microsoft® WinEDUA3 ALNG MonthlySub MVL Per User_FacultyLevelB | K173: Unidad | L173: Und | M173: Producto | N173: NA | O173: N/A | P173: N/A | Q173: AAA-72987FACB | R173: Suscripción mensual con pago anual | S173: 2.11 | T173: 1 | U173: 1 | V173: =SUMIF(ResumenCotizacion!$C:$C,E173,ResumenCotizacion!$P:$P) -> 0 | W173: =IF(H173="USD",S173*SolCotizacion!$J$18,S173) -> 7929.6965 | X173: =ROUND(W173/(1-VLOOKUP("Total porcentaje:",ResumenCotizacion!$F:$H,3,0)),2) -> 8225.83 | Y173: 0
A174: Catalogo principalACADÉMICOAAA-72987FACC | B174: AAA-72987FACCACADÉMICO | D174: Catalogo principal | E174: AAA-72987FACC | F174: ACADÉMICO | G174: Catalogo principal | H174: USD | I174: N/A | J174: Microsoft® WinEDUA3 ALNG MonthlySub MVL Per User_FacultyLevelC | K174: Unidad | L174: Und | M174: Producto | N174: NA | O174: N/A | P174: N/A | Q174: AAA-72987FACC | R174: Suscripción mensual con pago anual | S174: 2 | T174: 1 | U174: 1 | V174: =SUMIF(ResumenCotizacion!$C:$C,E174,ResumenCotizacion!$P:$P) -> 0 | W174: =IF(H174="USD",S174*SolCotizacion!$J$18,S174) -> 7516.3 | X174: =ROUND(W174/(1-VLOOKUP("Total porcentaje:",ResumenCotizacion!$F:$H,3,0)),2) -> 7796.99 | Y174: 0
A175: Catalogo principalACADÉMICOAAA-72987FACD | B175: AAA-72987FACDACADÉMICO | D175: Catalogo principal | E175: AAA-72987FACD | F175: ACADÉMICO | G175: Catalogo principal | H175: USD | I175: N/A | J175: Microsoft® WinEDUA3 ALNG MonthlySub MVL Per User_FacultyLevelD | K175: Unidad | L175: Und | M175: Producto | N175: NA | O175: N/A | P175: N/A | Q175: AAA-72987FACD | R175: Suscripción mensual con pago anual | S175: 1.91 | T175: 1 | U175: 1 | V175: =SUMIF(ResumenCotizacion!$C:$C,E175,ResumenCotizacion!$P:$P) -> 0 | W175: =IF(H175="USD",S175*SolCotizacion!$J$18,S175) -> 7178.0665 | X175: =ROUND(W175/(1-VLOOKUP("Total porcentaje:",ResumenCotizacion!$F:$H,3,0)),2) -> 7446.13 | Y175: 0
A176: Catalogo principalACADÉMICOAAA-72987STUA | B176: AAA-72987STUAACADÉMICO | D176: Catalogo principal | E176: AAA-72987STUA | F176: ACADÉMICO | G176: Catalogo principal | H176: USD | I176: N/A | J176: Microsoft® WinEDUA3 ALNG MonthlySub MVL Per User_StudentLevelA | K176: Unidad | L176: Und | M176: Producto | N176: NA | O176: N/A | P176: N/A | Q176: AAA-72987STUA | R176: Suscripción mensual con pago anual | S176: 1.62 | T176: 1 | U176: 1 | V176: =SUMIF(ResumenCotizacion!$C:$C,E176,ResumenCotizacion!$P:$P) -> 0 | W176: =IF(H176="USD",S176*SolCotizacion!$J$18,S176) -> 6088.203 | X176: =ROUND(W176/(1-VLOOKUP("Total porcentaje:",ResumenCotizacion!$F:$H,3,0)),2) -> 6315.56 | Y176: 0
A177: Catalogo principalACADÉMICOAAA-72987STUB | B177: AAA-72987STUBACADÉMICO | D177: Catalogo principal | E177: AAA-72987STUB | F177: ACADÉMICO | G177: Catalogo principal | H177: USD | I177: N/A | J177: Microsoft® WinEDUA3 ALNG MonthlySub MVL Per User_StudentLevelB | K177: Unidad | L177: Und | M177: Producto | N177: NA | O177: N/A | P177: N/A | Q177: AAA-72987STUB | R177: Suscripción mensual con pago anual | S177: 1.55 | T177: 1 | U177: 1 | V177: =SUMIF(ResumenCotizacion!$C:$C,E177,ResumenCotizacion!$P:$P) -> 0 | W177: =IF(H177="USD",S177*SolCotizacion!$J$18,S177) -> 5825.1325 | X177: =ROUND(W177/(1-VLOOKUP("Total porcentaje:",ResumenCotizacion!$F:$H,3,0)),2) -> 6042.67 | Y177: 0
A178: Catalogo principalACADÉMICOAAA-72987STUC | B178: AAA-72987STUCACADÉMICO | D178: Catalogo principal | E178: AAA-72987STUC | F178: ACADÉMICO | G178: Catalogo principal | H178: USD | I178: N/A | J178: Microsoft® WinEDUA3 ALNG MonthlySub MVL Per User_StudentLevelC | K178: Unidad | L178: Und | M178: Producto | N178: NA | O178: N/A | P178: N/A | Q178: AAA-72987STUC | R178: Suscripción mensual con pago anual | S178: 1.47 | T178: 1 | U178: 1 | V178: =SUMIF(ResumenCotizacion!$C:$C,E178,ResumenCotizacion!$P:$P) -> 0 | W178: =IF(H178="USD",S178*SolCotizacion!$J$18,S178) -> 5524.4805 | X178: =ROUND(W178/(1-VLOOKUP("Total porcentaje:",ResumenCotizacion!$F:$H,3,0)),2) -> 5730.79 | Y178: 0
A179: Catalogo principalACADÉMICOAAA-72987STUD | B179: AAA-72987STUDACADÉMICO | D179: Catalogo principal | E179: AAA-72987STUD | F179: ACADÉMICO | G179: Catalogo principal | H179: USD | I179: N/A | J179: Microsoft® WinEDUA3 ALNG MonthlySub MVL Per User_StudentLevelD | K179: Unidad | L179: Und | M179: Producto | N179: NA | O179: N/A | P179: N/A | Q179: AAA-72987STUD | R179: Suscripción mensual con pago anual | S179: 1.41 | T179: 1 | U179: 1 | V179: =SUMIF(ResumenCotizacion!$C:$C,E179,ResumenCotizacion!$P:$P) -> 0 | W179: =IF(H179="USD",S179*SolCotizacion!$J$18,S179) -> 5298.9915 | X179: =ROUND(W179/(1-VLOOKUP("Total porcentaje:",ResumenCotizacion!$F:$H,3,0)),2) -> 5496.88 | Y179: 0
A180: Catalogo principalACADÉMICOAAA-72988FACA | B180: AAA-72988FACAACADÉMICO | D180: Catalogo principal | E180: AAA-72988FACA | F180: ACADÉMICO | G180: Catalogo principal | H180: USD | I180: N/A | J180: Microsoft® WinEDUA5 ALNG MonthlySub MVL Per User_FacultyLevelA | K180: Unidad | L180: Und | M180: Producto | N180: NA | O180: N/A | P180: N/A | Q180: AAA-72988FACA | R180: Suscripción mensual con pago anual | S180: 4.69 | T180: 1 | U180: 1 | V180: =SUMIF(ResumenCotizacion!$C:$C,E180,ResumenCotizacion!$P:$P) -> 0 | W180: =IF(H180="USD",S180*SolCotizacion!$J$18,S180) -> 17625.7235 | X180: =ROUND(W180/(1-VLOOKUP("Total porcentaje:",ResumenCotizacion!$F:$H,3,0)),2) -> 18283.95 | Y180: 0
A181: Catalogo principalACADÉMICOAAA-72988FACB | B181: AAA-72988FACBACADÉMICO | D181: Catalogo principal | E181: AAA-72988FACB | F181: ACADÉMICO | G181: Catalogo principal | H181: USD | I181: N/A | J181: Microsoft® WinEDUA5 ALNG MonthlySub MVL Per User_FacultyLevelB | K181: Unidad | L181: Und | M181: Producto | N181: NA | O181: N/A | P181: N/A | Q181: AAA-72988FACB | R181: Suscripción mensual con pago anual | S181: 4.6 | T181: 1 | U181: 1 | V181: =SUMIF(ResumenCotizacion!$C:$C,E181,ResumenCotizacion!$P:$P) -> 0 | W181: =IF(H181="USD",S181*SolCotizacion!$J$18,S181) -> 17287.49 | X181: =ROUND(W181/(1-VLOOKUP("Total porcentaje:",ResumenCotizacion!$F:$H,3,0)),2) -> 17933.08 | Y181: 0
A182: Catalogo principalACADÉMICOAAA-72988FACC | B182: AAA-72988FACCACADÉMICO | D182: Catalogo principal | E182: AAA-72988FACC | F182: ACADÉMICO | G182: Catalogo principal | H182: USD | I182: N/A | J182: Microsoft® WinEDUA5 ALNG MonthlySub MVL Per User_FacultyLevelC | K182: Unidad | L182: Und | M182: Producto | N182: NA | O182: N/A | P182: N/A | Q182: AAA-72988FACC | R182: Suscripción mensual con pago anual | S182: 4.49 | T182: 1 | U182: 1 | V182: =SUMIF(ResumenCotizacion!$C:$C,E182,ResumenCotizacion!$P:$P) -> 0 | W182: =IF(H182="USD",S182*SolCotizacion!$J$18,S182) -> 16874.0935 | X182: =ROUND(W182/(1-VLOOKUP("Total porcentaje:",ResumenCotizacion!$F:$H,3,0)),2) -> 17504.25 | Y182: 0
A183: Catalogo principalACADÉMICOAAA-72988FACD | B183: AAA-72988FACDACADÉMICO | D183: Catalogo principal | E183: AAA-72988FACD | F183: ACADÉMICO | G183: Catalogo principal | H183: USD | I183: N/A | J183: Microsoft® WinEDUA5 ALNG MonthlySub MVL Per User_FacultyLevelD | K183: Unidad | L183: Und | M183: Producto | N183: NA | O183: N/A | P183: N/A | Q183: AAA-72988FACD | R183: Suscripción mensual con pago anual | S183: 4.41 | T183: 1 | U183: 1 | V183: =SUMIF(ResumenCotizacion!$C:$C,E183,ResumenCotizacion!$P:$P) -> 0 | W183: =IF(H183="USD",S183*SolCotizacion!$J$18,S183) -> 16573.4415 | X183: =ROUND(W183/(1-VLOOKUP("Total porcentaje:",ResumenCotizacion!$F:$H,3,0)),2) -> 17192.37 | Y183: 0
A184: Catalogo principalACADÉMICOAAA-72988STUA | B184: AAA-72988STUAACADÉMICO | D184: Catalogo principal | E184: AAA-72988STUA | F184: ACADÉMICO | G184: Catalogo principal | H184: USD | I184: N/A | J184: Microsoft® WinEDUA5 ALNG MonthlySub MVL Per User_StudentLevelA | K184: Unidad | L184: Und | M184: Producto | N184: NA | O184: N/A | P184: N/A | Q184: AAA-72988STUA | R184: Suscripción mensual con pago anual | S184: 4.68 | T184: 1 | U184: 1 | V184: =SUMIF(ResumenCotizacion!$C:$C,E184,ResumenCotizacion!$P:$P) -> 0 | W184: =IF(H184="USD",S184*SolCotizacion!$J$18,S184) -> 17588.142 | X184: =ROUND(W184/(1-VLOOKUP("Total porcentaje:",ResumenCotizacion!$F:$H,3,0)),2) -> 18244.96 | Y184: 0
A185: Catalogo principalACADÉMICOAAA-72988STUB | B185: AAA-72988STUBACADÉMICO | D185: Catalogo principal | E185: AAA-72988STUB | F185: ACADÉMICO | G185: Catalogo principal | H185: USD | I185: N/A | J185: Microsoft® WinEDUA5 ALNG MonthlySub MVL Per User_StudentLevelB | K185: Unidad | L185: Und | M185: Producto | N185: NA | O185: N/A | P185: N/A | Q185: AAA-72988STUB | R185: Suscripción mensual con pago anual | S185: 4.61 | T185: 1 | U185: 1 | V185: =SUMIF(ResumenCotizacion!$C:$C,E185,ResumenCotizacion!$P:$P) -> 0 | W185: =IF(H185="USD",S185*SolCotizacion!$J$18,S185) -> 17325.0715 | X185: =ROUND(W185/(1-VLOOKUP("Total porcentaje:",ResumenCotizacion!$F:$H,3,0)),2) -> 17972.07 | Y185: 0
A186: Catalogo principalACADÉMICOAAA-72988STUC | B186: AAA-72988STUCACADÉMICO | D186: Catalogo principal | E186: AAA-72988STUC | F186: ACADÉMICO | G186: Catalogo principal | H186: USD | I186: N/A | J186: Microsoft® WinEDUA5 ALNG MonthlySub MVL Per User_StudentLevelC | K186: Unidad | L186: Und | M186: Producto | N186: NA | O186: N/A | P186: N/A | Q186: AAA-72988STUC | R186: Suscripción mensual con pago anual | S186: 4.49 | T186: 1 | U186: 1 | V186: =SUMIF(ResumenCotizacion!$C:$C,E186,ResumenCotizacion!$P:$P) -> 0 | W186: =IF(H186="USD",S186*SolCotizacion!$J$18,S186) -> 16874.0935 | X186: =ROUND(W186/(1-VLOOKUP("Total porcentaje:",ResumenCotizacion!$F:$H,3,0)),2) -> 17504.25 | Y186: 0
A187: Catalogo principalACADÉMICOAAA-72988STUD | B187: AAA-72988STUDACADÉMICO | D187: Catalogo principal | E187: AAA-72988STUD | F187: ACADÉMICO | G187: Catalogo principal | H187: USD | I187: N/A | J187: Microsoft® WinEDUA5 ALNG MonthlySub MVL Per User_StudentLevelD | K187: Unidad | L187: Und | M187: Producto | N187: NA | O187: N/A | P187: N/A | Q187: AAA-72988STUD | R187: Suscripción mensual con pago anual | S187: 4.41 | T187: 1 | U187: 1 | V187: =SUMIF(ResumenCotizacion!$C:$C,E187,ResumenCotizacion!$P:$P) -> 0 | W187: =IF(H187="USD",S187*SolCotizacion!$J$18,S187) -> 16573.4415 | X187: =ROUND(W187/(1-VLOOKUP("Total porcentaje:",ResumenCotizacion!$F:$H,3,0)),2) -> 17192.37 | Y187: 0
A188: Catalogo principalACADÉMICOAAA-72989FACA | B188: AAA-72989FACAACADÉMICO | D188: Catalogo principal | E188: AAA-72989FACA | F188: ACADÉMICO | G188: Catalogo principal | H188: USD | I188: N/A | J188: Microsoft® WinEDUA5 Step-up From WinEduE3 ALNG MonthlySub MVL Per User_FacultyLevelA | K188: Unidad | L188: Und | M188: Producto | N188: NA | O188: N/A | P188: N/A | Q188: AAA-72989FACA | R188: Suscripción mensual con pago anual | S188: 2.65 | T188: 1 | U188: 1 | V188: =SUMIF(ResumenCotizacion!$C:$C,E188,ResumenCotizacion!$P:$P) -> 0 | W188: =IF(H188="USD",S188*SolCotizacion!$J$18,S188) -> 9959.0975 | X188: =ROUND(W188/(1-VLOOKUP("Total porcentaje:",ResumenCotizacion!$F:$H,3,0)),2) -> 10331.01 | Y188: 0
A189: Catalogo principalACADÉMICOAAA-72989FACB | B189: AAA-72989FACBACADÉMICO | D189: Catalogo principal | E189: AAA-72989FACB | F189: ACADÉMICO | G189: Catalogo principal | H189: USD | I189: N/A | J189: Microsoft® WinEDUA5 Step-up From WinEduE3 ALNG MonthlySub MVL Per User_FacultyLevelB | K189: Unidad | L189: Und | M189: Producto | N189: NA | O189: N/A | P189: N/A | Q189: AAA-72989FACB | R189: Suscripción mensual con pago anual | S189: 2.65 | T189: 1 | U189: 1 | V189: =SUMIF(ResumenCotizacion!$C:$C,E189,ResumenCotizacion!$P:$P) -> 0 | W189: =IF(H189="USD",S189*SolCotizacion!$J$18,S189) -> 9959.0975 | X189: =ROUND(W189/(1-VLOOKUP("Total porcentaje:",ResumenCotizacion!$F:$H,3,0)),2) -> 10331.01 | Y189: 0
A190: Catalogo principalACADÉMICOAAA-72989FACC | B190: AAA-72989FACCACADÉMICO | D190: Catalogo principal | E190: AAA-72989FACC | F190: ACADÉMICO | G190: Catalogo principal | H190: USD | I190: N/A | J190: Microsoft® WinEDUA5 Step-up From WinEduE3 ALNG MonthlySub MVL Per User_FacultyLevelC | K190: Unidad | L190: Und | M190: Producto | N190: NA | O190: N/A | P190: N/A | Q190: AAA-72989FACC | R190: Suscripción mensual con pago anual | S190: 2.65 | T190: 1 | U190: 1 | V190: =SUMIF(ResumenCotizacion!$C:$C,E190,ResumenCotizacion!$P:$P) -> 0 | W190: =IF(H190="USD",S190*SolCotizacion!$J$18,S190) -> 9959.0975 | X190: =ROUND(W190/(1-VLOOKUP("Total porcentaje:",ResumenCotizacion!$F:$H,3,0)),2) -> 10331.01 | Y190: 0
A191: Catalogo principalACADÉMICOAAA-72989FACD | B191: AAA-72989FACDACADÉMICO | D191: Catalogo principal | E191: AAA-72989FACD | F191: ACADÉMICO | G191: Catalogo principal | H191: USD | I191: N/A | J191: Microsoft® WinEDUA5 Step-up From WinEduE3 ALNG MonthlySub MVL Per User_FacultyLevelD | K191: Unidad | L191: Und | M191: Producto | N191: NA | O191: N/A | P191: N/A | Q191: AAA-72989FACD | R191: Suscripción mensual con pago anual | S191: 2.65 | T191: 1 | U191: 1 | V191: =SUMIF(ResumenCotizacion!$C:$C,E191,ResumenCotizacion!$P:$P) -> 0 | W191: =IF(H191="USD",S191*SolCotizacion!$J$18,S191) -> 9959.0975 | X191: =ROUND(W191/(1-VLOOKUP("Total porcentaje:",ResumenCotizacion!$F:$H,3,0)),2) -> 10331.01 | Y191: 0
A192: Catalogo principalACADÉMICOAAA-72989STUA | B192: AAA-72989STUAACADÉMICO | D192: Catalogo principal | E192: AAA-72989STUA | F192: ACADÉMICO | G192: Catalogo principal | H192: USD | I192: N/A | J192: Microsoft® WinEDUA5 Step-up From WinEduE3 ALNG MonthlySub MVL Per User_StudentLevelA | K192: Unidad | L192: Und | M192: Producto | N192: NA | O192: N/A | P192: N/A | Q192: AAA-72989STUA | R192: Suscripción mensual con pago anual | S192: 3.2 | T192: 1 | U192: 1 | V192: =SUMIF(ResumenCotizacion!$C:$C,E192,ResumenCotizacion!$P:$P) -> 0 | W192: =IF(H192="USD",S192*SolCotizacion!$J$18,S192) -> 12026.08 | X192: =ROUND(W192/(1-VLOOKUP("Total porcentaje:",ResumenCotizacion!$F:$H,3,0)),2) -> 12475.19 | Y192: 0
A193: Catalogo principalACADÉMICOAAA-72989STUB | B193: AAA-72989STUBACADÉMICO | D193: Catalogo principal | E193: AAA-72989STUB | F193: ACADÉMICO | G193: Catalogo principal | H193: USD | I193: N/A | J193: Microsoft® WinEDUA5 Step-up From WinEduE3 ALNG MonthlySub MVL Per User_StudentLevelB | K193: Unidad | L193: Und | M193: Producto | N193: NA | O193: N/A | P193: N/A | Q193: AAA-72989STUB | R193: Suscripción mensual con pago anual | S193: 3.2 | T193: 1 | U193: 1 | V193: =SUMIF(ResumenCotizacion!$C:$C,E193,ResumenCotizacion!$P:$P) -> 0 | W193: =IF(H193="USD",S193*SolCotizacion!$J$18,S193) -> 12026.08 | X193: =ROUND(W193/(1-VLOOKUP("Total porcentaje:",ResumenCotizacion!$F:$H,3,0)),2) -> 12475.19 | Y193: 0
A194: Catalogo principalACADÉMICOAAA-72989STUC | B194: AAA-72989STUCACADÉMICO | D194: Catalogo principal | E194: AAA-72989STUC | F194: ACADÉMICO | G194: Catalogo principal | H194: USD | I194: N/A | J194: Microsoft® WinEDUA5 Step-up From WinEduE3 ALNG MonthlySub MVL Per User_StudentLevelC | K194: Unidad | L194: Und | M194: Producto | N194: NA | O194: N/A | P194: N/A | Q194: AAA-72989STUC | R194: Suscripción mensual con pago anual | S194: 3.15 | T194: 1 | U194: 1 | V194: =SUMIF(ResumenCotizacion!$C:$C,E194,ResumenCotizacion!$P:$P) -> 0 | W194: =IF(H194="USD",S194*SolCotizacion!$J$18,S194) -> 11838.1725 | X194: =ROUND(W194/(1-VLOOKUP("Total porcentaje:",ResumenCotizacion!$F:$H,3,0)),2) -> 12280.26 | Y194: 0
A195: =D195&F195&E195 -> Catalogo principalACADÉMICOAAA-72989STUD | B195: =E195&F195 -> AAA-72989STUDACADÉMICO | D195: Catalogo principal | E195: AAA-72989STUD | F195: ACADÉMICO | G195: =D195 -> Catalogo principal | H195: USD | I195: N/A | J195: Microsoft® WinEDUA5 Step-up From WinEduE3 ALNG MonthlySub MVL Per User_StudentLevelD | K195: Unidad | L195: Und | M195: Producto | N195: NA | O195: N/A | P195: N/A | Q195: AAA-72989STUD | R195: Suscripción mensual con pago anual | S195: 3.13 | T195: 1 | U195: 1 | V195: =SUMIF(ResumenCotizacion!$C:$C,E195,ResumenCotizacion!$P:$P) -> 0 | W195: =IF(H195="USD",S195*SolCotizacion!$J$18,S195) -> 11763.0095 | X195: =ROUND(W195/(1-VLOOKUP("Total porcentaje:",ResumenCotizacion!$F:$H,3,0)),2) -> 12202.29 | Y195: =V195*X195 -> 0
A196: Catalogo principalACADÉMICOAAA-72990SUB | B196: AAA-72990SUBACADÉMICO | D196: Catalogo principal | E196: AAA-72990SUB | F196: ACADÉMICO | G196: Catalogo principal | H196: USD | I196: N/A | J196: Microsoft® WinEDUA5 ALNG MonthlySub MVL Per User STUUseBnft | K196: Unidad | L196: Und | M196: Producto | N196: NA | O196: N/A | P196: N/A | Q196: AAA-72990SUB | R196: Suscripción mensual con pago anual | S196: 0 | T196: 1 | U196: 1 | V196: =SUMIF(ResumenCotizacion!$C:$C,E196,ResumenCotizacion!$P:$P) -> 0 | W196: =IF(H196="USD",S196*SolCotizacion!$J$18,S196) -> 0 | X196: =ROUND(W196/(1-VLOOKUP("Total porcentaje:",ResumenCotizacion!$F:$H,3,0)),2) -> 0 | Y196: 0
A197: Catalogo principalACADÉMICOAAA-72993FACA | B197: AAA-72993FACAACADÉMICO | D197: Catalogo principal | E197: AAA-72993FACA | F197: ACADÉMICO | G197: Catalogo principal | H197: USD | I197: N/A | J197: Microsoft® M365 EDU A3 Step-up From O365 A3 Shared ALNG MonthlySub MVL Per User (Original)_FacultyLevelA | K197: Unidad | L197: Und | M197: Producto | N197: NA | O197: N/A | P197: N/A | Q197: AAA-72993FACA | R197: Suscripción mensual con pago anual | S197: 3.4 | T197: 1 | U197: 1 | V197: =SUMIF(ResumenCotizacion!$C:$C,E197,ResumenCotizacion!$P:$P) -> 0 | W197: =IF(H197="USD",S197*SolCotizacion!$J$18,S197) -> 12777.71 | X197: =ROUND(W197/(1-VLOOKUP("Total porcentaje:",ResumenCotizacion!$F:$H,3,0)),2) -> 13254.89 | Y197: 0
A198: Catalogo principalACADÉMICOAAA-72993FACB | B198: AAA-72993FACBACADÉMICO | D198: Catalogo principal | E198: AAA-72993FACB | F198: ACADÉMICO | G198: Catalogo principal | H198: USD | I198: N/A | J198: Microsoft® M365 EDU A3 Step-up From O365 A3 Shared ALNG MonthlySub MVL Per User (Original)_FacultyLevelB | K198: Unidad | L198: Und | M198: Producto | N198: NA | O198: N/A | P198: N/A | Q198: AAA-72993FACB | R198: Suscripción mensual con pago anual | S198: 3.18 | T198: 1 | U198: 1 | V198: =SUMIF(ResumenCotizacion!$C:$C,E198,ResumenCotizacion!$P:$P) -> 0 | W198: =IF(H198="USD",S198*SolCotizacion!$J$18,S198) -> 11950.917 | X198: =ROUND(W198/(1-VLOOKUP("Total porcentaje:",ResumenCotizacion!$F:$H,3,0)),2) -> 12397.22 | Y198: 0
A199: Catalogo principalACADÉMICOAAA-72993FACC | B199: AAA-72993FACCACADÉMICO | D199: Catalogo principal | E199: AAA-72993FACC | F199: ACADÉMICO | G199: Catalogo principal | H199: USD | I199: N/A | J199: Microsoft® M365 EDU A3 Step-up From O365 A3 Shared ALNG MonthlySub MVL Per User (Original)_FacultyLevelC | K199: Unidad | L199: Und | M199: Producto | N199: NA | O199: N/A | P199: N/A | Q199: AAA-72993FACC | R199: Suscripción mensual con pago anual | S199: 2.93 | T199: 1 | U199: 1 | V199: =SUMIF(ResumenCotizacion!$C:$C,E199,ResumenCotizacion!$P:$P) -> 0 | W199: =IF(H199="USD",S199*SolCotizacion!$J$18,S199) -> 11011.3795 | X199: =ROUND(W199/(1-VLOOKUP("Total porcentaje:",ResumenCotizacion!$F:$H,3,0)),2) -> 11422.59 | Y199: 0
A200: Catalogo principalACADÉMICOAAA-72993FACD | B200: AAA-72993FACDACADÉMICO | D200: Catalogo principal | E200: AAA-72993FACD | F200: ACADÉMICO | G200: Catalogo principal | H200: USD | I200: N/A | J200: Microsoft® M365 EDU A3 Step-up From O365 A3 Shared ALNG MonthlySub MVL Per User (Original)_FacultyLevelD | K200: Unidad | L200: Und | M200: Producto | N200: NA | O200: N/A | P200: N/A | Q200: AAA-72993FACD | R200: Suscripción mensual con pago anual | S200: 2.77 | T200: 1 | U200: 1 | V200: =SUMIF(ResumenCotizacion!$C:$C,E200,ResumenCotizacion!$P:$P) -> 0 | W200: =IF(H200="USD",S200*SolCotizacion!$J$18,S200) -> 10410.0755 | X200: =ROUND(W200/(1-VLOOKUP("Total porcentaje:",ResumenCotizacion!$F:$H,3,0)),2) -> 10798.83 | Y200: 0
... 1970 more rows

Sheet tempListas (hidden)
A1: categoria
A2: ACADÉMICO
A3: ENTERPRISE
